{"text_format":"1","workbook":"xlsx","n_sheets":10,"sheets":["COVER","REPORTING INSTRUCTIONS","REMARKS","TABLES-FORMS","COLUMN","PREFILLED-ANNUAL","LoadedData","PrefilledData","Parameter_mapping","Parameters"],"not_rendered":{"charts":0,"images":1,"macros":1,"external_links":1,"defined_names":24,"comments":0,"pivot_tables":0},"unopened":[],"bounds":{"document_bytes":16777216,"sheet_cells":100000,"rows_first":2000,"rows_last":500,"rows_between":2000,"halvings":0,"cell_chars":16384,"cell_head_chars":4096},"cells_cut":0,"cells_raw":0,"read":"whole","date_system":"1900"}

{"sheet":"COVER","index":0,"n_rows":81,"n_cols":6,"rows_kept":81,"cut":false,"hidden":false,"merged":[[7,0,7,19]]}
["MINI-QUESTIONNAIRE"]
["RENEWABLES & WASTES"]
[{"$f":"COLUMN!Q1","v":2020}]
[{"$f":"COLUMN!R1","v":"ZZZZ"}]
[]
["EDAMIS dataset:",null,null,null,null,"ENERGY_MINIREN_A"]
[]
["Please transmit to Eurostat by 31 May 2021."]
["This reporting template is operational if and only if Visual Basic macros are operational."]
["Please click the START button to make other sheets visible."]
["If the START button does not work, please enable execution of Visual Basic macros."]
[]
[]
[]
[]
["Notes:"]
["123","- cells with white background cannot be edited"]
["123","- cells in blue background can be edited (please enter new data here)"]
[{"$f":"A18+A17-A21","v":123},"- cells with bold font are formulas (and if with blue background, they can be edited)"]
["123","- cells with light green background show growth rates to pre-filled data"]
["123","- cells with dark green font are voluntary (consumption side of energy balance)"]
[]
[]
["If you have any questions or comments, please contact:"]
["Marek.Sturc@ec.europa.eu"]
[]
[]
[]
[]
[]
[]
[]
[]
[]
[]
[]
[]
[]
[]
["Albania","AL","Albania.xlsm"]
["Austria","AT","Austria.xlsm"]
["Belgium","BE","Belgium.xlsm"]
["Bosnia & Herzegovina","BA","Bosnia and Herzegovina.xlsm"]
["Bulgaria","BG","Bulgaria.xlsm"]
["Croatia","HR","Croatia.xlsm"]
["Cyprus","CY","Cyprus.xlsm"]
["Czech Republic","CZ","Czechia.xlsm"]
["Denmark","DK","Denmark.xlsm"]
["Estonia","EE","Estonia.xlsm"]
["Finland","FI","Finland.xlsm"]
["France","FR","France.xlsm"]
["Georgia","GE"]
["Germany","DE","Germany.xlsm"]
["Greece","EL","Greece.xlsm"]
["Hungary","HU","Hungary.xlsm"]
["Iceland","IS","Iceland.xlsm"]
["Ireland","IE","Ireland.xlsm"]
["Italy","IT","Italy.xlsm"]
["Kosovo (UNSCR 1244/99)","XK","Kosovo.xlsm"]
["Latvia","LV","Latvia.xlsm"]
["Lithuania","LT","Lithuania.xlsm"]
["Luxembourg","LU","Luxembourg.xlsm"]
["Malta","MT","Malta.xlsm"]
["Moldova","MD","Moldova.xlsm"]
["Montenegro","ME","Montenegro.xlsm"]
["Netherlands","NL","Netherlands.xlsm"]
["North Macedonia","MK","North Macedonia.xlsm"]
["Norway","NO","Norway.xlsm"]
["Poland","PL","Poland.xlsm"]
["Portugal","PT","Portugal.xlsm"]
["Romania","RO","Romania.xlsm"]
["Serbia","RS","Serbia.xlsm"]
["Slovak Republic","SK","Slovakia.xlsm"]
["Slovenia","SI","Slovenia.xlsm"]
["Spain","ES","Spain.xlsm"]
["Sweden","SE","Sweden.xlsm"]
["Switzerland","CH"]
["Turkey","TR"]
["Ukraine","UA"]
["United Kingdom","UK","United Kingdom.xlsm"]
["ZZZ Other (code ZZ)","ZZ"]

{"sheet":"REPORTING INSTRUCTIONS","index":1,"n_rows":35,"n_cols":2,"rows_kept":35,"cut":false,"hidden":true,"merged":[[9,0,9,8],[18,0,18,8]]}
["REPORTING INSTRUCTIONS"]
[]
["Data are automatically copied between sheets TABLE-FORM and COLUMN."]
["You can enter values or formulas. Please do not enter links to outside files."]
[]
["When completed, please transmit via EDAMIS to Eurostat: dataset ENERGY_MINIREN_A"]
[]
["Table 1: Mini commodity balances"]
["All definitions and instructions as for annual renewables & wastes questionnaire apply."]
["http://ec.europa.eu/eurostat/web/energy/methodology/annual"]
["Units and definitions correspond to annual energy questionanires."]
[]
["Table 2: Net maximum capacity at the end of the year"]
["All definitions and instructions as for annual renewables & wastes questionnaire apply."]
[]
[]
["Table 3: Sustainable biofuels according to Directive 2009/28/EC"]
["All definitions and instructions as for the reporting in the SHARES tool apply."]
["http://ec.europa.eu/eurostat/web/energy/data/shares"]
[]
[]
["FLAGS - STATUS of data points"]
["Hierarchy of observation flags - STATUS of values provided:"]
[null,"\" \" normal value = real observation = final value; value with the highest accuracy and reliability"]
["P","\"P\" provisional value or preliminary value; default status"]
["E","\"E\" estimated value or experimental value; indicated lower accuracy and reliability than provisional/preliminary values"]
["U","\"U\" uncertain value or value with very low reliability; please limit the use of this flag as much as possible"]
["O","\"O\" missing value (omitted - not available) - the cell with value should be zero or empty"]
[]
["Notes for colours and highlighting"]
["123","- cells with white background cannot be edited"]
["123","- cells in blue background can be edited (please enter new data/information here)"]
[{"$f":"A32+A31-A35","v":123},"- cells with bold font are formulas (and if with blue background, they can be edited)"]
["123","- cells with light green background show growth rates to pre-filled data"]
["123","- cells with dark green font are voluntary (consumption side of energy balance)"]

{"sheet":"REMARKS","index":2,"n_rows":1,"n_cols":1,"rows_kept":1,"cut":false,"hidden":true,"merged":[]}
["REMARKS:"]

{"sheet":"TABLES-FORMS","index":3,"n_rows":43,"n_cols":54,"rows_kept":43,"cut":false,"hidden":true,"merged":[[1,1,2,1]]}
[null,"Table 1: Mini commodity balances"]
[null,{"$f":"COLUMN!I1","v":2020},"TJ NCV","TJ NCV","TJ NCV","TJ NCV","TJ NCV","TJ NCV","kt","TJ NCV","kt","kt","kt","kt","TJ NCV"]
[null,null,"Geothermal energy","Solar thermal","Industrial waste (non-renewable)","Municipal waste (renewable)","Municipal waste (non-renewable)","Solid biofuels excluding charcoal","Charcoal","Biogases","Biogasoline","Bio jet kerosenes","Biodiesels","Other liquid biofuels","Ambient heat (heat pumps)"]
[null,"Indigenous production",0,0,0,0,0,0,0,0,0,0,0,0,0]
[null,"Total imports (Balance)",0,0,0,0,0,0,0,0,0,0,0,0]
[null,"Total exports (Balance)",0,0,0,0,0,0,0,0,0,0,0,0]
[null,"Stock changes (National territory)",0,0,0,0,0,0,0,0,0,0,0,0]
[null,"Inland consumption (Calculated)",{"$f":"C4+C5-C6+C7","v":0},0,0,0,0,0,0,0,0,0,0,0,0]
[null,"Statistical Difference",{"$f":"C8-C10","v":0},0,0,0,0,0,0,0,0,0,0,0,0]
[null,"Inland consumption (Observed)",{"$f":"C11+C13+C14+C15","v":0},0,0,0,0,0,0,0,0,0,0,0,0]
[null,"Transformation sector",0,0,0,0,0,0,0,0,0,0,0,0,0]
[null,"     of which for blending",null,null,null,null,null,null,null,0,0,0,0,0]
[null,"Energy sector",0,0,0,0,0,0,0,0,0,0,0,0,0]
[null,"Distribution losses",0,0,0,0,0,0,0,0,0,0,0,0]
[null,"Total final energy consumption",{"$f":"C16+C17+C18","v":0},0,0,0,0,0,0,0,0,0,0,0,{"$f":"O16+O17+O18","v":0}]
[null,"Industry sector",0,0,0,0,0,0,0,0,0,0,0,0,0]
[null,"Transport sector",0,0,0,0,0,0,0,0,0,0,0,0,0]
[null,"Other sectors",0,0,0,0,0,0,0,0,0,0,0,0,0]
[null,null,"","","","","","","","","",null,""]
[null,"Table 2: Net maximum capacity at the end of the year"]
[null,{"$f":"B2","v":2020},"MWe"]
[null,"Hydro",{"$f":"C23+C24+C25","v":0}]
[null,"     Pure hydro (with no pumping)",0]
[null,"     Mixed hydro",0]
[null,"     Pure pumped storage",0]
[null,"Wind",{"$f":"C27+C28","v":0}]
[null,"     Onshore wind",0]
[null,"     Offshore wind",0]
[]
[null,"Table 3: Sustainable biofuels according to Directive 2009/28/EC"]
[null,{"$f":"B2","v":2020},"ktoe"]
[null,"Total final energy consumption of biofuels (liquid and gaseous) in transport",0]
[null,"    of which sustainable biofuels",0]
[null,"              of which Annex IX\n               (double counted)",0,null,null,null,null,null,null,null,null,null,null,null,null,null,null,null,null,null,null,null,null,null,null,null,null,null,null,null,null,null,null,null,null,null,null,null,null,null,null,null,null,null,null,null,null,null,null,null,null,"TABLE 3a. TECHNICAL CHARACTERISTICS OF INSTALLATIONS AT THE END OF THE YEAR","TABLEAU 3a. CARACTERISTIQUES TECHNIQUES DES INSTALLATIONS EN FIN D'ANNEE","ТАБЛИЦА 3a. ТЕХНИЧЕСКИЕ ХАРАКТЕРИСТИКИ УСТАНОВОК НА КОНЕЦ ГОДА"]
[null,"Biomethane injected in the grid to be counted towards the transport target",0]
[null,"Sustainable bioliquids: final consumption  in sectors other than transport",0]
[]
[null,"Table 4: Article 6 : Statistical transfers between Member States"]
[null,{"$f":"COLUMN!Q1","v":2020},"ktoe"]
[null,"Total renewable energy to be added ",0]
[null,"     of which transport",0]
[null,"Total renewable energy to be deducted",0]
[null,"     of which transport",0]

{"sheet":"COLUMN","index":4,"n_rows":212,"n_cols":134,"rows_kept":212,"cut":false,"hidden":true,"merged":[]}
[null,null,null,"product_id_e","flow_id_e","product_id_i","flow_id_i",{"$f":"Q1-1&\" prefilled from annual data\"","v":"2019 prefilled from annual data"},{"$f":"Q1","v":2020},"STATUS","Growth rates\nto previous\nyear","Comment",null,null,null,{"$f":"LOOKUP(R1,COVER!A40:A81,COVER!C40:C81)","v":0},2020,"ZZZZ",{"$f":"LOOKUP(R1,COVER!A40:A81,COVER!B40:B81)","v":"ZZ"},null,null,null,null,null,null,null,null,null,null,null,null,null,null,null,null,null,null,null,null,null,null,null,null,null,null,null,null,null,null,null,null,null,null,null,null,null,null,null,null,null,null,null,null,null,null,null,null,null,null,null,null,null,null,null,null,null,null,null,null,null,null,null,null,null,null,null,null,null,null,null,null,null,null,null,null,null,null,null,null,null,null,null,null,null,null,null,null,null,null,null,null,null,null,null,null,null,null,null,null,"VALUE","OBS_STATUS","OBS_COMMENT","REF_AREA","ENERGY_PRODUCT","MAIN_FLOW","FLOW_BREAKDOWN","PLANT_TECH","PLANT_TYPE","STOCKS","INFRASTRUCTURE_IND","VIS_A_VIS_AREA","MEASURE_VALUE_TYPE","FACILITY_ID","UNIT_MEASURE"]
["TJ NCV","Geothermal energy","Indigenous production","5550","B_100100","GEOTHERM","INDPROD",0,0,"P",{"$f":"IF(ISERROR(I2/H2),\"\",(I2/H2)-1)","v":""},null,null,null,null,null,null,null,null,null,null,null,null,null,null,null,null,null,null,null,null,null,null,null,null,null,null,null,null,null,null,null,null,null,null,null,null,null,null,null,null,null,null,null,null,null,null,null,null,null,null,null,null,null,null,null,null,null,null,null,null,null,null,null,null,null,null,null,null,null,null,null,null,null,null,null,null,null,null,null,null,null,null,null,null,null,null,null,null,null,null,null,null,null,null,null,null,null,null,null,null,null,null,null,null,null,null,null,null,{"$f":"IF(J2=\"O\",\"NaN\",ROUND(I2,3))","v":0},{"$f":"IF(J2=\"\",\"A\",J2)","v":"P"},{"$f":"LEFT(TRIM(L2),255)","v":""},{"$f":"$S$1","v":"ZZ"},"RA200","PRODUCT","INDPROD","_Z","_Z","_Z","_Z","_Z","ENERGY","_Z","TJ_NCV"]
["TJ NCV","Geothermal energy","Total imports (Balance)","5550","B_100300","GEOTHERM","TOTIMPSB",0,0,"P","",null,null,null,null,null,null,null,null,null,null,null,null,null,null,null,null,null,null,null,null,null,null,null,null,null,null,null,null,null,null,null,null,null,null,null,null,null,null,null,null,null,null,null,null,null,null,null,null,null,null,null,null,null,null,null,null,null,null,null,null,null,null,null,null,null,null,null,null,null,null,null,null,null,null,null,null,null,null,null,null,null,null,null,null,null,null,null,null,null,null,null,null,null,null,null,null,null,null,null,null,null,null,null,null,null,null,null,null,{"$f":"IF(J3=\"O\",\"NaN\",ROUND(I3,3))","v":0},{"$f":"IF(J3=\"\",\"A\",J3)","v":"P"},{"$f":"LEFT(TRIM(L3),255)","v":""},"ZZ","RA200","IMPORTS","TOTIMPSB","_Z","_Z","_Z","_Z","_Z","ENERGY","_Z","TJ_NCV"]
["TJ NCV","Geothermal energy","Total exports (Balance)","5550","B_100500","GEOTHERM","TOTEXPSB",0,0,"P","",null,null,null,null,null,null,null,null,null,null,null,null,null,null,null,null,null,null,null,null,null,null,null,null,null,null,null,null,null,null,null,null,null,null,null,null,null,null,null,null,null,null,null,null,null,null,null,null,null,null,null,null,null,null,null,null,null,null,null,null,null,null,null,null,null,null,null,null,null,null,null,null,null,null,null,null,null,null,null,null,null,null,null,null,null,null,null,null,null,null,null,null,null,null,null,null,null,null,null,null,null,null,null,null,null,null,null,null,0,"P","","ZZ","RA200","EXPORTS","TOTEXPSB","_Z","_Z","_Z","_Z","_Z","ENERGY","_Z","TJ_NCV"]
["TJ NCV","Geothermal energy","Stock changes (National territory)","5550","B_100400","GEOTHERM","STCHANAT",0,0,"P",null,null,null,null,null,null,null,null,null,null,null,null,null,null,null,null,null,null,null,null,null,null,null,null,null,null,null,null,null,null,null,null,null,null,null,null,null,null,null,null,null,null,null,null,null,null,null,null,null,null,null,null,null,null,null,null,null,null,null,null,null,null,null,null,null,null,null,null,null,null,null,null,null,null,null,null,null,null,null,null,null,null,null,null,null,null,null,null,null,null,null,null,null,null,null,null,null,null,null,null,null,null,null,null,null,null,null,null,null,0,"P","","ZZ","RA200","STOCKS","STOCKCH","_Z","_Z","NATTER","_Z","_Z","ENERGY","_Z","TJ_NCV"]
["TJ NCV","Geothermal energy","Inland consumption (Calculated)",null,null,null,null,{"$f":"H2+H3-H4+H5","v":0},{"$f":"I2+I3-I4+I5","v":0},"P","",null,null,null,null,null,null,null,null,null,null,null,null,null,null,null,null,null,null,null,null,null,null,null,null,null,null,null,null,null,null,null,null,null,null,null,null,null,null,null,null,null,null,null,null,null,null,null,null,null,null,null,null,null,null,null,null,null,null,null,null,null,null,null,null,null,null,null,null,null,null,null,null,null,null,null,null,null,null,null,null,null,null,null,null,null,null,null,null,null,null,null,null,null,null,null,null,null,null,null,null,null,null,null,null,null,null,null,null,0,"P","","ZZ","RA200","SUPPLY","INLDEMC","_Z","_Z","_Z","_Z","_Z","ENERGY","_Z","TJ_NCV"]
["TJ NCV","Geothermal energy","Statistical Difference",null,null,null,null,{"$f":"H6-H8","v":0},{"$f":"I6-I8","v":0},"P",null,null,null,null,null,null,null,null,null,null,null,null,null,null,null,null,null,null,null,null,null,null,null,null,null,null,null,null,null,null,null,null,null,null,null,null,null,null,null,null,null,null,null,null,null,null,null,null,null,null,null,null,null,null,null,null,null,null,null,null,null,null,null,null,null,null,null,null,null,null,null,null,null,null,null,null,null,null,null,null,null,null,null,null,null,null,null,null,null,null,null,null,null,null,null,null,null,null,null,null,null,null,null,null,null,null,null,null,null,0,"P","","ZZ","RA200","STATDIFF","_Z","_Z","_Z","_Z","_Z","_Z","ENERGY","_Z","TJ_NCV"]
["TJ NCV","Geothermal energy","Inland consumption (Observed)",null,null,"GEOTHERM",null,{"$f":"H9+H11+H12+H13","v":0},{"$f":"I9+I11+I12+I13","v":0},"P","",null,null,null,null,null,null,null,null,null,null,null,null,null,null,null,null,null,null,null,null,null,null,null,null,null,null,null,null,null,null,null,null,null,null,null,null,null,null,null,null,null,null,null,null,null,null,null,null,null,null,null,null,null,null,null,null,null,null,null,null,null,null,null,null,null,null,null,null,null,null,null,null,null,null,null,null,null,null,null,null,null,null,null,null,null,null,null,null,null,null,null,null,null,null,null,null,null,null,null,null,null,null,null,null,null,null,null,null,0,"P","","ZZ","RA200","DEMAND","INLDEMO","_Z","_Z","_Z","_Z","_Z","ENERGY","_Z","TJ_NCV"]
["TJ NCV","Geothermal energy","Transformation sector","5550","DB_101000","GEOTHERM","TOTTRANF",0,0,"P","",null,null,null,null,null,null,null,null,null,null,null,null,null,null,null,null,null,null,null,null,null,null,null,null,null,null,null,null,null,null,null,null,null,null,null,null,null,null,null,null,null,null,null,null,null,null,null,null,null,null,null,null,null,null,null,null,null,null,null,null,null,null,null,null,null,null,null,null,null,null,null,null,null,null,null,null,null,null,null,null,null,null,null,null,null,null,null,null,null,null,null,null,null,null,null,null,null,null,null,null,null,null,null,null,null,null,null,null,0,"P","","ZZ","RA200","TRANSFOR","TOTRANSF","_Z","_Z","_Z","_Z","_Z","ENERGY","_Z","TJ_NCV"]
["TJ NCV","Geothermal energy","     of which for blending",null,null,null,null,null,null,"P",null,null,null,null,null,null,null,null,null,null,null,null,null,null,null,null,null,null,null,null,null,null,null,null,null,null,null,null,null,null,null,null,null,null,null,null,null,null,null,null,null,null,null,null,null,null,null,null,null,null,null,null,null,null,null,null,null,null,null,null,null,null,null,null,null,null,null,null,null,null,null,null,null,null,null,null,null,null,null,null,null,null,null,null,null,null,null,null,null,null,null,null,null,null,null,null,null,null,null,null,null,null,null,null,null,null,null,null,null,0,"P","","ZZ","RA200",null,null,null,null,null,null,null,"ENERGY","_Z","TJ_NCV"]
["TJ NCV","Geothermal energy","Energy sector","5550","DB_101300","GEOTHERM","TOTENGY",0,0,"P","",null,null,null,null,null,null,null,null,null,null,null,null,null,null,null,null,null,null,null,null,null,null,null,null,null,null,null,null,null,null,null,null,null,null,null,null,null,null,null,null,null,null,null,null,null,null,null,null,null,null,null,null,null,null,null,null,null,null,null,null,null,null,null,null,null,null,null,null,null,null,null,null,null,null,null,null,null,null,null,null,null,null,null,null,null,null,null,null,null,null,null,null,null,null,null,null,null,null,null,null,null,null,null,null,null,null,null,null,0,"P","","ZZ","RA200","ENERGUSE","ENERSECT","_Z","_Z","_Z","_Z","_Z","ENERGY","_Z","TJ_NCV"]
["TJ NCV","Geothermal energy","Distribution losses","5550","B_101400","GEOTHERM","DISTLOSS",0,0,"P","",null,null,null,null,null,null,null,null,null,null,null,null,null,null,null,null,null,null,null,null,null,null,null,null,null,null,null,null,null,null,null,null,null,null,null,null,null,null,null,null,null,null,null,null,null,null,null,null,null,null,null,null,null,null,null,null,null,null,null,null,null,null,null,null,null,null,null,null,null,null,null,null,null,null,null,null,null,null,null,null,null,null,null,null,null,null,null,null,null,null,null,null,null,null,null,null,null,null,null,null,null,null,null,null,null,null,null,null,0,"P","","ZZ","RA200","LOSSES","DISTLOSS","_Z","_Z","_Z","_Z","_Z","ENERGY","_Z","TJ_NCV"]
["TJ NCV","Geothermal energy","Total final energy consumption",null,null,null,null,{"$f":"H14+H15+H16","v":0},{"$f":"I14+I15+I16","v":0},"P","",null,null,null,null,null,null,null,null,null,null,null,null,null,null,null,null,null,null,null,null,null,null,null,null,null,null,null,null,null,null,null,null,null,null,null,null,null,null,null,null,null,null,null,null,null,null,null,null,null,null,null,null,null,null,null,null,null,null,null,null,null,null,null,null,null,null,null,null,null,null,null,null,null,null,null,null,null,null,null,null,null,null,null,null,null,null,null,null,null,null,null,null,null,null,null,null,null,null,null,null,null,null,null,null,null,null,null,null,0,"P","","ZZ","RA200","ENERGUSE","FINCONS","_Z","_Z","_Z","_Z","_Z","ENERGY","_Z","TJ_NCV"]
["TJ NCV","Geothermal energy","Industry sector","5550","DB_101800","GEOTHERM","TOTIND",0,0,"P","",null,null,null,null,null,null,null,null,null,null,null,null,null,null,null,null,null,null,null,null,null,null,null,null,null,null,null,null,null,null,null,null,null,null,null,null,null,null,null,null,null,null,null,null,null,null,null,null,null,null,null,null,null,null,null,null,null,null,null,null,null,null,null,null,null,null,null,null,null,null,null,null,null,null,null,null,null,null,null,null,null,null,null,null,null,null,null,null,null,null,null,null,null,null,null,null,null,null,null,null,null,null,null,null,null,null,null,null,0,"P","","ZZ","RA200","ENERGUSE","INDUSTRY","_Z","_Z","_Z","_Z","_Z","ENERGY","_Z","TJ_NCV"]
["TJ NCV","Geothermal energy","Transport sector","5550","B_101900","GEOTHERM","TOTTRANS",0,0,"P","",null,null,null,null,null,null,null,null,null,null,null,null,null,null,null,null,null,null,null,null,null,null,null,null,null,null,null,null,null,null,null,null,null,null,null,null,null,null,null,null,null,null,null,null,null,null,null,null,null,null,null,null,null,null,null,null,null,null,null,null,null,null,null,null,null,null,null,null,null,null,null,null,null,null,null,null,null,null,null,null,null,null,null,null,null,null,null,null,null,null,null,null,null,null,null,null,null,null,null,null,null,null,null,null,null,null,null,null,0,"P","","ZZ","RA200","ENERGUSE","TRANSPOR","_Z","_Z","_Z","_Z","_Z","ENERGY","_Z","TJ_NCV"]
["TJ NCV","Geothermal energy","Other sectors","5550","B_102000","GEOTHERM","TOTOTHER",0,0,"P","",null,null,null,null,null,null,null,null,null,null,null,null,null,null,null,null,null,null,null,null,null,null,null,null,null,null,null,null,null,null,null,null,null,null,null,null,null,null,null,null,null,null,null,null,null,null,null,null,null,null,null,null,null,null,null,null,null,null,null,null,null,null,null,null,null,null,null,null,null,null,null,null,null,null,null,null,null,null,null,null,null,null,null,null,null,null,null,null,null,null,null,null,null,null,null,null,null,null,null,null,null,null,null,null,null,null,null,null,0,"P","","ZZ","RA200","ENERGUSE","OTHSECT","_Z","_Z","_Z","_Z","_Z","ENERGY","_Z","TJ_NCV"]
["TJ NCV","Solar thermal","Indigenous production","5532","B_100100","SOLARTH","INDPROD",0,0,"P","",null,null,null,null,null,null,null,null,null,null,null,null,null,null,null,null,null,null,null,null,null,null,null,null,null,null,null,null,null,null,null,null,null,null,null,null,null,null,null,null,null,null,null,null,null,null,null,null,null,null,null,null,null,null,null,null,null,null,null,null,null,null,null,null,null,null,null,null,null,null,null,null,null,null,null,null,null,null,null,null,null,null,null,null,null,null,null,null,null,null,null,null,null,null,null,null,null,null,null,null,null,null,null,null,null,null,null,null,0,"P","","ZZ","RA410","PRODUCT","INDPROD","_Z","_Z","_Z","_Z","_Z","ENERGY","_Z","TJ_NCV"]
["TJ NCV","Solar thermal","Total imports (Balance)","5532","B_100300","SOLARTH","TOTIMPSB",0,0,"P","",null,null,null,null,null,null,null,null,null,null,null,null,null,null,null,null,null,null,null,null,null,null,null,null,null,null,null,null,null,null,null,null,null,null,null,null,null,null,null,null,null,null,null,null,null,null,null,null,null,null,null,null,null,null,null,null,null,null,null,null,null,null,null,null,null,null,null,null,null,null,null,null,null,null,null,null,null,null,null,null,null,null,null,null,null,null,null,null,null,null,null,null,null,null,null,null,null,null,null,null,null,null,null,null,null,null,null,null,0,"P","","ZZ","RA410","IMPORTS","TOTIMPSB","_Z","_Z","_Z","_Z","_Z","ENERGY","_Z","TJ_NCV"]
["TJ NCV","Solar thermal","Total exports (Balance)","5532","B_100500","SOLARTH","TOTEXPSB",0,0,"P","",null,null,null,null,null,null,null,null,null,null,null,null,null,null,null,null,null,null,null,null,null,null,null,null,null,null,null,null,null,null,null,null,null,null,null,null,null,null,null,null,null,null,null,null,null,null,null,null,null,null,null,null,null,null,null,null,null,null,null,null,null,null,null,null,null,null,null,null,null,null,null,null,null,null,null,null,null,null,null,null,null,null,null,null,null,null,null,null,null,null,null,null,null,null,null,null,null,null,null,null,null,null,null,null,null,null,null,null,0,"P","","ZZ","RA410","EXPORTS","TOTEXPSB","_Z","_Z","_Z","_Z","_Z","ENERGY","_Z","TJ_NCV"]
["TJ NCV","Solar thermal","Stock changes (National territory)","5532","B_100400","SOLARTH","STCHANAT",0,0,"P",null,null,null,null,null,null,null,null,null,null,null,null,null,null,null,null,null,null,null,null,null,null,null,null,null,null,null,null,null,null,null,null,null,null,null,null,null,null,null,null,null,null,null,null,null,null,null,null,null,null,null,null,null,null,null,null,null,null,null,null,null,null,null,null,null,null,null,null,null,null,null,null,null,null,null,null,null,null,null,null,null,null,null,null,null,null,null,null,null,null,null,null,null,null,null,null,null,null,null,null,null,null,null,null,null,null,null,null,null,0,"P","","ZZ","RA410","STOCKS","STOCKCH","_Z","_Z","NATTER","_Z","_Z","ENERGY","_Z","TJ_NCV"]
["TJ NCV","Solar thermal","Inland consumption (Calculated)",null,null,null,null,{"$f":"H17+H18-H19+H20","v":0},{"$f":"I17+I18-I19+I20","v":0},"P","",null,null,null,null,null,null,null,null,null,null,null,null,null,null,null,null,null,null,null,null,null,null,null,null,null,null,null,null,null,null,null,null,null,null,null,null,null,null,null,null,null,null,null,null,null,null,null,null,null,null,null,null,null,null,null,null,null,null,null,null,null,null,null,null,null,null,null,null,null,null,null,null,null,null,null,null,null,null,null,null,null,null,null,null,null,null,null,null,null,null,null,null,null,null,null,null,null,null,null,null,null,null,null,null,null,null,null,null,0,"P","","ZZ","RA410","SUPPLY","INLDEMC","_Z","_Z","_Z","_Z","_Z","ENERGY","_Z","TJ_NCV"]
["TJ NCV","Solar thermal","Statistical Difference",null,null,null,null,{"$f":"H21-H23","v":0},{"$f":"I21-I23","v":0},"P",null,null,null,null,null,null,null,null,null,null,null,null,null,null,null,null,null,null,null,null,null,null,null,null,null,null,null,null,null,null,null,null,null,null,null,null,null,null,null,null,null,null,null,null,null,null,null,null,null,null,null,null,null,null,null,null,null,null,null,null,null,null,null,null,null,null,null,null,null,null,null,null,null,null,null,null,null,null,null,null,null,null,null,null,null,null,null,null,null,null,null,null,null,null,null,null,null,null,null,null,null,null,null,null,null,null,null,null,null,0,"P","","ZZ","RA410","STATDIFF","_Z","_Z","_Z","_Z","_Z","_Z","ENERGY","_Z","TJ_NCV"]
["TJ NCV","Solar thermal","Inland consumption (Observed)",null,null,"SOLARTH",null,{"$f":"H24+H26+H27+H28","v":0},{"$f":"I24+I26+I27+I28","v":0},"P","",null,null,null,null,null,null,null,null,null,null,null,null,null,null,null,null,null,null,null,null,null,null,null,null,null,null,null,null,null,null,null,null,null,null,null,null,null,null,null,null,null,null,null,null,null,null,null,null,null,null,null,null,null,null,null,null,null,null,null,null,null,null,null,null,null,null,null,null,null,null,null,null,null,null,null,null,null,null,null,null,null,null,null,null,null,null,null,null,null,null,null,null,null,null,null,null,null,null,null,null,null,null,null,null,null,null,null,null,0,"P","","ZZ","RA410","DEMAND","INLDEMO","_Z","_Z","_Z","_Z","_Z","ENERGY","_Z","TJ_NCV"]
["TJ NCV","Solar thermal","Transformation sector","5532","DB_101000","SOLARTH","TOTTRANF",0,0,"P","",null,null,null,null,null,null,null,null,null,null,null,null,null,null,null,null,null,null,null,null,null,null,null,null,null,null,null,null,null,null,null,null,null,null,null,null,null,null,null,null,null,null,null,null,null,null,null,null,null,null,null,null,null,null,null,null,null,null,null,null,null,null,null,null,null,null,null,null,null,null,null,null,null,null,null,null,null,null,null,null,null,null,null,null,null,null,null,null,null,null,null,null,null,null,null,null,null,null,null,null,null,null,null,null,null,null,null,null,0,"P","","ZZ","RA410","TRANSFOR","TOTRANSF","_Z","_Z","_Z","_Z","_Z","ENERGY","_Z","TJ_NCV"]
["TJ NCV","Solar thermal","     of which for blending",null,null,null,null,null,null,"P",null,null,null,null,null,null,null,null,null,null,null,null,null,null,null,null,null,null,null,null,null,null,null,null,null,null,null,null,null,null,null,null,null,null,null,null,null,null,null,null,null,null,null,null,null,null,null,null,null,null,null,null,null,null,null,null,null,null,null,null,null,null,null,null,null,null,null,null,null,null,null,null,null,null,null,null,null,null,null,null,null,null,null,null,null,null,null,null,null,null,null,null,null,null,null,null,null,null,null,null,null,null,null,null,null,null,null,null,null,0,"P","","ZZ","RA410",null,null,null,null,null,null,null,"ENERGY","_Z","TJ_NCV"]
["TJ NCV","Solar thermal","Energy sector","5532","DB_101300","SOLARTH","TOTENGY",0,0,"P","",null,null,null,null,null,null,null,null,null,null,null,null,null,null,null,null,null,null,null,null,null,null,null,null,null,null,null,null,null,null,null,null,null,null,null,null,null,null,null,null,null,null,null,null,null,null,null,null,null,null,null,null,null,null,null,null,null,null,null,null,null,null,null,null,null,null,null,null,null,null,null,null,null,null,null,null,null,null,null,null,null,null,null,null,null,null,null,null,null,null,null,null,null,null,null,null,null,null,null,null,null,null,null,null,null,null,null,null,0,"P","","ZZ","RA410","ENERGUSE","ENERSECT","_Z","_Z","_Z","_Z","_Z","ENERGY","_Z","TJ_NCV"]
["TJ NCV","Solar thermal","Distribution losses","5532","B_101400","SOLARTH","DISTLOSS",0,0,"P","",null,null,null,null,null,null,null,null,null,null,null,null,null,null,null,null,null,null,null,null,null,null,null,null,null,null,null,null,null,null,null,null,null,null,null,null,null,null,null,null,null,null,null,null,null,null,null,null,null,null,null,null,null,null,null,null,null,null,null,null,null,null,null,null,null,null,null,null,null,null,null,null,null,null,null,null,null,null,null,null,null,null,null,null,null,null,null,null,null,null,null,null,null,null,null,null,null,null,null,null,null,null,null,null,null,null,null,null,0,"P","","ZZ","RA410","LOSSES","DISTLOSS","_Z","_Z","_Z","_Z","_Z","ENERGY","_Z","TJ_NCV"]
["TJ NCV","Solar thermal","Total final energy consumption",null,null,null,null,{"$f":"H29+H30+H31","v":0},{"$f":"I29+I30+I31","v":0},"P","",null,null,null,null,null,null,null,null,null,null,null,null,null,null,null,null,null,null,null,null,null,null,null,null,null,null,null,null,null,null,null,null,null,null,null,null,null,null,null,null,null,null,null,null,null,null,null,null,null,null,null,null,null,null,null,null,null,null,null,null,null,null,null,null,null,null,null,null,null,null,null,null,null,null,null,null,null,null,null,null,null,null,null,null,null,null,null,null,null,null,null,null,null,null,null,null,null,null,null,null,null,null,null,null,null,null,null,null,0,"P","","ZZ","RA410","ENERGUSE","FINCONS","_Z","_Z","_Z","_Z","_Z","ENERGY","_Z","TJ_NCV"]
["TJ NCV","Solar thermal","Industry sector","5532","DB_101800","SOLARTH","TOTIND",0,0,"P","",null,null,null,null,null,null,null,null,null,null,null,null,null,null,null,null,null,null,null,null,null,null,null,null,null,null,null,null,null,null,null,null,null,null,null,null,null,null,null,null,null,null,null,null,null,null,null,null,null,null,null,null,null,null,null,null,null,null,null,null,null,null,null,null,null,null,null,null,null,null,null,null,null,null,null,null,null,null,null,null,null,null,null,null,null,null,null,null,null,null,null,null,null,null,null,null,null,null,null,null,null,null,null,null,null,null,null,null,0,"P","","ZZ","RA410","ENERGUSE","INDUSTRY","_Z","_Z","_Z","_Z","_Z","ENERGY","_Z","TJ_NCV"]
["TJ NCV","Solar thermal","Transport sector","5532","B_101900","SOLARTH","TOTTRANS",0,0,"P","",null,null,null,null,null,null,null,null,null,null,null,null,null,null,null,null,null,null,null,null,null,null,null,null,null,null,null,null,null,null,null,null,null,null,null,null,null,null,null,null,null,null,null,null,null,null,null,null,null,null,null,null,null,null,null,null,null,null,null,null,null,null,null,null,null,null,null,null,null,null,null,null,null,null,null,null,null,null,null,null,null,null,null,null,null,null,null,null,null,null,null,null,null,null,null,null,null,null,null,null,null,null,null,null,null,null,null,null,0,"P","","ZZ","RA410","ENERGUSE","TRANSPOR","_Z","_Z","_Z","_Z","_Z","ENERGY","_Z","TJ_NCV"]
["TJ NCV","Solar thermal","Other sectors","5532","B_102000","SOLARTH","TOTOTHER",0,0,"P","",null,null,null,null,null,null,null,null,null,null,null,null,null,null,null,null,null,null,null,null,null,null,null,null,null,null,null,null,null,null,null,null,null,null,null,null,null,null,null,null,null,null,null,null,null,null,null,null,null,null,null,null,null,null,null,null,null,null,null,null,null,null,null,null,null,null,null,null,null,null,null,null,null,null,null,null,null,null,null,null,null,null,null,null,null,null,null,null,null,null,null,null,null,null,null,null,null,null,null,null,null,null,null,null,null,null,null,null,0,"P","","ZZ","RA410","ENERGUSE","OTHSECT","_Z","_Z","_Z","_Z","_Z","ENERGY","_Z","TJ_NCV"]
["TJ NCV","Industrial waste (non-renewable)","Indigenous production",7100,"B_100100","INDWASTE","INDPROD",0,0,"P","",null,null,null,null,null,null,null,null,null,null,null,null,null,null,null,null,null,null,null,null,null,null,null,null,null,null,null,null,null,null,null,null,null,null,null,null,null,null,null,null,null,null,null,null,null,null,null,null,null,null,null,null,null,null,null,null,null,null,null,null,null,null,null,null,null,null,null,null,null,null,null,null,null,null,null,null,null,null,null,null,null,null,null,null,null,null,null,null,null,null,null,null,null,null,null,null,null,null,null,null,null,null,null,null,null,null,null,null,0,"P","","ZZ","W6100","PRODUCT","INDPROD","_Z","_Z","_Z","_Z","_Z","ENERGY","_Z","TJ_NCV"]
["TJ NCV","Industrial waste (non-renewable)","Total imports (Balance)",7100,"B_100300","INDWASTE","TOTIMPSB",0,0,"P","",null,null,null,null,null,null,null,null,null,null,null,null,null,null,null,null,null,null,null,null,null,null,null,null,null,null,null,null,null,null,null,null,null,null,null,null,null,null,null,null,null,null,null,null,null,null,null,null,null,null,null,null,null,null,null,null,null,null,null,null,null,null,null,null,null,null,null,null,null,null,null,null,null,null,null,null,null,null,null,null,null,null,null,null,null,null,null,null,null,null,null,null,null,null,null,null,null,null,null,null,null,null,null,null,null,null,null,null,0,"P","","ZZ","W6100","IMPORTS","TOTIMPSB","_Z","_Z","_Z","_Z","_Z","ENERGY","_Z","TJ_NCV"]
["TJ NCV","Industrial waste (non-renewable)","Total exports (Balance)",7100,"B_100500","INDWASTE","TOTEXPSB",0,0,"P","",null,null,null,null,null,null,null,null,null,null,null,null,null,null,null,null,null,null,null,null,null,null,null,null,null,null,null,null,null,null,null,null,null,null,null,null,null,null,null,null,null,null,null,null,null,null,null,null,null,null,null,null,null,null,null,null,null,null,null,null,null,null,null,null,null,null,null,null,null,null,null,null,null,null,null,null,null,null,null,null,null,null,null,null,null,null,null,null,null,null,null,null,null,null,null,null,null,null,null,null,null,null,null,null,null,null,null,null,0,"P","","ZZ","W6100","EXPORTS","TOTEXPSB","_Z","_Z","_Z","_Z","_Z","ENERGY","_Z","TJ_NCV"]
["TJ NCV","Industrial waste (non-renewable)","Stock changes (National territory)",7100,"B_100400","INDWASTE","STCHANAT",0,0,"P",null,null,null,null,null,null,null,null,null,null,null,null,null,null,null,null,null,null,null,null,null,null,null,null,null,null,null,null,null,null,null,null,null,null,null,null,null,null,null,null,null,null,null,null,null,null,null,null,null,null,null,null,null,null,null,null,null,null,null,null,null,null,null,null,null,null,null,null,null,null,null,null,null,null,null,null,null,null,null,null,null,null,null,null,null,null,null,null,null,null,null,null,null,null,null,null,null,null,null,null,null,null,null,null,null,null,null,null,null,0,"P","","ZZ","W6100","STOCKS","STOCKCH","_Z","_Z","NATTER","_Z","_Z","ENERGY","_Z","TJ_NCV"]
["TJ NCV","Industrial waste (non-renewable)","Inland consumption (Calculated)",null,null,null,null,{"$f":"H32+H33-H34+H35","v":0},{"$f":"I32+I33-I34+I35","v":0},"P","",null,null,null,null,null,null,null,null,null,null,null,null,null,null,null,null,null,null,null,null,null,null,null,null,null,null,null,null,null,null,null,null,null,null,null,null,null,null,null,null,null,null,null,null,null,null,null,null,null,null,null,null,null,null,null,null,null,null,null,null,null,null,null,null,null,null,null,null,null,null,null,null,null,null,null,null,null,null,null,null,null,null,null,null,null,null,null,null,null,null,null,null,null,null,null,null,null,null,null,null,null,null,null,null,null,null,null,null,0,"P","","ZZ","W6100","SUPPLY","INLDEMC","_Z","_Z","_Z","_Z","_Z","ENERGY","_Z","TJ_NCV"]
["TJ NCV","Industrial waste (non-renewable)","Statistical Difference",null,null,null,null,{"$f":"H36-H38","v":0},{"$f":"I36-I38","v":0},"P",null,null,null,null,null,null,null,null,null,null,null,null,null,null,null,null,null,null,null,null,null,null,null,null,null,null,null,null,null,null,null,null,null,null,null,null,null,null,null,null,null,null,null,null,null,null,null,null,null,null,null,null,null,null,null,null,null,null,null,null,null,null,null,null,null,null,null,null,null,null,null,null,null,null,null,null,null,null,null,null,null,null,null,null,null,null,null,null,null,null,null,null,null,null,null,null,null,null,null,null,null,null,null,null,null,null,null,null,null,0,"P","","ZZ","W6100","STATDIFF","_Z","_Z","_Z","_Z","_Z","_Z","ENERGY","_Z","TJ_NCV"]
["TJ NCV","Industrial waste (non-renewable)","Inland consumption (Observed)",null,null,"INDWASTE",null,{"$f":"H39+H41+H42+H43","v":0},{"$f":"I39+I41+I42+I43","v":0},"P","",null,null,null,null,null,null,null,null,null,null,null,null,null,null,null,null,null,null,null,null,null,null,null,null,null,null,null,null,null,null,null,null,null,null,null,null,null,null,null,null,null,null,null,null,null,null,null,null,null,null,null,null,null,null,null,null,null,null,null,null,null,null,null,null,null,null,null,null,null,null,null,null,null,null,null,null,null,null,null,null,null,null,null,null,null,null,null,null,null,null,null,null,null,null,null,null,null,null,null,null,null,null,null,null,null,null,null,null,0,"P","","ZZ","W6100","DEMAND","INLDEMO","_Z","_Z","_Z","_Z","_Z","ENERGY","_Z","TJ_NCV"]
["TJ NCV","Industrial waste (non-renewable)","Transformation sector",7100,"DB_101000","INDWASTE","TOTTRANF",0,0,"P","",null,null,null,null,null,null,null,null,null,null,null,null,null,null,null,null,null,null,null,null,null,null,null,null,null,null,null,null,null,null,null,null,null,null,null,null,null,null,null,null,null,null,null,null,null,null,null,null,null,null,null,null,null,null,null,null,null,null,null,null,null,null,null,null,null,null,null,null,null,null,null,null,null,null,null,null,null,null,null,null,null,null,null,null,null,null,null,null,null,null,null,null,null,null,null,null,null,null,null,null,null,null,null,null,null,null,null,null,0,"P","","ZZ","W6100","TRANSFOR","TOTRANSF","_Z","_Z","_Z","_Z","_Z","ENERGY","_Z","TJ_NCV"]
["TJ NCV","Industrial waste (non-renewable)","     of which for blending",null,null,null,null,null,null,"P",null,null,null,null,null,null,null,null,null,null,null,null,null,null,null,null,null,null,null,null,null,null,null,null,null,null,null,null,null,null,null,null,null,null,null,null,null,null,null,null,null,null,null,null,null,null,null,null,null,null,null,null,null,null,null,null,null,null,null,null,null,null,null,null,null,null,null,null,null,null,null,null,null,null,null,null,null,null,null,null,null,null,null,null,null,null,null,null,null,null,null,null,null,null,null,null,null,null,null,null,null,null,null,null,null,null,null,null,null,0,"P","","ZZ","W6100",null,null,null,null,null,null,null,"ENERGY","_Z","TJ_NCV"]
["TJ NCV","Industrial waste (non-renewable)","Energy sector",7100,"DB_101300","INDWASTE","TOTENGY",0,0,"P","",null,null,null,null,null,null,null,null,null,null,null,null,null,null,null,null,null,null,null,null,null,null,null,null,null,null,null,null,null,null,null,null,null,null,null,null,null,null,null,null,null,null,null,null,null,null,null,null,null,null,null,null,null,null,null,null,null,null,null,null,null,null,null,null,null,null,null,null,null,null,null,null,null,null,null,null,null,null,null,null,null,null,null,null,null,null,null,null,null,null,null,null,null,null,null,null,null,null,null,null,null,null,null,null,null,null,null,null,0,"P","","ZZ","W6100","ENERGUSE","ENERSECT","_Z","_Z","_Z","_Z","_Z","ENERGY","_Z","TJ_NCV"]
["TJ NCV","Industrial waste (non-renewable)","Distribution losses",7100,"B_101400","INDWASTE","DISTLOSS",0,0,"P","",null,null,null,null,null,null,null,null,null,null,null,null,null,null,null,null,null,null,null,null,null,null,null,null,null,null,null,null,null,null,null,null,null,null,null,null,null,null,null,null,null,null,null,null,null,null,null,null,null,null,null,null,null,null,null,null,null,null,null,null,null,null,null,null,null,null,null,null,null,null,null,null,null,null,null,null,null,null,null,null,null,null,null,null,null,null,null,null,null,null,null,null,null,null,null,null,null,null,null,null,null,null,null,null,null,null,null,null,0,"P","","ZZ","W6100","LOSSES","DISTLOSS","_Z","_Z","_Z","_Z","_Z","ENERGY","_Z","TJ_NCV"]
["TJ NCV","Industrial waste (non-renewable)","Total final energy consumption",null,null,null,null,{"$f":"H44+H45+H46","v":0},{"$f":"I44+I45+I46","v":0},"P","",null,null,null,null,null,null,null,null,null,null,null,null,null,null,null,null,null,null,null,null,null,null,null,null,null,null,null,null,null,null,null,null,null,null,null,null,null,null,null,null,null,null,null,null,null,null,null,null,null,null,null,null,null,null,null,null,null,null,null,null,null,null,null,null,null,null,null,null,null,null,null,null,null,null,null,null,null,null,null,null,null,null,null,null,null,null,null,null,null,null,null,null,null,null,null,null,null,null,null,null,null,null,null,null,null,null,null,null,0,"P","","ZZ","W6100","ENERGUSE","FINCONS","_Z","_Z","_Z","_Z","_Z","ENERGY","_Z","TJ_NCV"]
["TJ NCV","Industrial waste (non-renewable)","Industry sector",7100,"DB_101800","INDWASTE","TOTIND",0,0,"P","",null,null,null,null,null,null,null,null,null,null,null,null,null,null,null,null,null,null,null,null,null,null,null,null,null,null,null,null,null,null,null,null,null,null,null,null,null,null,null,null,null,null,null,null,null,null,null,null,null,null,null,null,null,null,null,null,null,null,null,null,null,null,null,null,null,null,null,null,null,null,null,null,null,null,null,null,null,null,null,null,null,null,null,null,null,null,null,null,null,null,null,null,null,null,null,null,null,null,null,null,null,null,null,null,null,null,null,null,0,"P","","ZZ","W6100","ENERGUSE","INDUSTRY","_Z","_Z","_Z","_Z","_Z","ENERGY","_Z","TJ_NCV"]
["TJ NCV","Industrial waste (non-renewable)","Transport sector",7100,"B_101900","INDWASTE","TOTTRANS",0,0,"P","",null,null,null,null,null,null,null,null,null,null,null,null,null,null,null,null,null,null,null,null,null,null,null,null,null,null,null,null,null,null,null,null,null,null,null,null,null,null,null,null,null,null,null,null,null,null,null,null,null,null,null,null,null,null,null,null,null,null,null,null,null,null,null,null,null,null,null,null,null,null,null,null,null,null,null,null,null,null,null,null,null,null,null,null,null,null,null,null,null,null,null,null,null,null,null,null,null,null,null,null,null,null,null,null,null,null,null,null,0,"P","","ZZ","W6100","ENERGUSE","TRANSPOR","_Z","_Z","_Z","_Z","_Z","ENERGY","_Z","TJ_NCV"]
["TJ NCV","Industrial waste (non-renewable)","Other sectors",7100,"B_102000","INDWASTE","TOTOTHER",0,0,"P","",null,null,null,null,null,null,null,null,null,null,null,null,null,null,null,null,null,null,null,null,null,null,null,null,null,null,null,null,null,null,null,null,null,null,null,null,null,null,null,null,null,null,null,null,null,null,null,null,null,null,null,null,null,null,null,null,null,null,null,null,null,null,null,null,null,null,null,null,null,null,null,null,null,null,null,null,null,null,null,null,null,null,null,null,null,null,null,null,null,null,null,null,null,null,null,null,null,null,null,null,null,null,null,null,null,null,null,null,0,"P","","ZZ","W6100","ENERGUSE","OTHSECT","_Z","_Z","_Z","_Z","_Z","ENERGY","_Z","TJ_NCV"]
["TJ NCV","Municipal waste (renewable)","Indigenous production",55431,"B_100100","MUNWASTER","INDPROD",0,0,"P","",null,null,null,null,null,null,null,null,null,null,null,null,null,null,null,null,null,null,null,null,null,null,null,null,null,null,null,null,null,null,null,null,null,null,null,null,null,null,null,null,null,null,null,null,null,null,null,null,null,null,null,null,null,null,null,null,null,null,null,null,null,null,null,null,null,null,null,null,null,null,null,null,null,null,null,null,null,null,null,null,null,null,null,null,null,null,null,null,null,null,null,null,null,null,null,null,null,null,null,null,null,null,null,null,null,null,null,null,0,"P","","ZZ","W6210","PRODUCT","INDPROD","_Z","_Z","_Z","_Z","_Z","ENERGY","_Z","TJ_NCV"]
["TJ NCV","Municipal waste (renewable)","Total imports (Balance)",55431,"B_100300","MUNWASTER","TOTIMPSB",0,0,"P","",null,null,null,null,null,null,null,null,null,null,null,null,null,null,null,null,null,null,null,null,null,null,null,null,null,null,null,null,null,null,null,null,null,null,null,null,null,null,null,null,null,null,null,null,null,null,null,null,null,null,null,null,null,null,null,null,null,null,null,null,null,null,null,null,null,null,null,null,null,null,null,null,null,null,null,null,null,null,null,null,null,null,null,null,null,null,null,null,null,null,null,null,null,null,null,null,null,null,null,null,null,null,null,null,null,null,null,null,0,"P","","ZZ","W6210","IMPORTS","TOTIMPSB","_Z","_Z","_Z","_Z","_Z","ENERGY","_Z","TJ_NCV"]
["TJ NCV","Municipal waste (renewable)","Total exports (Balance)",55431,"B_100500","MUNWASTER","TOTEXPSB",0,0,"P","",null,null,null,null,null,null,null,null,null,null,null,null,null,null,null,null,null,null,null,null,null,null,null,null,null,null,null,null,null,null,null,null,null,null,null,null,null,null,null,null,null,null,null,null,null,null,null,null,null,null,null,null,null,null,null,null,null,null,null,null,null,null,null,null,null,null,null,null,null,null,null,null,null,null,null,null,null,null,null,null,null,null,null,null,null,null,null,null,null,null,null,null,null,null,null,null,null,null,null,null,null,null,null,null,null,null,null,null,0,"P","","ZZ","W6210","EXPORTS","TOTEXPSB","_Z","_Z","_Z","_Z","_Z","ENERGY","_Z","TJ_NCV"]
["TJ NCV","Municipal waste (renewable)","Stock changes (National territory)",55431,"B_100400","MUNWASTER","STCHANAT",0,0,"P",null,null,null,null,null,null,null,null,null,null,null,null,null,null,null,null,null,null,null,null,null,null,null,null,null,null,null,null,null,null,null,null,null,null,null,null,null,null,null,null,null,null,null,null,null,null,null,null,null,null,null,null,null,null,null,null,null,null,null,null,null,null,null,null,null,null,null,null,null,null,null,null,null,null,null,null,null,null,null,null,null,null,null,null,null,null,null,null,null,null,null,null,null,null,null,null,null,null,null,null,null,null,null,null,null,null,null,null,null,0,"P","","ZZ","W6210","STOCKS","STOCKCH","_Z","_Z","NATTER","_Z","_Z","ENERGY","_Z","TJ_NCV"]
["TJ NCV","Municipal waste (renewable)","Inland consumption (Calculated)",null,null,null,null,{"$f":"H47+H48-H49+H50","v":0},{"$f":"I47+I48-I49+I50","v":0},"P","",null,null,null,null,null,null,null,null,null,null,null,null,null,null,null,null,null,null,null,null,null,null,null,null,null,null,null,null,null,null,null,null,null,null,null,null,null,null,null,null,null,null,null,null,null,null,null,null,null,null,null,null,null,null,null,null,null,null,null,null,null,null,null,null,null,null,null,null,null,null,null,null,null,null,null,null,null,null,null,null,null,null,null,null,null,null,null,null,null,null,null,null,null,null,null,null,null,null,null,null,null,null,null,null,null,null,null,null,0,"P","","ZZ","W6210","SUPPLY","INLDEMC","_Z","_Z","_Z","_Z","_Z","ENERGY","_Z","TJ_NCV"]
["TJ NCV","Municipal waste (renewable)","Statistical Difference",null,null,null,null,{"$f":"H51-H53","v":0},{"$f":"I51-I53","v":0},"P",null,null,null,null,null,null,null,null,null,null,null,null,null,null,null,null,null,null,null,null,null,null,null,null,null,null,null,null,null,null,null,null,null,null,null,null,null,null,null,null,null,null,null,null,null,null,null,null,null,null,null,null,null,null,null,null,null,null,null,null,null,null,null,null,null,null,null,null,null,null,null,null,null,null,null,null,null,null,null,null,null,null,null,null,null,null,null,null,null,null,null,null,null,null,null,null,null,null,null,null,null,null,null,null,null,null,null,null,null,0,"P","","ZZ","W6210","STATDIFF","_Z","_Z","_Z","_Z","_Z","_Z","ENERGY","_Z","TJ_NCV"]
["TJ NCV","Municipal waste (renewable)","Inland consumption (Observed)",null,null,"MUNWASTER",null,{"$f":"H54+H56+H57+H58","v":0},{"$f":"I54+I56+I57+I58","v":0},"P","",null,null,null,null,null,null,null,null,null,null,null,null,null,null,null,null,null,null,null,null,null,null,null,null,null,null,null,null,null,null,null,null,null,null,null,null,null,null,null,null,null,null,null,null,null,null,null,null,null,null,null,null,null,null,null,null,null,null,null,null,null,null,null,null,null,null,null,null,null,null,null,null,null,null,null,null,null,null,null,null,null,null,null,null,null,null,null,null,null,null,null,null,null,null,null,null,null,null,null,null,null,null,null,null,null,null,null,null,0,"P","","ZZ","W6210","DEMAND","INLDEMO","_Z","_Z","_Z","_Z","_Z","ENERGY","_Z","TJ_NCV"]
["TJ NCV","Municipal waste (renewable)","Transformation sector",55431,"DB_101000","MUNWASTER","TOTTRANF",0,0,"P","",null,null,null,null,null,null,null,null,null,null,null,null,null,null,null,null,null,null,null,null,null,null,null,null,null,null,null,null,null,null,null,null,null,null,null,null,null,null,null,null,null,null,null,null,null,null,null,null,null,null,null,null,null,null,null,null,null,null,null,null,null,null,null,null,null,null,null,null,null,null,null,null,null,null,null,null,null,null,null,null,null,null,null,null,null,null,null,null,null,null,null,null,null,null,null,null,null,null,null,null,null,null,null,null,null,null,null,null,0,"P","","ZZ","W6210","TRANSFOR","TOTRANSF","_Z","_Z","_Z","_Z","_Z","ENERGY","_Z","TJ_NCV"]
["TJ NCV","Municipal waste (renewable)","     of which for blending",null,null,null,null,null,null,"P",null,null,null,null,null,null,null,null,null,null,null,null,null,null,null,null,null,null,null,null,null,null,null,null,null,null,null,null,null,null,null,null,null,null,null,null,null,null,null,null,null,null,null,null,null,null,null,null,null,null,null,null,null,null,null,null,null,null,null,null,null,null,null,null,null,null,null,null,null,null,null,null,null,null,null,null,null,null,null,null,null,null,null,null,null,null,null,null,null,null,null,null,null,null,null,null,null,null,null,null,null,null,null,null,null,null,null,null,null,0,"P","","ZZ","W6210",null,null,null,null,null,null,null,"ENERGY","_Z","TJ_NCV"]
["TJ NCV","Municipal waste (renewable)","Energy sector",55431,"DB_101300","MUNWASTER","TOTENGY",0,0,"P","",null,null,null,null,null,null,null,null,null,null,null,null,null,null,null,null,null,null,null,null,null,null,null,null,null,null,null,null,null,null,null,null,null,null,null,null,null,null,null,null,null,null,null,null,null,null,null,null,null,null,null,null,null,null,null,null,null,null,null,null,null,null,null,null,null,null,null,null,null,null,null,null,null,null,null,null,null,null,null,null,null,null,null,null,null,null,null,null,null,null,null,null,null,null,null,null,null,null,null,null,null,null,null,null,null,null,null,null,0,"P","","ZZ","W6210","ENERGUSE","ENERSECT","_Z","_Z","_Z","_Z","_Z","ENERGY","_Z","TJ_NCV"]
["TJ NCV","Municipal waste (renewable)","Distribution losses",55431,"B_101400","MUNWASTER","DISTLOSS",0,0,"P","",null,null,null,null,null,null,null,null,null,null,null,null,null,null,null,null,null,null,null,null,null,null,null,null,null,null,null,null,null,null,null,null,null,null,null,null,null,null,null,null,null,null,null,null,null,null,null,null,null,null,null,null,null,null,null,null,null,null,null,null,null,null,null,null,null,null,null,null,null,null,null,null,null,null,null,null,null,null,null,null,null,null,null,null,null,null,null,null,null,null,null,null,null,null,null,null,null,null,null,null,null,null,null,null,null,null,null,null,0,"P","","ZZ","W6210","LOSSES","DISTLOSS","_Z","_Z","_Z","_Z","_Z","ENERGY","_Z","TJ_NCV"]
["TJ NCV","Municipal waste (renewable)","Total final energy consumption",null,null,null,null,{"$f":"H59+H60+H61","v":0},{"$f":"I59+I60+I61","v":0},"P","",null,null,null,null,null,null,null,null,null,null,null,null,null,null,null,null,null,null,null,null,null,null,null,null,null,null,null,null,null,null,null,null,null,null,null,null,null,null,null,null,null,null,null,null,null,null,null,null,null,null,null,null,null,null,null,null,null,null,null,null,null,null,null,null,null,null,null,null,null,null,null,null,null,null,null,null,null,null,null,null,null,null,null,null,null,null,null,null,null,null,null,null,null,null,null,null,null,null,null,null,null,null,null,null,null,null,null,null,0,"P","","ZZ","W6210","ENERGUSE","FINCONS","_Z","_Z","_Z","_Z","_Z","ENERGY","_Z","TJ_NCV"]
["TJ NCV","Municipal waste (renewable)","Industry sector",55431,"DB_101800","MUNWASTER","TOTIND",0,0,"P","",null,null,null,null,null,null,null,null,null,null,null,null,null,null,null,null,null,null,null,null,null,null,null,null,null,null,null,null,null,null,null,null,null,null,null,null,null,null,null,null,null,null,null,null,null,null,null,null,null,null,null,null,null,null,null,null,null,null,null,null,null,null,null,null,null,null,null,null,null,null,null,null,null,null,null,null,null,null,null,null,null,null,null,null,null,null,null,null,null,null,null,null,null,null,null,null,null,null,null,null,null,null,null,null,null,null,null,null,0,"P","","ZZ","W6210","ENERGUSE","INDUSTRY","_Z","_Z","_Z","_Z","_Z","ENERGY","_Z","TJ_NCV"]
["TJ NCV","Municipal waste (renewable)","Transport sector",55431,"B_101900","MUNWASTER","TOTTRANS",0,0,"P","",null,null,null,null,null,null,null,null,null,null,null,null,null,null,null,null,null,null,null,null,null,null,null,null,null,null,null,null,null,null,null,null,null,null,null,null,null,null,null,null,null,null,null,null,null,null,null,null,null,null,null,null,null,null,null,null,null,null,null,null,null,null,null,null,null,null,null,null,null,null,null,null,null,null,null,null,null,null,null,null,null,null,null,null,null,null,null,null,null,null,null,null,null,null,null,null,null,null,null,null,null,null,null,null,null,null,null,null,0,"P","","ZZ","W6210","ENERGUSE","TRANSPOR","_Z","_Z","_Z","_Z","_Z","ENERGY","_Z","TJ_NCV"]
["TJ NCV","Municipal waste (renewable)","Other sectors",55431,"B_102000","MUNWASTER","TOTOTHER",0,0,"P","",null,null,null,null,null,null,null,null,null,null,null,null,null,null,null,null,null,null,null,null,null,null,null,null,null,null,null,null,null,null,null,null,null,null,null,null,null,null,null,null,null,null,null,null,null,null,null,null,null,null,null,null,null,null,null,null,null,null,null,null,null,null,null,null,null,null,null,null,null,null,null,null,null,null,null,null,null,null,null,null,null,null,null,null,null,null,null,null,null,null,null,null,null,null,null,null,null,null,null,null,null,null,null,null,null,null,null,null,0,"P","","ZZ","W6210","ENERGUSE","OTHSECT","_Z","_Z","_Z","_Z","_Z","ENERGY","_Z","TJ_NCV"]
["TJ NCV","Municipal waste (non-renewable)","Indigenous production",55432,"B_100100","MUNWASTEN","INDPROD",0,0,"P","",null,null,null,null,null,null,null,null,null,null,null,null,null,null,null,null,null,null,null,null,null,null,null,null,null,null,null,null,null,null,null,null,null,null,null,null,null,null,null,null,null,null,null,null,null,null,null,null,null,null,null,null,null,null,null,null,null,null,null,null,null,null,null,null,null,null,null,null,null,null,null,null,null,null,null,null,null,null,null,null,null,null,null,null,null,null,null,null,null,null,null,null,null,null,null,null,null,null,null,null,null,null,null,null,null,null,null,null,0,"P","","ZZ","W6220","PRODUCT","INDPROD","_Z","_Z","_Z","_Z","_Z","ENERGY","_Z","TJ_NCV"]
["TJ NCV","Municipal waste (non-renewable)","Total imports (Balance)",55432,"B_100300","MUNWASTEN","TOTIMPSB",0,0,"P","",null,null,null,null,null,null,null,null,null,null,null,null,null,null,null,null,null,null,null,null,null,null,null,null,null,null,null,null,null,null,null,null,null,null,null,null,null,null,null,null,null,null,null,null,null,null,null,null,null,null,null,null,null,null,null,null,null,null,null,null,null,null,null,null,null,null,null,null,null,null,null,null,null,null,null,null,null,null,null,null,null,null,null,null,null,null,null,null,null,null,null,null,null,null,null,null,null,null,null,null,null,null,null,null,null,null,null,null,0,"P","","ZZ","W6220","IMPORTS","TOTIMPSB","_Z","_Z","_Z","_Z","_Z","ENERGY","_Z","TJ_NCV"]
["TJ NCV","Municipal waste (non-renewable)","Total exports (Balance)",55432,"B_100500","MUNWASTEN","TOTEXPSB",0,0,"P","",null,null,null,null,null,null,null,null,null,null,null,null,null,null,null,null,null,null,null,null,null,null,null,null,null,null,null,null,null,null,null,null,null,null,null,null,null,null,null,null,null,null,null,null,null,null,null,null,null,null,null,null,null,null,null,null,null,null,null,null,null,null,null,null,null,null,null,null,null,null,null,null,null,null,null,null,null,null,null,null,null,null,null,null,null,null,null,null,null,null,null,null,null,null,null,null,null,null,null,null,null,null,null,null,null,null,null,null,0,"P","","ZZ","W6220","EXPORTS","TOTEXPSB","_Z","_Z","_Z","_Z","_Z","ENERGY","_Z","TJ_NCV"]
["TJ NCV","Municipal waste (non-renewable)","Stock changes (National territory)",55432,"B_100400","MUNWASTEN","STCHANAT",0,0,"P",null,null,null,null,null,null,null,null,null,null,null,null,null,null,null,null,null,null,null,null,null,null,null,null,null,null,null,null,null,null,null,null,null,null,null,null,null,null,null,null,null,null,null,null,null,null,null,null,null,null,null,null,null,null,null,null,null,null,null,null,null,null,null,null,null,null,null,null,null,null,null,null,null,null,null,null,null,null,null,null,null,null,null,null,null,null,null,null,null,null,null,null,null,null,null,null,null,null,null,null,null,null,null,null,null,null,null,null,null,0,"P","","ZZ","W6220","STOCKS","STOCKCH","_Z","_Z","NATTER","_Z","_Z","ENERGY","_Z","TJ_NCV"]
["TJ NCV","Municipal waste (non-renewable)","Inland consumption (Calculated)",null,null,null,null,{"$f":"H62+H63-H64+H65","v":0},{"$f":"I62+I63-I64+I65","v":0},"P",{"$f":"IF(ISERROR(I66/H66),\"\",(I66/H66)-1)","v":""},null,null,null,null,null,null,null,null,null,null,null,null,null,null,null,null,null,null,null,null,null,null,null,null,null,null,null,null,null,null,null,null,null,null,null,null,null,null,null,null,null,null,null,null,null,null,null,null,null,null,null,null,null,null,null,null,null,null,null,null,null,null,null,null,null,null,null,null,null,null,null,null,null,null,null,null,null,null,null,null,null,null,null,null,null,null,null,null,null,null,null,null,null,null,null,null,null,null,null,null,null,null,null,null,null,null,null,null,0,"P","",{"$f":"$S$1","v":"ZZ"},"W6220","SUPPLY","INLDEMC","_Z","_Z","_Z","_Z","_Z","ENERGY","_Z","TJ_NCV"]
["TJ NCV","Municipal waste (non-renewable)","Statistical Difference",null,null,null,null,{"$f":"H66-H68","v":0},{"$f":"I66-I68","v":0},"P",null,null,null,null,null,null,null,null,null,null,null,null,null,null,null,null,null,null,null,null,null,null,null,null,null,null,null,null,null,null,null,null,null,null,null,null,null,null,null,null,null,null,null,null,null,null,null,null,null,null,null,null,null,null,null,null,null,null,null,null,null,null,null,null,null,null,null,null,null,null,null,null,null,null,null,null,null,null,null,null,null,null,null,null,null,null,null,null,null,null,null,null,null,null,null,null,null,null,null,null,null,null,null,null,null,null,null,null,null,{"$f":"IF(J67=\"O\",\"NaN\",ROUND(I67,3))","v":0},{"$f":"IF(J67=\"\",\"A\",J67)","v":"P"},{"$f":"LEFT(TRIM(L67),255)","v":""},"ZZ","W6220","STATDIFF","_Z","_Z","_Z","_Z","_Z","_Z","ENERGY","_Z","TJ_NCV"]
["TJ NCV","Municipal waste (non-renewable)","Inland consumption (Observed)",null,null,"MUNWASTEN",null,{"$f":"H69+H71+H72+H73","v":0},{"$f":"I69+I71+I72+I73","v":0},"P","",null,null,null,null,null,null,null,null,null,null,null,null,null,null,null,null,null,null,null,null,null,null,null,null,null,null,null,null,null,null,null,null,null,null,null,null,null,null,null,null,null,null,null,null,null,null,null,null,null,null,null,null,null,null,null,null,null,null,null,null,null,null,null,null,null,null,null,null,null,null,null,null,null,null,null,null,null,null,null,null,null,null,null,null,null,null,null,null,null,null,null,null,null,null,null,null,null,null,null,null,null,null,null,null,null,null,null,null,0,"P","","ZZ","W6220","DEMAND","INLDEMO","_Z","_Z","_Z","_Z","_Z","ENERGY","_Z","TJ_NCV"]
["TJ NCV","Municipal waste (non-renewable)","Transformation sector",55432,"DB_101000","MUNWASTEN","TOTTRANF",0,0,"P","",null,null,null,null,null,null,null,null,null,null,null,null,null,null,null,null,null,null,null,null,null,null,null,null,null,null,null,null,null,null,null,null,null,null,null,null,null,null,null,null,null,null,null,null,null,null,null,null,null,null,null,null,null,null,null,null,null,null,null,null,null,null,null,null,null,null,null,null,null,null,null,null,null,null,null,null,null,null,null,null,null,null,null,null,null,null,null,null,null,null,null,null,null,null,null,null,null,null,null,null,null,null,null,null,null,null,null,null,0,"P","","ZZ","W6220","TRANSFOR","TOTRANSF","_Z","_Z","_Z","_Z","_Z","ENERGY","_Z","TJ_NCV"]
["TJ NCV","Municipal waste (non-renewable)","     of which for blending",null,null,null,null,null,null,"P",null,null,null,null,null,null,null,null,null,null,null,null,null,null,null,null,null,null,null,null,null,null,null,null,null,null,null,null,null,null,null,null,null,null,null,null,null,null,null,null,null,null,null,null,null,null,null,null,null,null,null,null,null,null,null,null,null,null,null,null,null,null,null,null,null,null,null,null,null,null,null,null,null,null,null,null,null,null,null,null,null,null,null,null,null,null,null,null,null,null,null,null,null,null,null,null,null,null,null,null,null,null,null,null,null,null,null,null,null,0,"P","","ZZ","W6220",null,null,null,null,null,null,null,"ENERGY","_Z","TJ_NCV"]
["TJ NCV","Municipal waste (non-renewable)","Energy sector",55432,"DB_101300","MUNWASTEN","TOTENGY",0,0,"P","",null,null,null,null,null,null,null,null,null,null,null,null,null,null,null,null,null,null,null,null,null,null,null,null,null,null,null,null,null,null,null,null,null,null,null,null,null,null,null,null,null,null,null,null,null,null,null,null,null,null,null,null,null,null,null,null,null,null,null,null,null,null,null,null,null,null,null,null,null,null,null,null,null,null,null,null,null,null,null,null,null,null,null,null,null,null,null,null,null,null,null,null,null,null,null,null,null,null,null,null,null,null,null,null,null,null,null,null,0,"P","","ZZ","W6220","ENERGUSE","ENERSECT","_Z","_Z","_Z","_Z","_Z","ENERGY","_Z","TJ_NCV"]
["TJ NCV","Municipal waste (non-renewable)","Distribution losses",55432,"B_101400","MUNWASTEN","DISTLOSS",0,0,"P","",null,null,null,null,null,null,null,null,null,null,null,null,null,null,null,null,null,null,null,null,null,null,null,null,null,null,null,null,null,null,null,null,null,null,null,null,null,null,null,null,null,null,null,null,null,null,null,null,null,null,null,null,null,null,null,null,null,null,null,null,null,null,null,null,null,null,null,null,null,null,null,null,null,null,null,null,null,null,null,null,null,null,null,null,null,null,null,null,null,null,null,null,null,null,null,null,null,null,null,null,null,null,null,null,null,null,null,null,0,"P","","ZZ","W6220","LOSSES","DISTLOSS","_Z","_Z","_Z","_Z","_Z","ENERGY","_Z","TJ_NCV"]
["TJ NCV","Municipal waste (non-renewable)","Total final energy consumption",null,null,null,null,{"$f":"H74+H75+H76","v":0},{"$f":"I74+I75+I76","v":0},"P","",null,null,null,null,null,null,null,null,null,null,null,null,null,null,null,null,null,null,null,null,null,null,null,null,null,null,null,null,null,null,null,null,null,null,null,null,null,null,null,null,null,null,null,null,null,null,null,null,null,null,null,null,null,null,null,null,null,null,null,null,null,null,null,null,null,null,null,null,null,null,null,null,null,null,null,null,null,null,null,null,null,null,null,null,null,null,null,null,null,null,null,null,null,null,null,null,null,null,null,null,null,null,null,null,null,null,null,null,0,"P","","ZZ","W6220","ENERGUSE","FINCONS","_Z","_Z","_Z","_Z","_Z","ENERGY","_Z","TJ_NCV"]
["TJ NCV","Municipal waste (non-renewable)","Industry sector",55432,"DB_101800","MUNWASTEN","TOTIND",0,0,"P","",null,null,null,null,null,null,null,null,null,null,null,null,null,null,null,null,null,null,null,null,null,null,null,null,null,null,null,null,null,null,null,null,null,null,null,null,null,null,null,null,null,null,null,null,null,null,null,null,null,null,null,null,null,null,null,null,null,null,null,null,null,null,null,null,null,null,null,null,null,null,null,null,null,null,null,null,null,null,null,null,null,null,null,null,null,null,null,null,null,null,null,null,null,null,null,null,null,null,null,null,null,null,null,null,null,null,null,null,0,"P","","ZZ","W6220","ENERGUSE","INDUSTRY","_Z","_Z","_Z","_Z","_Z","ENERGY","_Z","TJ_NCV"]
["TJ NCV","Municipal waste (non-renewable)","Transport sector",55432,"B_101900","MUNWASTEN","TOTTRANS",0,0,"P","",null,null,null,null,null,null,null,null,null,null,null,null,null,null,null,null,null,null,null,null,null,null,null,null,null,null,null,null,null,null,null,null,null,null,null,null,null,null,null,null,null,null,null,null,null,null,null,null,null,null,null,null,null,null,null,null,null,null,null,null,null,null,null,null,null,null,null,null,null,null,null,null,null,null,null,null,null,null,null,null,null,null,null,null,null,null,null,null,null,null,null,null,null,null,null,null,null,null,null,null,null,null,null,null,null,null,null,null,0,"P","","ZZ","W6220","ENERGUSE","TRANSPOR","_Z","_Z","_Z","_Z","_Z","ENERGY","_Z","TJ_NCV"]
["TJ NCV","Municipal waste (non-renewable)","Other sectors",55432,"B_102000","MUNWASTEN","TOTOTHER",0,0,"P","",null,null,null,null,null,null,null,null,null,null,null,null,null,null,null,null,null,null,null,null,null,null,null,null,null,null,null,null,null,null,null,null,null,null,null,null,null,null,null,null,null,null,null,null,null,null,null,null,null,null,null,null,null,null,null,null,null,null,null,null,null,null,null,null,null,null,null,null,null,null,null,null,null,null,null,null,null,null,null,null,null,null,null,null,null,null,null,null,null,null,null,null,null,null,null,null,null,null,null,null,null,null,null,null,null,null,null,null,0,"P","","ZZ","W6220","ENERGUSE","OTHSECT","_Z","_Z","_Z","_Z","_Z","ENERGY","_Z","TJ_NCV"]
["TJ NCV","Solid biofuels excluding charcoal","Indigenous production",5541,"B_100100","PRIMSBIO","INDPROD",0,0,"P","",null,null,null,null,null,null,null,null,null,null,null,null,null,null,null,null,null,null,null,null,null,null,null,null,null,null,null,null,null,null,null,null,null,null,null,null,null,null,null,null,null,null,null,null,null,null,null,null,null,null,null,null,null,null,null,null,null,null,null,null,null,null,null,null,null,null,null,null,null,null,null,null,null,null,null,null,null,null,null,null,null,null,null,null,null,null,null,null,null,null,null,null,null,null,null,null,null,null,null,null,null,null,null,null,null,null,null,null,0,"P","","ZZ","R510C","PRODUCT","INDPROD","_Z","_Z","_Z","_Z","_Z","ENERGY","_Z","TJ_NCV"]
["TJ NCV","Solid biofuels excluding charcoal","Total imports (Balance)",5541,"B_100300","PRIMSBIO","TOTIMPSB",0,0,"P","",null,null,null,null,null,null,null,null,null,null,null,null,null,null,null,null,null,null,null,null,null,null,null,null,null,null,null,null,null,null,null,null,null,null,null,null,null,null,null,null,null,null,null,null,null,null,null,null,null,null,null,null,null,null,null,null,null,null,null,null,null,null,null,null,null,null,null,null,null,null,null,null,null,null,null,null,null,null,null,null,null,null,null,null,null,null,null,null,null,null,null,null,null,null,null,null,null,null,null,null,null,null,null,null,null,null,null,null,0,"P","","ZZ","R510C","IMPORTS","TOTIMPSB","_Z","_Z","_Z","_Z","_Z","ENERGY","_Z","TJ_NCV"]
["TJ NCV","Solid biofuels excluding charcoal","Total exports (Balance)",5541,"B_100500","PRIMSBIO","TOTEXPSB",0,0,"P","",null,null,null,null,null,null,null,null,null,null,null,null,null,null,null,null,null,null,null,null,null,null,null,null,null,null,null,null,null,null,null,null,null,null,null,null,null,null,null,null,null,null,null,null,null,null,null,null,null,null,null,null,null,null,null,null,null,null,null,null,null,null,null,null,null,null,null,null,null,null,null,null,null,null,null,null,null,null,null,null,null,null,null,null,null,null,null,null,null,null,null,null,null,null,null,null,null,null,null,null,null,null,null,null,null,null,null,null,0,"P","","ZZ","R510C","EXPORTS","TOTEXPSB","_Z","_Z","_Z","_Z","_Z","ENERGY","_Z","TJ_NCV"]
["TJ NCV","Solid biofuels excluding charcoal","Stock changes (National territory)",5541,"B_100400","PRIMSBIO","STCHANAT",0,0,"P",null,null,null,null,null,null,null,null,null,null,null,null,null,null,null,null,null,null,null,null,null,null,null,null,null,null,null,null,null,null,null,null,null,null,null,null,null,null,null,null,null,null,null,null,null,null,null,null,null,null,null,null,null,null,null,null,null,null,null,null,null,null,null,null,null,null,null,null,null,null,null,null,null,null,null,null,null,null,null,null,null,null,null,null,null,null,null,null,null,null,null,null,null,null,null,null,null,null,null,null,null,null,null,null,null,null,null,null,null,0,"P","","ZZ","R510C","STOCKS","STOCKCH","_Z","_Z","NATTER","_Z","_Z","ENERGY","_Z","TJ_NCV"]
["TJ NCV","Solid biofuels excluding charcoal","Inland consumption (Calculated)",null,null,null,null,{"$f":"H77+H78-H79+H80","v":0},{"$f":"I77+I78-I79+I80","v":0},"P","",null,null,null,null,null,null,null,null,null,null,null,null,null,null,null,null,null,null,null,null,null,null,null,null,null,null,null,null,null,null,null,null,null,null,null,null,null,null,null,null,null,null,null,null,null,null,null,null,null,null,null,null,null,null,null,null,null,null,null,null,null,null,null,null,null,null,null,null,null,null,null,null,null,null,null,null,null,null,null,null,null,null,null,null,null,null,null,null,null,null,null,null,null,null,null,null,null,null,null,null,null,null,null,null,null,null,null,null,0,"P","","ZZ","R510C","SUPPLY","INLDEMC","_Z","_Z","_Z","_Z","_Z","ENERGY","_Z","TJ_NCV"]
["TJ NCV","Solid biofuels excluding charcoal","Statistical Difference",null,null,null,null,{"$f":"H81-H83","v":0},{"$f":"I81-I83","v":0},"P",null,null,null,null,null,null,null,null,null,null,null,null,null,null,null,null,null,null,null,null,null,null,null,null,null,null,null,null,null,null,null,null,null,null,null,null,null,null,null,null,null,null,null,null,null,null,null,null,null,null,null,null,null,null,null,null,null,null,null,null,null,null,null,null,null,null,null,null,null,null,null,null,null,null,null,null,null,null,null,null,null,null,null,null,null,null,null,null,null,null,null,null,null,null,null,null,null,null,null,null,null,null,null,null,null,null,null,null,null,0,"P","","ZZ","R510C","STATDIFF","_Z","_Z","_Z","_Z","_Z","_Z","ENERGY","_Z","TJ_NCV"]
["TJ NCV","Solid biofuels excluding charcoal","Inland consumption (Observed)",null,null,"PRIMSBIO",null,{"$f":"H84+H86+H87+H88","v":0},{"$f":"I84+I86+I87+I88","v":0},"P","",null,null,null,null,null,null,null,null,null,null,null,null,null,null,null,null,null,null,null,null,null,null,null,null,null,null,null,null,null,null,null,null,null,null,null,null,null,null,null,null,null,null,null,null,null,null,null,null,null,null,null,null,null,null,null,null,null,null,null,null,null,null,null,null,null,null,null,null,null,null,null,null,null,null,null,null,null,null,null,null,null,null,null,null,null,null,null,null,null,null,null,null,null,null,null,null,null,null,null,null,null,null,null,null,null,null,null,null,0,"P","","ZZ","R510C","DEMAND","INLDEMO","_Z","_Z","_Z","_Z","_Z","ENERGY","_Z","TJ_NCV"]
["TJ NCV","Solid biofuels excluding charcoal","Transformation sector",5541,"DB_101000","PRIMSBIO","TOTTRANF",0,0,"P","",null,null,null,null,null,null,null,null,null,null,null,null,null,null,null,null,null,null,null,null,null,null,null,null,null,null,null,null,null,null,null,null,null,null,null,null,null,null,null,null,null,null,null,null,null,null,null,null,null,null,null,null,null,null,null,null,null,null,null,null,null,null,null,null,null,null,null,null,null,null,null,null,null,null,null,null,null,null,null,null,null,null,null,null,null,null,null,null,null,null,null,null,null,null,null,null,null,null,null,null,null,null,null,null,null,null,null,null,0,"P","","ZZ","R510C","TRANSFOR","TOTRANSF","_Z","_Z","_Z","_Z","_Z","ENERGY","_Z","TJ_NCV"]
["TJ NCV","Solid biofuels excluding charcoal","     of which for blending",null,null,null,null,null,null,"P",null,null,null,null,null,null,null,null,null,null,null,null,null,null,null,null,null,null,null,null,null,null,null,null,null,null,null,null,null,null,null,null,null,null,null,null,null,null,null,null,null,null,null,null,null,null,null,null,null,null,null,null,null,null,null,null,null,null,null,null,null,null,null,null,null,null,null,null,null,null,null,null,null,null,null,null,null,null,null,null,null,null,null,null,null,null,null,null,null,null,null,null,null,null,null,null,null,null,null,null,null,null,null,null,null,null,null,null,null,0,"P","","ZZ","R510C",null,null,null,null,null,null,null,"ENERGY","_Z","TJ_NCV"]
["TJ NCV","Solid biofuels excluding charcoal","Energy sector",5541,"DB_101300","PRIMSBIO","TOTENGY",0,0,"P","",null,null,null,null,null,null,null,null,null,null,null,null,null,null,null,null,null,null,null,null,null,null,null,null,null,null,null,null,null,null,null,null,null,null,null,null,null,null,null,null,null,null,null,null,null,null,null,null,null,null,null,null,null,null,null,null,null,null,null,null,null,null,null,null,null,null,null,null,null,null,null,null,null,null,null,null,null,null,null,null,null,null,null,null,null,null,null,null,null,null,null,null,null,null,null,null,null,null,null,null,null,null,null,null,null,null,null,null,0,"P","","ZZ","R510C","ENERGUSE","ENERSECT","_Z","_Z","_Z","_Z","_Z","ENERGY","_Z","TJ_NCV"]
["TJ NCV","Solid biofuels excluding charcoal","Distribution losses",5541,"B_101400","PRIMSBIO","DISTLOSS",0,0,"P","",null,null,null,null,null,null,null,null,null,null,null,null,null,null,null,null,null,null,null,null,null,null,null,null,null,null,null,null,null,null,null,null,null,null,null,null,null,null,null,null,null,null,null,null,null,null,null,null,null,null,null,null,null,null,null,null,null,null,null,null,null,null,null,null,null,null,null,null,null,null,null,null,null,null,null,null,null,null,null,null,null,null,null,null,null,null,null,null,null,null,null,null,null,null,null,null,null,null,null,null,null,null,null,null,null,null,null,null,0,"P","","ZZ","R510C","LOSSES","DISTLOSS","_Z","_Z","_Z","_Z","_Z","ENERGY","_Z","TJ_NCV"]
["TJ NCV","Solid biofuels excluding charcoal","Total final energy consumption",null,null,null,null,{"$f":"H89+H90+H91","v":0},{"$f":"I89+I90+I91","v":0},"P","",null,null,null,null,null,null,null,null,null,null,null,null,null,null,null,null,null,null,null,null,null,null,null,null,null,null,null,null,null,null,null,null,null,null,null,null,null,null,null,null,null,null,null,null,null,null,null,null,null,null,null,null,null,null,null,null,null,null,null,null,null,null,null,null,null,null,null,null,null,null,null,null,null,null,null,null,null,null,null,null,null,null,null,null,null,null,null,null,null,null,null,null,null,null,null,null,null,null,null,null,null,null,null,null,null,null,null,null,0,"P","","ZZ","R510C","ENERGUSE","FINCONS","_Z","_Z","_Z","_Z","_Z","ENERGY","_Z","TJ_NCV"]
["TJ NCV","Solid biofuels excluding charcoal","Industry sector",5541,"DB_101800","PRIMSBIO","TOTIND",0,0,"P","",null,null,null,null,null,null,null,null,null,null,null,null,null,null,null,null,null,null,null,null,null,null,null,null,null,null,null,null,null,null,null,null,null,null,null,null,null,null,null,null,null,null,null,null,null,null,null,null,null,null,null,null,null,null,null,null,null,null,null,null,null,null,null,null,null,null,null,null,null,null,null,null,null,null,null,null,null,null,null,null,null,null,null,null,null,null,null,null,null,null,null,null,null,null,null,null,null,null,null,null,null,null,null,null,null,null,null,null,0,"P","","ZZ","R510C","ENERGUSE","INDUSTRY","_Z","_Z","_Z","_Z","_Z","ENERGY","_Z","TJ_NCV"]
["TJ NCV","Solid biofuels excluding charcoal","Transport sector",5541,"B_101900","PRIMSBIO","TOTTRANS",0,0,"P","",null,null,null,null,null,null,null,null,null,null,null,null,null,null,null,null,null,null,null,null,null,null,null,null,null,null,null,null,null,null,null,null,null,null,null,null,null,null,null,null,null,null,null,null,null,null,null,null,null,null,null,null,null,null,null,null,null,null,null,null,null,null,null,null,null,null,null,null,null,null,null,null,null,null,null,null,null,null,null,null,null,null,null,null,null,null,null,null,null,null,null,null,null,null,null,null,null,null,null,null,null,null,null,null,null,null,null,null,0,"P","","ZZ","R510C","ENERGUSE","TRANSPOR","_Z","_Z","_Z","_Z","_Z","ENERGY","_Z","TJ_NCV"]
["TJ NCV","Solid biofuels excluding charcoal","Other sectors",5541,"B_102000","PRIMSBIO","TOTOTHER",0,0,"P","",null,null,null,null,null,null,null,null,null,null,null,null,null,null,null,null,null,null,null,null,null,null,null,null,null,null,null,null,null,null,null,null,null,null,null,null,null,null,null,null,null,null,null,null,null,null,null,null,null,null,null,null,null,null,null,null,null,null,null,null,null,null,null,null,null,null,null,null,null,null,null,null,null,null,null,null,null,null,null,null,null,null,null,null,null,null,null,null,null,null,null,null,null,null,null,null,null,null,null,null,null,null,null,null,null,null,null,null,0,"P","","ZZ","R510C","ENERGUSE","OTHSECT","_Z","_Z","_Z","_Z","_Z","ENERGY","_Z","TJ_NCV"]
["kt","Charcoal","Indigenous production",5544,"B_101115","CHARCOAL","INDPROD",0,0,"P","",null,null,null,null,null,null,null,null,null,null,null,null,null,null,null,null,null,null,null,null,null,null,null,null,null,null,null,null,null,null,null,null,null,null,null,null,null,null,null,null,null,null,null,null,null,null,null,null,null,null,null,null,null,null,null,null,null,null,null,null,null,null,null,null,null,null,null,null,null,null,null,null,null,null,null,null,null,null,null,null,null,null,null,null,null,null,null,null,null,null,null,null,null,null,null,null,null,null,null,null,null,null,null,null,null,null,null,null,0,"P","","ZZ","R5160","PRODUCT","INDPROD","_Z","_Z","_Z","_Z","_Z","WEIGHT","_Z","KT"]
["kt","Charcoal","Total imports (Balance)",5544,"B_100300","CHARCOAL","TOTIMPSB",0,0,"P","",null,null,null,null,null,null,null,null,null,null,null,null,null,null,null,null,null,null,null,null,null,null,null,null,null,null,null,null,null,null,null,null,null,null,null,null,null,null,null,null,null,null,null,null,null,null,null,null,null,null,null,null,null,null,null,null,null,null,null,null,null,null,null,null,null,null,null,null,null,null,null,null,null,null,null,null,null,null,null,null,null,null,null,null,null,null,null,null,null,null,null,null,null,null,null,null,null,null,null,null,null,null,null,null,null,null,null,null,0,"P","","ZZ","R5160","IMPORTS","TOTIMPSB","_Z","_Z","_Z","_Z","_Z","WEIGHT","_Z","KT"]
["kt","Charcoal","Total exports (Balance)",5544,"B_100500","CHARCOAL","TOTEXPSB",0,0,"P","",null,null,null,null,null,null,null,null,null,null,null,null,null,null,null,null,null,null,null,null,null,null,null,null,null,null,null,null,null,null,null,null,null,null,null,null,null,null,null,null,null,null,null,null,null,null,null,null,null,null,null,null,null,null,null,null,null,null,null,null,null,null,null,null,null,null,null,null,null,null,null,null,null,null,null,null,null,null,null,null,null,null,null,null,null,null,null,null,null,null,null,null,null,null,null,null,null,null,null,null,null,null,null,null,null,null,null,null,0,"P","","ZZ","R5160","EXPORTS","TOTEXPSB","_Z","_Z","_Z","_Z","_Z","WEIGHT","_Z","KT"]
["kt","Charcoal","Stock changes (National territory)",5544,"B_100400","CHARCOAL","STCHANAT",0,0,"P",null,null,null,null,null,null,null,null,null,null,null,null,null,null,null,null,null,null,null,null,null,null,null,null,null,null,null,null,null,null,null,null,null,null,null,null,null,null,null,null,null,null,null,null,null,null,null,null,null,null,null,null,null,null,null,null,null,null,null,null,null,null,null,null,null,null,null,null,null,null,null,null,null,null,null,null,null,null,null,null,null,null,null,null,null,null,null,null,null,null,null,null,null,null,null,null,null,null,null,null,null,null,null,null,null,null,null,null,null,0,"P","","ZZ","R5160","STOCKS","STOCKCH","_Z","_Z","NATTER","_Z","_Z","WEIGHT","_Z","KT"]
["kt","Charcoal","Inland consumption (Calculated)",null,null,null,null,{"$f":"H92+H93-H94+H95","v":0},{"$f":"I92+I93-I94+I95","v":0},"P","",null,null,null,null,null,null,null,null,null,null,null,null,null,null,null,null,null,null,null,null,null,null,null,null,null,null,null,null,null,null,null,null,null,null,null,null,null,null,null,null,null,null,null,null,null,null,null,null,null,null,null,null,null,null,null,null,null,null,null,null,null,null,null,null,null,null,null,null,null,null,null,null,null,null,null,null,null,null,null,null,null,null,null,null,null,null,null,null,null,null,null,null,null,null,null,null,null,null,null,null,null,null,null,null,null,null,null,null,0,"P","","ZZ","R5160","SUPPLY","INLDEMC","_Z","_Z","_Z","_Z","_Z","WEIGHT","_Z","KT"]
["kt","Charcoal","Statistical Difference",null,null,null,null,{"$f":"H96-H98","v":0},{"$f":"I96-I98","v":0},"P",null,null,null,null,null,null,null,null,null,null,null,null,null,null,null,null,null,null,null,null,null,null,null,null,null,null,null,null,null,null,null,null,null,null,null,null,null,null,null,null,null,null,null,null,null,null,null,null,null,null,null,null,null,null,null,null,null,null,null,null,null,null,null,null,null,null,null,null,null,null,null,null,null,null,null,null,null,null,null,null,null,null,null,null,null,null,null,null,null,null,null,null,null,null,null,null,null,null,null,null,null,null,null,null,null,null,null,null,null,0,"P","","ZZ","R5160","STATDIFF","_Z","_Z","_Z","_Z","_Z","_Z","WEIGHT","_Z","KT"]
["kt","Charcoal","Inland consumption (Observed)",null,null,"CHARCOAL",null,{"$f":"H99+H101+H102+H103","v":0},{"$f":"I99+I101+I102+I103","v":0},"P","",null,null,null,null,null,null,null,null,null,null,null,null,null,null,null,null,null,null,null,null,null,null,null,null,null,null,null,null,null,null,null,null,null,null,null,null,null,null,null,null,null,null,null,null,null,null,null,null,null,null,null,null,null,null,null,null,null,null,null,null,null,null,null,null,null,null,null,null,null,null,null,null,null,null,null,null,null,null,null,null,null,null,null,null,null,null,null,null,null,null,null,null,null,null,null,null,null,null,null,null,null,null,null,null,null,null,null,null,0,"P","","ZZ","R5160","DEMAND","INLDEMO","_Z","_Z","_Z","_Z","_Z","WEIGHT","_Z","KT"]
["kt","Charcoal","Transformation sector",5544,"DB_101000","CHARCOAL","TOTTRANF",0,0,"P","",null,null,null,null,null,null,null,null,null,null,null,null,null,null,null,null,null,null,null,null,null,null,null,null,null,null,null,null,null,null,null,null,null,null,null,null,null,null,null,null,null,null,null,null,null,null,null,null,null,null,null,null,null,null,null,null,null,null,null,null,null,null,null,null,null,null,null,null,null,null,null,null,null,null,null,null,null,null,null,null,null,null,null,null,null,null,null,null,null,null,null,null,null,null,null,null,null,null,null,null,null,null,null,null,null,null,null,null,0,"P","","ZZ","R5160","TRANSFOR","TOTRANSF","_Z","_Z","_Z","_Z","_Z","WEIGHT","_Z","KT"]
["kt","Charcoal","     of which for blending",null,null,null,null,null,null,"P",null,null,null,null,null,null,null,null,null,null,null,null,null,null,null,null,null,null,null,null,null,null,null,null,null,null,null,null,null,null,null,null,null,null,null,null,null,null,null,null,null,null,null,null,null,null,null,null,null,null,null,null,null,null,null,null,null,null,null,null,null,null,null,null,null,null,null,null,null,null,null,null,null,null,null,null,null,null,null,null,null,null,null,null,null,null,null,null,null,null,null,null,null,null,null,null,null,null,null,null,null,null,null,null,null,null,null,null,null,0,"P","","ZZ","R5160"]
["kt","Charcoal","Energy sector",5544,"DB_101300","CHARCOAL","TOTENGY",0,0,"P","",null,null,null,null,null,null,null,null,null,null,null,null,null,null,null,null,null,null,null,null,null,null,null,null,null,null,null,null,null,null,null,null,null,null,null,null,null,null,null,null,null,null,null,null,null,null,null,null,null,null,null,null,null,null,null,null,null,null,null,null,null,null,null,null,null,null,null,null,null,null,null,null,null,null,null,null,null,null,null,null,null,null,null,null,null,null,null,null,null,null,null,null,null,null,null,null,null,null,null,null,null,null,null,null,null,null,null,null,0,"P","","ZZ","R5160","ENERGUSE","ENERSECT","_Z","_Z","_Z","_Z","_Z","WEIGHT","_Z","KT"]
["kt","Charcoal","Distribution losses",5544,"B_101400","CHARCOAL","DISTLOSS",0,0,"P","",null,null,null,null,null,null,null,null,null,null,null,null,null,null,null,null,null,null,null,null,null,null,null,null,null,null,null,null,null,null,null,null,null,null,null,null,null,null,null,null,null,null,null,null,null,null,null,null,null,null,null,null,null,null,null,null,null,null,null,null,null,null,null,null,null,null,null,null,null,null,null,null,null,null,null,null,null,null,null,null,null,null,null,null,null,null,null,null,null,null,null,null,null,null,null,null,null,null,null,null,null,null,null,null,null,null,null,null,0,"P","","ZZ","R5160","LOSSES","DISTLOSS","_Z","_Z","_Z","_Z","_Z","WEIGHT","_Z","KT"]
["kt","Charcoal","Total final energy consumption",null,null,null,null,{"$f":"H104+H105+H106","v":0},{"$f":"I104+I105+I106","v":0},"P","",null,null,null,null,null,null,null,null,null,null,null,null,null,null,null,null,null,null,null,null,null,null,null,null,null,null,null,null,null,null,null,null,null,null,null,null,null,null,null,null,null,null,null,null,null,null,null,null,null,null,null,null,null,null,null,null,null,null,null,null,null,null,null,null,null,null,null,null,null,null,null,null,null,null,null,null,null,null,null,null,null,null,null,null,null,null,null,null,null,null,null,null,null,null,null,null,null,null,null,null,null,null,null,null,null,null,null,null,0,"P","","ZZ","R5160","ENERGUSE","FINCONS","_Z","_Z","_Z","_Z","_Z","WEIGHT","_Z","KT"]
["kt","Charcoal","Industry sector",5544,"DB_101800","CHARCOAL","TOTIND",0,0,"P","",null,null,null,null,null,null,null,null,null,null,null,null,null,null,null,null,null,null,null,null,null,null,null,null,null,null,null,null,null,null,null,null,null,null,null,null,null,null,null,null,null,null,null,null,null,null,null,null,null,null,null,null,null,null,null,null,null,null,null,null,null,null,null,null,null,null,null,null,null,null,null,null,null,null,null,null,null,null,null,null,null,null,null,null,null,null,null,null,null,null,null,null,null,null,null,null,null,null,null,null,null,null,null,null,null,null,null,null,0,"P","","ZZ","R5160","ENERGUSE","INDUSTRY","_Z","_Z","_Z","_Z","_Z","WEIGHT","_Z","KT"]
["kt","Charcoal","Transport sector",5544,"B_101900","CHARCOAL","TOTTRANS",0,0,"P","",null,null,null,null,null,null,null,null,null,null,null,null,null,null,null,null,null,null,null,null,null,null,null,null,null,null,null,null,null,null,null,null,null,null,null,null,null,null,null,null,null,null,null,null,null,null,null,null,null,null,null,null,null,null,null,null,null,null,null,null,null,null,null,null,null,null,null,null,null,null,null,null,null,null,null,null,null,null,null,null,null,null,null,null,null,null,null,null,null,null,null,null,null,null,null,null,null,null,null,null,null,null,null,null,null,null,null,null,0,"P","","ZZ","R5160","ENERGUSE","TRANSPOR","_Z","_Z","_Z","_Z","_Z","WEIGHT","_Z","KT"]
["kt","Charcoal","Other sectors",5544,"B_102000","CHARCOAL","TOTOTHER",0,0,"P","",null,null,null,null,null,null,null,null,null,null,null,null,null,null,null,null,null,null,null,null,null,null,null,null,null,null,null,null,null,null,null,null,null,null,null,null,null,null,null,null,null,null,null,null,null,null,null,null,null,null,null,null,null,null,null,null,null,null,null,null,null,null,null,null,null,null,null,null,null,null,null,null,null,null,null,null,null,null,null,null,null,null,null,null,null,null,null,null,null,null,null,null,null,null,null,null,null,null,null,null,null,null,null,null,null,null,null,null,0,"P","","ZZ","R5160","ENERGUSE","OTHSECT","_Z","_Z","_Z","_Z","_Z","WEIGHT","_Z","KT"]
["TJ NCV","Biogases","Indigenous production","5542","B_100100","BIOGASES","INDPROD",0,0,"P","",null,null,null,null,null,null,null,null,null,null,null,null,null,null,null,null,null,null,null,null,null,null,null,null,null,null,null,null,null,null,null,null,null,null,null,null,null,null,null,null,null,null,null,null,null,null,null,null,null,null,null,null,null,null,null,null,null,null,null,null,null,null,null,null,null,null,null,null,null,null,null,null,null,null,null,null,null,null,null,null,null,null,null,null,null,null,null,null,null,null,null,null,null,null,null,null,null,null,null,null,null,null,null,null,null,null,null,null,0,"P","","ZZ","R5300","PRODUCT","INDPROD","_Z","_Z","_Z","_Z","_Z","ENERGY","_Z","TJ_NCV"]
["TJ NCV","Biogases","Total imports (Balance)","5542","B_100300","BIOGASES","TOTIMPSB",0,0,"P","",null,null,null,null,null,null,null,null,null,null,null,null,null,null,null,null,null,null,null,null,null,null,null,null,null,null,null,null,null,null,null,null,null,null,null,null,null,null,null,null,null,null,null,null,null,null,null,null,null,null,null,null,null,null,null,null,null,null,null,null,null,null,null,null,null,null,null,null,null,null,null,null,null,null,null,null,null,null,null,null,null,null,null,null,null,null,null,null,null,null,null,null,null,null,null,null,null,null,null,null,null,null,null,null,null,null,null,null,0,"P","","ZZ","R5300","IMPORTS","TOTIMPSB","_Z","_Z","_Z","_Z","_Z","ENERGY","_Z","TJ_NCV"]
["TJ NCV","Biogases","Total exports (Balance)","5542","B_100500","BIOGASES","TOTEXPSB",0,0,"P","",null,null,null,null,null,null,null,null,null,null,null,null,null,null,null,null,null,null,null,null,null,null,null,null,null,null,null,null,null,null,null,null,null,null,null,null,null,null,null,null,null,null,null,null,null,null,null,null,null,null,null,null,null,null,null,null,null,null,null,null,null,null,null,null,null,null,null,null,null,null,null,null,null,null,null,null,null,null,null,null,null,null,null,null,null,null,null,null,null,null,null,null,null,null,null,null,null,null,null,null,null,null,null,null,null,null,null,null,0,"P","","ZZ","R5300","EXPORTS","TOTEXPSB","_Z","_Z","_Z","_Z","_Z","ENERGY","_Z","TJ_NCV"]
["TJ NCV","Biogases","Stock changes (National territory)","5542","B_100400","BIOGASES","STCHANAT",0,0,"P",null,null,null,null,null,null,null,null,null,null,null,null,null,null,null,null,null,null,null,null,null,null,null,null,null,null,null,null,null,null,null,null,null,null,null,null,null,null,null,null,null,null,null,null,null,null,null,null,null,null,null,null,null,null,null,null,null,null,null,null,null,null,null,null,null,null,null,null,null,null,null,null,null,null,null,null,null,null,null,null,null,null,null,null,null,null,null,null,null,null,null,null,null,null,null,null,null,null,null,null,null,null,null,null,null,null,null,null,null,0,"P","","ZZ","R5300","STOCKS","STOCKCH","_Z","_Z","NATTER","_Z","_Z","ENERGY","_Z","TJ_NCV"]
["TJ NCV","Biogases","Inland consumption (Calculated)",null,null,null,null,{"$f":"H107+H108-H109+H110","v":0},{"$f":"I107+I108-I109+I110","v":0},"P","",null,null,null,null,null,null,null,null,null,null,null,null,null,null,null,null,null,null,null,null,null,null,null,null,null,null,null,null,null,null,null,null,null,null,null,null,null,null,null,null,null,null,null,null,null,null,null,null,null,null,null,null,null,null,null,null,null,null,null,null,null,null,null,null,null,null,null,null,null,null,null,null,null,null,null,null,null,null,null,null,null,null,null,null,null,null,null,null,null,null,null,null,null,null,null,null,null,null,null,null,null,null,null,null,null,null,null,null,0,"P","","ZZ","R5300","SUPPLY","INLDEMC","_Z","_Z","_Z","_Z","_Z","ENERGY","_Z","TJ_NCV"]
["TJ NCV","Biogases","Statistical Difference",null,null,null,null,{"$f":"H111-H113","v":0},{"$f":"I111-I113","v":0},"P",null,null,null,null,null,null,null,null,null,null,null,null,null,null,null,null,null,null,null,null,null,null,null,null,null,null,null,null,null,null,null,null,null,null,null,null,null,null,null,null,null,null,null,null,null,null,null,null,null,null,null,null,null,null,null,null,null,null,null,null,null,null,null,null,null,null,null,null,null,null,null,null,null,null,null,null,null,null,null,null,null,null,null,null,null,null,null,null,null,null,null,null,null,null,null,null,null,null,null,null,null,null,null,null,null,null,null,null,null,0,"P","","ZZ","R5300","STATDIFF","_Z","_Z","_Z","_Z","_Z","_Z","ENERGY","_Z","TJ_NCV"]
["TJ NCV","Biogases","Inland consumption (Observed)",null,null,"BIOGASES",null,{"$f":"H114+H116+H117+H118","v":0},{"$f":"I114+I116+I117+I118","v":0},"P",{"$f":"IF(ISERROR(I113/H113),\"\",(I113/H113)-1)","v":""},null,null,null,null,null,null,null,null,null,null,null,null,null,null,null,null,null,null,null,null,null,null,null,null,null,null,null,null,null,null,null,null,null,null,null,null,null,null,null,null,null,null,null,null,null,null,null,null,null,null,null,null,null,null,null,null,null,null,null,null,null,null,null,null,null,null,null,null,null,null,null,null,null,null,null,null,null,null,null,null,null,null,null,null,null,null,null,null,null,null,null,null,null,null,null,null,null,null,null,null,null,null,null,null,null,null,null,null,0,"P","","ZZ","R5300","DEMAND","INLDEMO","_Z","_Z","_Z","_Z","_Z","ENERGY","_Z","TJ_NCV"]
["TJ NCV","Biogases","Transformation sector","5542","DB_101000","BIOGASES","TOTTRANF",0,0,"P","",null,null,null,null,null,null,null,null,null,null,null,null,null,null,null,null,null,null,null,null,null,null,null,null,null,null,null,null,null,null,null,null,null,null,null,null,null,null,null,null,null,null,null,null,null,null,null,null,null,null,null,null,null,null,null,null,null,null,null,null,null,null,null,null,null,null,null,null,null,null,null,null,null,null,null,null,null,null,null,null,null,null,null,null,null,null,null,null,null,null,null,null,null,null,null,null,null,null,null,null,null,null,null,null,null,null,null,null,0,"P","","ZZ","R5300","TRANSFOR","TOTRANSF","_Z","_Z","_Z","_Z","_Z","ENERGY","_Z","TJ_NCV"]
["TJ NCV","Biogases","     of which for blending","5542","B_101013",null,null,0,0,"P","",null,null,null,null,null,null,null,null,null,null,null,null,null,null,null,null,null,null,null,null,null,null,null,null,null,null,null,null,null,null,null,null,null,null,null,null,null,null,null,null,null,null,null,null,null,null,null,null,null,null,null,null,null,null,null,null,null,null,null,null,null,null,null,null,null,null,null,null,null,null,null,null,null,null,null,null,null,null,null,null,null,null,null,null,null,null,null,null,null,null,null,null,null,null,null,null,null,null,null,null,null,null,null,null,null,null,null,null,0,"P","","ZZ","R5300","TRANSFOR","BLENGASP","_Z","_Z","_Z","_Z","_Z","ENERGY","_Z","TJ_NCV"]
["TJ NCV","Biogases","Energy sector","5542","DB_101300","BIOGASES","TOTENGY",0,0,"P","",null,null,null,null,null,null,null,null,null,null,null,null,null,null,null,null,null,null,null,null,null,null,null,null,null,null,null,null,null,null,null,null,null,null,null,null,null,null,null,null,null,null,null,null,null,null,null,null,null,null,null,null,null,null,null,null,null,null,null,null,null,null,null,null,null,null,null,null,null,null,null,null,null,null,null,null,null,null,null,null,null,null,null,null,null,null,null,null,null,null,null,null,null,null,null,null,null,null,null,null,null,null,null,null,null,null,null,null,0,"P","","ZZ","R5300","ENERGUSE","ENERSECT","_Z","_Z","_Z","_Z","_Z","ENERGY","_Z","TJ_NCV"]
["TJ NCV","Biogases","Distribution losses","5542","B_101400","BIOGASES","DISTLOSS",0,0,"P","",null,null,null,null,null,null,null,null,null,null,null,null,null,null,null,null,null,null,null,null,null,null,null,null,null,null,null,null,null,null,null,null,null,null,null,null,null,null,null,null,null,null,null,null,null,null,null,null,null,null,null,null,null,null,null,null,null,null,null,null,null,null,null,null,null,null,null,null,null,null,null,null,null,null,null,null,null,null,null,null,null,null,null,null,null,null,null,null,null,null,null,null,null,null,null,null,null,null,null,null,null,null,null,null,null,null,null,null,0,"P","","ZZ","R5300","LOSSES","DISTLOSS","_Z","_Z","_Z","_Z","_Z","ENERGY","_Z","TJ_NCV"]
["TJ NCV","Biogases","Total final energy consumption",null,null,null,null,{"$f":"H119+H120+H121","v":0},{"$f":"I119+I120+I121","v":0},"P","",null,null,null,null,null,null,null,null,null,null,null,null,null,null,null,null,null,null,null,null,null,null,null,null,null,null,null,null,null,null,null,null,null,null,null,null,null,null,null,null,null,null,null,null,null,null,null,null,null,null,null,null,null,null,null,null,null,null,null,null,null,null,null,null,null,null,null,null,null,null,null,null,null,null,null,null,null,null,null,null,null,null,null,null,null,null,null,null,null,null,null,null,null,null,null,null,null,null,null,null,null,null,null,null,null,null,null,null,0,"P","","ZZ","R5300","ENERGUSE","FINCONS","_Z","_Z","_Z","_Z","_Z","ENERGY","_Z","TJ_NCV"]
["TJ NCV","Biogases","Industry sector","5542","DB_101800","BIOGASES","TOTIND",0,0,"P","",null,null,null,null,null,null,null,null,null,null,null,null,null,null,null,null,null,null,null,null,null,null,null,null,null,null,null,null,null,null,null,null,null,null,null,null,null,null,null,null,null,null,null,null,null,null,null,null,null,null,null,null,null,null,null,null,null,null,null,null,null,null,null,null,null,null,null,null,null,null,null,null,null,null,null,null,null,null,null,null,null,null,null,null,null,null,null,null,null,null,null,null,null,null,null,null,null,null,null,null,null,null,null,null,null,null,null,null,0,"P","","ZZ","R5300","ENERGUSE","INDUSTRY","_Z","_Z","_Z","_Z","_Z","ENERGY","_Z","TJ_NCV"]
["TJ NCV","Biogases","Transport sector","5542","B_101900","BIOGASES","TOTTRANS",0,0,"P","",null,null,null,null,null,null,null,null,null,null,null,null,null,null,null,null,null,null,null,null,null,null,null,null,null,null,null,null,null,null,null,null,null,null,null,null,null,null,null,null,null,null,null,null,null,null,null,null,null,null,null,null,null,null,null,null,null,null,null,null,null,null,null,null,null,null,null,null,null,null,null,null,null,null,null,null,null,null,null,null,null,null,null,null,null,null,null,null,null,null,null,null,null,null,null,null,null,null,null,null,null,null,null,null,null,null,null,null,0,"P","","ZZ","R5300","ENERGUSE","TRANSPOR","_Z","_Z","_Z","_Z","_Z","ENERGY","_Z","TJ_NCV"]
["TJ NCV","Biogases","Other sectors","5542","B_102000","BIOGASES","TOTOTHER",0,0,"P","",null,null,null,null,null,null,null,null,null,null,null,null,null,null,null,null,null,null,null,null,null,null,null,null,null,null,null,null,null,null,null,null,null,null,null,null,null,null,null,null,null,null,null,null,null,null,null,null,null,null,null,null,null,null,null,null,null,null,null,null,null,null,null,null,null,null,null,null,null,null,null,null,null,null,null,null,null,null,null,null,null,null,null,null,null,null,null,null,null,null,null,null,null,null,null,null,null,null,null,null,null,null,null,null,null,null,null,null,0,"P","","ZZ","R5300","ENERGUSE","OTHSECT","_Z","_Z","_Z","_Z","_Z","ENERGY","_Z","TJ_NCV"]
["kt","Biogasoline","Indigenous production","5546R","B_100100","BIOGASOL","INDPROD",0,0,"P","",null,null,null,null,null,null,null,null,null,null,null,null,null,null,null,null,null,null,null,null,null,null,null,null,null,null,null,null,null,null,null,null,null,null,null,null,null,null,null,null,null,null,null,null,null,null,null,null,null,null,null,null,null,null,null,null,null,null,null,null,null,null,null,null,null,null,null,null,null,null,null,null,null,null,null,null,null,null,null,null,null,null,null,null,null,null,null,null,null,null,null,null,null,null,null,null,null,null,null,null,null,null,null,null,null,null,null,null,0,"P","","ZZ","R5211","PRODUCT","INDPROD","_Z","_Z","_Z","_Z","_Z","WEIGHT","_Z","KT"]
["kt","Biogasoline","Total imports (Balance)","5546R","B_100300","BIOGASOL","TOTIMPSB",0,0,"P","",null,null,null,null,null,null,null,null,null,null,null,null,null,null,null,null,null,null,null,null,null,null,null,null,null,null,null,null,null,null,null,null,null,null,null,null,null,null,null,null,null,null,null,null,null,null,null,null,null,null,null,null,null,null,null,null,null,null,null,null,null,null,null,null,null,null,null,null,null,null,null,null,null,null,null,null,null,null,null,null,null,null,null,null,null,null,null,null,null,null,null,null,null,null,null,null,null,null,null,null,null,null,null,null,null,null,null,null,0,"P","","ZZ","R5211","IMPORTS","TOTIMPSB","_Z","_Z","_Z","_Z","_Z","WEIGHT","_Z","KT"]
["kt","Biogasoline","Total exports (Balance)","5546R","B_100500","BIOGASOL","TOTEXPSB",0,0,"P","",null,null,null,null,null,null,null,null,null,null,null,null,null,null,null,null,null,null,null,null,null,null,null,null,null,null,null,null,null,null,null,null,null,null,null,null,null,null,null,null,null,null,null,null,null,null,null,null,null,null,null,null,null,null,null,null,null,null,null,null,null,null,null,null,null,null,null,null,null,null,null,null,null,null,null,null,null,null,null,null,null,null,null,null,null,null,null,null,null,null,null,null,null,null,null,null,null,null,null,null,null,null,null,null,null,null,null,null,0,"P","","ZZ","R5211","EXPORTS","TOTEXPSB","_Z","_Z","_Z","_Z","_Z","WEIGHT","_Z","KT"]
["kt","Biogasoline","Stock changes (National territory)","5546R","B_100400","BIOGASOL","STCHANAT",0,0,"P",null,null,null,null,null,null,null,null,null,null,null,null,null,null,null,null,null,null,null,null,null,null,null,null,null,null,null,null,null,null,null,null,null,null,null,null,null,null,null,null,null,null,null,null,null,null,null,null,null,null,null,null,null,null,null,null,null,null,null,null,null,null,null,null,null,null,null,null,null,null,null,null,null,null,null,null,null,null,null,null,null,null,null,null,null,null,null,null,null,null,null,null,null,null,null,null,null,null,null,null,null,null,null,null,null,null,null,null,null,0,"P","","ZZ","R5211","STOCKS","STOCKCH","_Z","_Z","NATTER","_Z","_Z","WEIGHT","_Z","KT"]
["kt","Biogasoline","Inland consumption (Calculated)",null,null,null,null,{"$f":"H122+H123-H124+H125","v":0},{"$f":"I122+I123-I124+I125","v":0},"P","",null,null,null,null,null,null,null,null,null,null,null,null,null,null,null,null,null,null,null,null,null,null,null,null,null,null,null,null,null,null,null,null,null,null,null,null,null,null,null,null,null,null,null,null,null,null,null,null,null,null,null,null,null,null,null,null,null,null,null,null,null,null,null,null,null,null,null,null,null,null,null,null,null,null,null,null,null,null,null,null,null,null,null,null,null,null,null,null,null,null,null,null,null,null,null,null,null,null,null,null,null,null,null,null,null,null,null,null,0,"P","","ZZ","R5211","SUPPLY","INLDEMC","_Z","_Z","_Z","_Z","_Z","WEIGHT","_Z","KT"]
["kt","Biogasoline","Statistical Difference",null,null,null,null,{"$f":"H126-H128","v":0},{"$f":"I126-I128","v":0},"P",null,null,null,null,null,null,null,null,null,null,null,null,null,null,null,null,null,null,null,null,null,null,null,null,null,null,null,null,null,null,null,null,null,null,null,null,null,null,null,null,null,null,null,null,null,null,null,null,null,null,null,null,null,null,null,null,null,null,null,null,null,null,null,null,null,null,null,null,null,null,null,null,null,null,null,null,null,null,null,null,null,null,null,null,null,null,null,null,null,null,null,null,null,null,null,null,null,null,null,null,null,null,null,null,null,null,null,null,null,0,"P","","ZZ","R5211","STATDIFF","_Z","_Z","_Z","_Z","_Z","_Z","WEIGHT","_Z","KT"]
["kt","Biogasoline","Inland consumption (Observed)",null,null,"BIOGASOL",null,{"$f":"H129+H131+H132+H133","v":0},{"$f":"I129+I131+I132+I133","v":0},"P","",null,null,null,null,null,null,null,null,null,null,null,null,null,null,null,null,null,null,null,null,null,null,null,null,null,null,null,null,null,null,null,null,null,null,null,null,null,null,null,null,null,null,null,null,null,null,null,null,null,null,null,null,null,null,null,null,null,null,null,null,null,null,null,null,null,null,null,null,null,null,null,null,null,null,null,null,null,null,null,null,null,null,null,null,null,null,null,null,null,null,null,null,null,null,null,null,null,null,null,null,null,null,null,null,null,null,null,null,0,"P","","ZZ","R5211","DEMAND","INLDEMO","_Z","_Z","_Z","_Z","_Z","WEIGHT","_Z","KT"]
["kt","Biogasoline","Transformation sector","5546R","DB_101000","BIOGASOL","TOTTRANF",0,0,"P","",null,null,null,null,null,null,null,null,null,null,null,null,null,null,null,null,null,null,null,null,null,null,null,null,null,null,null,null,null,null,null,null,null,null,null,null,null,null,null,null,null,null,null,null,null,null,null,null,null,null,null,null,null,null,null,null,null,null,null,null,null,null,null,null,null,null,null,null,null,null,null,null,null,null,null,null,null,null,null,null,null,null,null,null,null,null,null,null,null,null,null,null,null,null,null,null,null,null,null,null,null,null,null,null,null,null,null,null,0,"P","","ZZ","R5211","TRANSFOR","TOTRANSF","_Z","_Z","_Z","_Z","_Z","WEIGHT","_Z","KT"]
["kt","Biogasoline","     of which for blending","5546R","B_101014",null,null,0,0,"P",{"$f":"IF(ISERROR(I130/H130),\"\",(I130/H130)-1)","v":""},null,null,null,null,null,null,null,null,null,null,null,null,null,null,null,null,null,null,null,null,null,null,null,null,null,null,null,null,null,null,null,null,null,null,null,null,null,null,null,null,null,null,null,null,null,null,null,null,null,null,null,null,null,null,null,null,null,null,null,null,null,null,null,null,null,null,null,null,null,null,null,null,null,null,null,null,null,null,null,null,null,null,null,null,null,null,null,null,null,null,null,null,null,null,null,null,null,null,null,null,null,null,null,null,null,null,null,null,0,"P","",{"$f":"$S$1","v":"ZZ"},"R5211","TRANSFOR","BLENOILP","_Z","_Z","_Z","_Z","_Z","WEIGHT","_Z","KT"]
["kt","Biogasoline","Energy sector","5546R","DB_101300","BIOGASOL","TOTENGY",0,0,"P","",null,null,null,null,null,null,null,null,null,null,null,null,null,null,null,null,null,null,null,null,null,null,null,null,null,null,null,null,null,null,null,null,null,null,null,null,null,null,null,null,null,null,null,null,null,null,null,null,null,null,null,null,null,null,null,null,null,null,null,null,null,null,null,null,null,null,null,null,null,null,null,null,null,null,null,null,null,null,null,null,null,null,null,null,null,null,null,null,null,null,null,null,null,null,null,null,null,null,null,null,null,null,null,null,null,null,null,null,{"$f":"IF(J131=\"O\",\"NaN\",ROUND(I131,3))","v":0},{"$f":"IF(J131=\"\",\"A\",J131)","v":"P"},{"$f":"LEFT(TRIM(L131),255)","v":""},"ZZ","R5211","ENERGUSE","ENERSECT","_Z","_Z","_Z","_Z","_Z","WEIGHT","_Z","KT"]
["kt","Biogasoline","Distribution losses","5546R","B_101400","BIOGASOL","DISTLOSS",0,0,"P","",null,null,null,null,null,null,null,null,null,null,null,null,null,null,null,null,null,null,null,null,null,null,null,null,null,null,null,null,null,null,null,null,null,null,null,null,null,null,null,null,null,null,null,null,null,null,null,null,null,null,null,null,null,null,null,null,null,null,null,null,null,null,null,null,null,null,null,null,null,null,null,null,null,null,null,null,null,null,null,null,null,null,null,null,null,null,null,null,null,null,null,null,null,null,null,null,null,null,null,null,null,null,null,null,null,null,null,null,0,"P","","ZZ","R5211","LOSSES","DISTLOSS","_Z","_Z","_Z","_Z","_Z","WEIGHT","_Z","KT"]
["kt","Biogasoline","Total final energy consumption",null,null,null,null,{"$f":"H134+H135+H136","v":0},{"$f":"I134+I135+I136","v":0},"P","",null,null,null,null,null,null,null,null,null,null,null,null,null,null,null,null,null,null,null,null,null,null,null,null,null,null,null,null,null,null,null,null,null,null,null,null,null,null,null,null,null,null,null,null,null,null,null,null,null,null,null,null,null,null,null,null,null,null,null,null,null,null,null,null,null,null,null,null,null,null,null,null,null,null,null,null,null,null,null,null,null,null,null,null,null,null,null,null,null,null,null,null,null,null,null,null,null,null,null,null,null,null,null,null,null,null,null,null,0,"P","","ZZ","R5211","ENERGUSE","FINCONS","_Z","_Z","_Z","_Z","_Z","WEIGHT","_Z","KT"]
["kt","Biogasoline","Industry sector","5546R","DB_101800","BIOGASOL","TOTIND",0,0,"P","",null,null,null,null,null,null,null,null,null,null,null,null,null,null,null,null,null,null,null,null,null,null,null,null,null,null,null,null,null,null,null,null,null,null,null,null,null,null,null,null,null,null,null,null,null,null,null,null,null,null,null,null,null,null,null,null,null,null,null,null,null,null,null,null,null,null,null,null,null,null,null,null,null,null,null,null,null,null,null,null,null,null,null,null,null,null,null,null,null,null,null,null,null,null,null,null,null,null,null,null,null,null,null,null,null,null,null,null,0,"P","","ZZ","R5211","ENERGUSE","INDUSTRY","_Z","_Z","_Z","_Z","_Z","WEIGHT","_Z","KT"]
["kt","Biogasoline","Transport sector","5546R","B_101900","BIOGASOL","TOTTRANS",0,0,"P","",null,null,null,null,null,null,null,null,null,null,null,null,null,null,null,null,null,null,null,null,null,null,null,null,null,null,null,null,null,null,null,null,null,null,null,null,null,null,null,null,null,null,null,null,null,null,null,null,null,null,null,null,null,null,null,null,null,null,null,null,null,null,null,null,null,null,null,null,null,null,null,null,null,null,null,null,null,null,null,null,null,null,null,null,null,null,null,null,null,null,null,null,null,null,null,null,null,null,null,null,null,null,null,null,null,null,null,null,0,"P","","ZZ","R5211","ENERGUSE","TRANSPOR","_Z","_Z","_Z","_Z","_Z","WEIGHT","_Z","KT"]
["kt","Biogasoline","Other sectors","5546R","B_102000","BIOGASOL","TOTOTHER",0,0,"P","",null,null,null,null,null,null,null,null,null,null,null,null,null,null,null,null,null,null,null,null,null,null,null,null,null,null,null,null,null,null,null,null,null,null,null,null,null,null,null,null,null,null,null,null,null,null,null,null,null,null,null,null,null,null,null,null,null,null,null,null,null,null,null,null,null,null,null,null,null,null,null,null,null,null,null,null,null,null,null,null,null,null,null,null,null,null,null,null,null,null,null,null,null,null,null,null,null,null,null,null,null,null,null,null,null,null,null,null,0,"P","","ZZ","R5211","ENERGUSE","OTHSECT","_Z","_Z","_Z","_Z","_Z","WEIGHT","_Z","KT"]
["kt","Bio jet kerosenes","Indigenous production","5549R","B_100100","BIOJETKERO","INDPROD",0,0,"P","",null,null,null,null,null,null,null,null,null,null,null,null,null,null,null,null,null,null,null,null,null,null,null,null,null,null,null,null,null,null,null,null,null,null,null,null,null,null,null,null,null,null,null,null,null,null,null,null,null,null,null,null,null,null,null,null,null,null,null,null,null,null,null,null,null,null,null,null,null,null,null,null,null,null,null,null,null,null,null,null,null,null,null,null,null,null,null,null,null,null,null,null,null,null,null,null,null,null,null,null,null,null,null,null,null,null,null,null,0,"P","","ZZ","R5231","PRODUCT","INDPROD","_Z","_Z","_Z","_Z","_Z","WEIGHT","_Z","KT"]
["kt","Bio jet kerosenes","Total imports (Balance)","5549R","B_100300","BIOJETKERO","TOTIMPSB",0,0,"P","",null,null,null,null,null,null,null,null,null,null,null,null,null,null,null,null,null,null,null,null,null,null,null,null,null,null,null,null,null,null,null,null,null,null,null,null,null,null,null,null,null,null,null,null,null,null,null,null,null,null,null,null,null,null,null,null,null,null,null,null,null,null,null,null,null,null,null,null,null,null,null,null,null,null,null,null,null,null,null,null,null,null,null,null,null,null,null,null,null,null,null,null,null,null,null,null,null,null,null,null,null,null,null,null,null,null,null,null,0,"P","","ZZ","R5231","IMPORTS","TOTIMPSB","_Z","_Z","_Z","_Z","_Z","WEIGHT","_Z","KT"]
["kt","Bio jet kerosenes","Total exports (Balance)","5549R","B_100500","BIOJETKERO","TOTEXPSB",0,0,"P","",null,null,null,null,null,null,null,null,null,null,null,null,null,null,null,null,null,null,null,null,null,null,null,null,null,null,null,null,null,null,null,null,null,null,null,null,null,null,null,null,null,null,null,null,null,null,null,null,null,null,null,null,null,null,null,null,null,null,null,null,null,null,null,null,null,null,null,null,null,null,null,null,null,null,null,null,null,null,null,null,null,null,null,null,null,null,null,null,null,null,null,null,null,null,null,null,null,null,null,null,null,null,null,null,null,null,null,null,0,"P","","ZZ","R5231","EXPORTS","TOTEXPSB","_Z","_Z","_Z","_Z","_Z","WEIGHT","_Z","KT"]
["kt","Bio jet kerosenes","Stock changes (National territory)","5549R","B_100400","BIOJETKERO","STCHANAT",0,0,"P",null,null,null,null,null,null,null,null,null,null,null,null,null,null,null,null,null,null,null,null,null,null,null,null,null,null,null,null,null,null,null,null,null,null,null,null,null,null,null,null,null,null,null,null,null,null,null,null,null,null,null,null,null,null,null,null,null,null,null,null,null,null,null,null,null,null,null,null,null,null,null,null,null,null,null,null,null,null,null,null,null,null,null,null,null,null,null,null,null,null,null,null,null,null,null,null,null,null,null,null,null,null,null,null,null,null,null,null,null,0,"P","","ZZ","R5231","STOCKS","STOCKCH","_Z","_Z","NATTER","_Z","_Z","WEIGHT","_Z","KT"]
["kt","Bio jet kerosenes","Inland consumption (Calculated)",null,null,null,null,{"$f":"H137+H138-H139+H140","v":0},{"$f":"I137+I138-I139+I140","v":0},"P","",null,null,null,null,null,null,null,null,null,null,null,null,null,null,null,null,null,null,null,null,null,null,null,null,null,null,null,null,null,null,null,null,null,null,null,null,null,null,null,null,null,null,null,null,null,null,null,null,null,null,null,null,null,null,null,null,null,null,null,null,null,null,null,null,null,null,null,null,null,null,null,null,null,null,null,null,null,null,null,null,null,null,null,null,null,null,null,null,null,null,null,null,null,null,null,null,null,null,null,null,null,null,null,null,null,null,null,null,0,"P","","ZZ","R5231","SUPPLY","INLDEMC","_Z","_Z","_Z","_Z","_Z","WEIGHT","_Z","KT"]
["kt","Bio jet kerosenes","Statistical Difference",null,null,null,null,{"$f":"H141-H143","v":0},{"$f":"I141-I143","v":0},"P",null,null,null,null,null,null,null,null,null,null,null,null,null,null,null,null,null,null,null,null,null,null,null,null,null,null,null,null,null,null,null,null,null,null,null,null,null,null,null,null,null,null,null,null,null,null,null,null,null,null,null,null,null,null,null,null,null,null,null,null,null,null,null,null,null,null,null,null,null,null,null,null,null,null,null,null,null,null,null,null,null,null,null,null,null,null,null,null,null,null,null,null,null,null,null,null,null,null,null,null,null,null,null,null,null,null,null,null,null,0,"P","","ZZ","R5231","STATDIFF","_Z","_Z","_Z","_Z","_Z","_Z","WEIGHT","_Z","KT"]
["kt","Bio jet kerosenes","Inland consumption (Observed)",null,null,"BIOJETKERO",null,{"$f":"H144+H146+H147+H148","v":0},{"$f":"I144+I146+I147+I148","v":0},"P",{"$f":"IF(ISERROR(I143/H143),\"\",(I143/H143)-1)","v":""},null,null,null,null,null,null,null,null,null,null,null,null,null,null,null,null,null,null,null,null,null,null,null,null,null,null,null,null,null,null,null,null,null,null,null,null,null,null,null,null,null,null,null,null,null,null,null,null,null,null,null,null,null,null,null,null,null,null,null,null,null,null,null,null,null,null,null,null,null,null,null,null,null,null,null,null,null,null,null,null,null,null,null,null,null,null,null,null,null,null,null,null,null,null,null,null,null,null,null,null,null,null,null,null,null,null,null,null,0,"P","","ZZ","R5231","DEMAND","INLDEMO","_Z","_Z","_Z","_Z","_Z","WEIGHT","_Z","KT"]
["kt","Bio jet kerosenes","Transformation sector","5549R","DB_101000","BIOJETKERO","TOTTRANF",0,0,"P","",null,null,null,null,null,null,null,null,null,null,null,null,null,null,null,null,null,null,null,null,null,null,null,null,null,null,null,null,null,null,null,null,null,null,null,null,null,null,null,null,null,null,null,null,null,null,null,null,null,null,null,null,null,null,null,null,null,null,null,null,null,null,null,null,null,null,null,null,null,null,null,null,null,null,null,null,null,null,null,null,null,null,null,null,null,null,null,null,null,null,null,null,null,null,null,null,null,null,null,null,null,null,null,null,null,null,null,null,0,"P","","ZZ","R5231","TRANSFOR","TOTRANSF","_Z","_Z","_Z","_Z","_Z","WEIGHT","_Z","KT"]
["kt","Bio jet kerosenes","     of which for blending","5549R","B_101014",null,null,0,0,"P","",null,null,null,null,null,null,null,null,null,null,null,null,null,null,null,null,null,null,null,null,null,null,null,null,null,null,null,null,null,null,null,null,null,null,null,null,null,null,null,null,null,null,null,null,null,null,null,null,null,null,null,null,null,null,null,null,null,null,null,null,null,null,null,null,null,null,null,null,null,null,null,null,null,null,null,null,null,null,null,null,null,null,null,null,null,null,null,null,null,null,null,null,null,null,null,null,null,null,null,null,null,null,null,null,null,null,null,null,0,"P","","ZZ","R5231","TRANSFOR","BLENOILP","_Z","_Z","_Z","_Z","_Z","WEIGHT","_Z","KT"]
["kt","Bio jet kerosenes","Energy sector","5549R","DB_101300","BIOJETKERO","TOTENGY",0,0,"P","",null,null,null,null,null,null,null,null,null,null,null,null,null,null,null,null,null,null,null,null,null,null,null,null,null,null,null,null,null,null,null,null,null,null,null,null,null,null,null,null,null,null,null,null,null,null,null,null,null,null,null,null,null,null,null,null,null,null,null,null,null,null,null,null,null,null,null,null,null,null,null,null,null,null,null,null,null,null,null,null,null,null,null,null,null,null,null,null,null,null,null,null,null,null,null,null,null,null,null,null,null,null,null,null,null,null,null,null,0,"P","","ZZ","R5231","ENERGUSE","ENERSECT","_Z","_Z","_Z","_Z","_Z","WEIGHT","_Z","KT"]
["kt","Bio jet kerosenes","Distribution losses","5549R","B_101400","BIOJETKERO","DISTLOSS",0,0,"P","",null,null,null,null,null,null,null,null,null,null,null,null,null,null,null,null,null,null,null,null,null,null,null,null,null,null,null,null,null,null,null,null,null,null,null,null,null,null,null,null,null,null,null,null,null,null,null,null,null,null,null,null,null,null,null,null,null,null,null,null,null,null,null,null,null,null,null,null,null,null,null,null,null,null,null,null,null,null,null,null,null,null,null,null,null,null,null,null,null,null,null,null,null,null,null,null,null,null,null,null,null,null,null,null,null,null,null,null,0,"P","","ZZ","R5231","LOSSES","DISTLOSS","_Z","_Z","_Z","_Z","_Z","WEIGHT","_Z","KT"]
["kt","Bio jet kerosenes","Total final energy consumption",null,null,null,null,{"$f":"H149+H150+H151","v":0},{"$f":"I149+I150+I151","v":0},"P","",null,null,null,null,null,null,null,null,null,null,null,null,null,null,null,null,null,null,null,null,null,null,null,null,null,null,null,null,null,null,null,null,null,null,null,null,null,null,null,null,null,null,null,null,null,null,null,null,null,null,null,null,null,null,null,null,null,null,null,null,null,null,null,null,null,null,null,null,null,null,null,null,null,null,null,null,null,null,null,null,null,null,null,null,null,null,null,null,null,null,null,null,null,null,null,null,null,null,null,null,null,null,null,null,null,null,null,null,0,"P","","ZZ","R5231","ENERGUSE","FINCONS","_Z","_Z","_Z","_Z","_Z","WEIGHT","_Z","KT"]
["kt","Bio jet kerosenes","Industry sector","5549R","DB_101800","BIOJETKERO","TOTIND",0,0,"P","",null,null,null,null,null,null,null,null,null,null,null,null,null,null,null,null,null,null,null,null,null,null,null,null,null,null,null,null,null,null,null,null,null,null,null,null,null,null,null,null,null,null,null,null,null,null,null,null,null,null,null,null,null,null,null,null,null,null,null,null,null,null,null,null,null,null,null,null,null,null,null,null,null,null,null,null,null,null,null,null,null,null,null,null,null,null,null,null,null,null,null,null,null,null,null,null,null,null,null,null,null,null,null,null,null,null,null,null,0,"P","","ZZ","R5231","ENERGUSE","INDUSTRY","_Z","_Z","_Z","_Z","_Z","WEIGHT","_Z","KT"]
["kt","Bio jet kerosenes","Transport sector","5549R","B_101900","BIOJETKERO","TOTTRANS",0,0,"P","",null,null,null,null,null,null,null,null,null,null,null,null,null,null,null,null,null,null,null,null,null,null,null,null,null,null,null,null,null,null,null,null,null,null,null,null,null,null,null,null,null,null,null,null,null,null,null,null,null,null,null,null,null,null,null,null,null,null,null,null,null,null,null,null,null,null,null,null,null,null,null,null,null,null,null,null,null,null,null,null,null,null,null,null,null,null,null,null,null,null,null,null,null,null,null,null,null,null,null,null,null,null,null,null,null,null,null,null,0,"P","","ZZ","R5231","ENERGUSE","TRANSPOR","_Z","_Z","_Z","_Z","_Z","WEIGHT","_Z","KT"]
["kt","Bio jet kerosenes","Other sectors","5549R","B_102000","BIOJETKERO","TOTOTHER",0,0,"P","",null,null,null,null,null,null,null,null,null,null,null,null,null,null,null,null,null,null,null,null,null,null,null,null,null,null,null,null,null,null,null,null,null,null,null,null,null,null,null,null,null,null,null,null,null,null,null,null,null,null,null,null,null,null,null,null,null,null,null,null,null,null,null,null,null,null,null,null,null,null,null,null,null,null,null,null,null,null,null,null,null,null,null,null,null,null,null,null,null,null,null,null,null,null,null,null,null,null,null,null,null,null,null,null,null,null,null,null,0,"P","","ZZ","R5231","ENERGUSE","OTHSECT","_Z","_Z","_Z","_Z","_Z","WEIGHT","_Z","KT"]
["kt","Biodiesels","Indigenous production","5547R","B_100100","BIODIESEL","INDPROD",0,0,"P","",null,null,null,null,null,null,null,null,null,null,null,null,null,null,null,null,null,null,null,null,null,null,null,null,null,null,null,null,null,null,null,null,null,null,null,null,null,null,null,null,null,null,null,null,null,null,null,null,null,null,null,null,null,null,null,null,null,null,null,null,null,null,null,null,null,null,null,null,null,null,null,null,null,null,null,null,null,null,null,null,null,null,null,null,null,null,null,null,null,null,null,null,null,null,null,null,null,null,null,null,null,null,null,null,null,null,null,null,0,"P","","ZZ","R5221","PRODUCT","INDPROD","_Z","_Z","_Z","_Z","_Z","WEIGHT","_Z","KT"]
["kt","Biodiesels","Total imports (Balance)","5547R","B_100300","BIODIESEL","TOTIMPSB",0,0,"P","",null,null,null,null,null,null,null,null,null,null,null,null,null,null,null,null,null,null,null,null,null,null,null,null,null,null,null,null,null,null,null,null,null,null,null,null,null,null,null,null,null,null,null,null,null,null,null,null,null,null,null,null,null,null,null,null,null,null,null,null,null,null,null,null,null,null,null,null,null,null,null,null,null,null,null,null,null,null,null,null,null,null,null,null,null,null,null,null,null,null,null,null,null,null,null,null,null,null,null,null,null,null,null,null,null,null,null,null,0,"P","","ZZ","R5221","IMPORTS","TOTIMPSB","_Z","_Z","_Z","_Z","_Z","WEIGHT","_Z","KT"]
["kt","Biodiesels","Total exports (Balance)","5547R","B_100500","BIODIESEL","TOTEXPSB",0,0,"P","",null,null,null,null,null,null,null,null,null,null,null,null,null,null,null,null,null,null,null,null,null,null,null,null,null,null,null,null,null,null,null,null,null,null,null,null,null,null,null,null,null,null,null,null,null,null,null,null,null,null,null,null,null,null,null,null,null,null,null,null,null,null,null,null,null,null,null,null,null,null,null,null,null,null,null,null,null,null,null,null,null,null,null,null,null,null,null,null,null,null,null,null,null,null,null,null,null,null,null,null,null,null,null,null,null,null,null,null,0,"P","","ZZ","R5221","EXPORTS","TOTEXPSB","_Z","_Z","_Z","_Z","_Z","WEIGHT","_Z","KT"]
["kt","Biodiesels","Stock changes (National territory)","5547R","B_100400","BIODIESEL","STCHANAT",0,0,"P",null,null,null,null,null,null,null,null,null,null,null,null,null,null,null,null,null,null,null,null,null,null,null,null,null,null,null,null,null,null,null,null,null,null,null,null,null,null,null,null,null,null,null,null,null,null,null,null,null,null,null,null,null,null,null,null,null,null,null,null,null,null,null,null,null,null,null,null,null,null,null,null,null,null,null,null,null,null,null,null,null,null,null,null,null,null,null,null,null,null,null,null,null,null,null,null,null,null,null,null,null,null,null,null,null,null,null,null,null,0,"P","","ZZ","R5221","STOCKS","STOCKCH","_Z","_Z","NATTER","_Z","_Z","WEIGHT","_Z","KT"]
["kt","Biodiesels","Inland consumption (Calculated)",null,null,null,null,{"$f":"H152+H153-H154+H155","v":0},{"$f":"I152+I153-I154+I155","v":0},"P","",null,null,null,null,null,null,null,null,null,null,null,null,null,null,null,null,null,null,null,null,null,null,null,null,null,null,null,null,null,null,null,null,null,null,null,null,null,null,null,null,null,null,null,null,null,null,null,null,null,null,null,null,null,null,null,null,null,null,null,null,null,null,null,null,null,null,null,null,null,null,null,null,null,null,null,null,null,null,null,null,null,null,null,null,null,null,null,null,null,null,null,null,null,null,null,null,null,null,null,null,null,null,null,null,null,null,null,null,0,"P","","ZZ","R5221","SUPPLY","INLDEMC","_Z","_Z","_Z","_Z","_Z","WEIGHT","_Z","KT"]
["kt","Biodiesels","Statistical Difference",null,null,null,null,{"$f":"H156-H158","v":0},{"$f":"I156-I158","v":0},"P",null,null,null,null,null,null,null,null,null,null,null,null,null,null,null,null,null,null,null,null,null,null,null,null,null,null,null,null,null,null,null,null,null,null,null,null,null,null,null,null,null,null,null,null,null,null,null,null,null,null,null,null,null,null,null,null,null,null,null,null,null,null,null,null,null,null,null,null,null,null,null,null,null,null,null,null,null,null,null,null,null,null,null,null,null,null,null,null,null,null,null,null,null,null,null,null,null,null,null,null,null,null,null,null,null,null,null,null,null,0,"P","","ZZ","R5221","STATDIFF","_Z","_Z","_Z","_Z","_Z","_Z","WEIGHT","_Z","KT"]
["kt","Biodiesels","Inland consumption (Observed)",null,null,null,null,{"$f":"H159+H161+H162+H163","v":0},{"$f":"I159+I161+I162+I163","v":0},"P",{"$f":"IF(ISERROR(I158/H158),\"\",(I158/H158)-1)","v":""},null,null,null,null,null,null,null,null,null,null,null,null,null,null,null,null,null,null,null,null,null,null,null,null,null,null,null,null,null,null,null,null,null,null,null,null,null,null,null,null,null,null,null,null,null,null,null,null,null,null,null,null,null,null,null,null,null,null,null,null,null,null,null,null,null,null,null,null,null,null,null,null,null,null,null,null,null,null,null,null,null,null,null,null,null,null,null,null,null,null,null,null,null,null,null,null,null,null,null,null,null,null,null,null,null,null,null,null,0,"P","","ZZ","R5221","DEMAND","INLDEMO","_Z","_Z","_Z","_Z","_Z","WEIGHT","_Z","KT"]
["kt","Biodiesels","Transformation sector","5547R","DB_101000","BIODIESEL","TOTTRANF",0,0,"P","",null,null,null,null,null,null,null,null,null,null,null,null,null,null,null,null,null,null,null,null,null,null,null,null,null,null,null,null,null,null,null,null,null,null,null,null,null,null,null,null,null,null,null,null,null,null,null,null,null,null,null,null,null,null,null,null,null,null,null,null,null,null,null,null,null,null,null,null,null,null,null,null,null,null,null,null,null,null,null,null,null,null,null,null,null,null,null,null,null,null,null,null,null,null,null,null,null,null,null,null,null,null,null,null,null,null,null,null,0,"P","","ZZ","R5221","TRANSFOR","TOTRANSF","_Z","_Z","_Z","_Z","_Z","WEIGHT","_Z","KT"]
["kt","Biodiesels","     of which for blending","5547R","B_101014",null,null,0,0,"P","",null,null,null,null,null,null,null,null,null,null,null,null,null,null,null,null,null,null,null,null,null,null,null,null,null,null,null,null,null,null,null,null,null,null,null,null,null,null,null,null,null,null,null,null,null,null,null,null,null,null,null,null,null,null,null,null,null,null,null,null,null,null,null,null,null,null,null,null,null,null,null,null,null,null,null,null,null,null,null,null,null,null,null,null,null,null,null,null,null,null,null,null,null,null,null,null,null,null,null,null,null,null,null,null,null,null,null,null,0,"P","","ZZ","R5221","TRANSFOR","BLENOILP","_Z","_Z","_Z","_Z","_Z","WEIGHT","_Z","KT"]
["kt","Biodiesels","Energy sector","5547R","DB_101300","BIODIESEL","TOTENGY",0,0,"P","",null,null,null,null,null,null,null,null,null,null,null,null,null,null,null,null,null,null,null,null,null,null,null,null,null,null,null,null,null,null,null,null,null,null,null,null,null,null,null,null,null,null,null,null,null,null,null,null,null,null,null,null,null,null,null,null,null,null,null,null,null,null,null,null,null,null,null,null,null,null,null,null,null,null,null,null,null,null,null,null,null,null,null,null,null,null,null,null,null,null,null,null,null,null,null,null,null,null,null,null,null,null,null,null,null,null,null,null,0,"P","","ZZ","R5221","ENERGUSE","ENERSECT","_Z","_Z","_Z","_Z","_Z","WEIGHT","_Z","KT"]
["kt","Biodiesels","Distribution losses","5547R","B_101400","BIODIESEL","DISTLOSS",0,0,"P","",null,null,null,null,null,null,null,null,null,null,null,null,null,null,null,null,null,null,null,null,null,null,null,null,null,null,null,null,null,null,null,null,null,null,null,null,null,null,null,null,null,null,null,null,null,null,null,null,null,null,null,null,null,null,null,null,null,null,null,null,null,null,null,null,null,null,null,null,null,null,null,null,null,null,null,null,null,null,null,null,null,null,null,null,null,null,null,null,null,null,null,null,null,null,null,null,null,null,null,null,null,null,null,null,null,null,null,null,0,"P","","ZZ","R5221","LOSSES","DISTLOSS","_Z","_Z","_Z","_Z","_Z","WEIGHT","_Z","KT"]
["kt","Biodiesels","Total final energy consumption",null,null,null,null,{"$f":"H164+H165+H166","v":0},{"$f":"I164+I165+I166","v":0},"P","",null,null,null,null,null,null,null,null,null,null,null,null,null,null,null,null,null,null,null,null,null,null,null,null,null,null,null,null,null,null,null,null,null,null,null,null,null,null,null,null,null,null,null,null,null,null,null,null,null,null,null,null,null,null,null,null,null,null,null,null,null,null,null,null,null,null,null,null,null,null,null,null,null,null,null,null,null,null,null,null,null,null,null,null,null,null,null,null,null,null,null,null,null,null,null,null,null,null,null,null,null,null,null,null,null,null,null,null,0,"P","","ZZ","R5221","ENERGUSE","FINCONS","_Z","_Z","_Z","_Z","_Z","WEIGHT","_Z","KT"]
["kt","Biodiesels","Industry sector","5547R","DB_101800","BIODIESEL","TOTIND",0,0,"P","",null,null,null,null,null,null,null,null,null,null,null,null,null,null,null,null,null,null,null,null,null,null,null,null,null,null,null,null,null,null,null,null,null,null,null,null,null,null,null,null,null,null,null,null,null,null,null,null,null,null,null,null,null,null,null,null,null,null,null,null,null,null,null,null,null,null,null,null,null,null,null,null,null,null,null,null,null,null,null,null,null,null,null,null,null,null,null,null,null,null,null,null,null,null,null,null,null,null,null,null,null,null,null,null,null,null,null,null,0,"P","","ZZ","R5221","ENERGUSE","INDUSTRY","_Z","_Z","_Z","_Z","_Z","WEIGHT","_Z","KT"]
["kt","Biodiesels","Transport sector","5547R","B_101900","BIODIESEL","TOTTRANS",0,0,"P","",null,null,null,null,null,null,null,null,null,null,null,null,null,null,null,null,null,null,null,null,null,null,null,null,null,null,null,null,null,null,null,null,null,null,null,null,null,null,null,null,null,null,null,null,null,null,null,null,null,null,null,null,null,null,null,null,null,null,null,null,null,null,null,null,null,null,null,null,null,null,null,null,null,null,null,null,null,null,null,null,null,null,null,null,null,null,null,null,null,null,null,null,null,null,null,null,null,null,null,null,null,null,null,null,null,null,null,null,0,"P","","ZZ","R5221","ENERGUSE","TRANSPOR","_Z","_Z","_Z","_Z","_Z","WEIGHT","_Z","KT"]
["kt","Biodiesels","Other sectors","5547R","B_102000","BIODIESEL","TOTOTHER",0,0,"P","",null,null,null,null,null,null,null,null,null,null,null,null,null,null,null,null,null,null,null,null,null,null,null,null,null,null,null,null,null,null,null,null,null,null,null,null,null,null,null,null,null,null,null,null,null,null,null,null,null,null,null,null,null,null,null,null,null,null,null,null,null,null,null,null,null,null,null,null,null,null,null,null,null,null,null,null,null,null,null,null,null,null,null,null,null,null,null,null,null,null,null,null,null,null,null,null,null,null,null,null,null,null,null,null,null,null,null,null,0,"P","","ZZ","R5221","ENERGUSE","OTHSECT","_Z","_Z","_Z","_Z","_Z","WEIGHT","_Z","KT"]
["kt","Other liquid biofuels","Indigenous production",5548,"B_100100","OBIOLIQ","INDPROD",0,0,"P","",null,null,null,null,null,null,null,null,null,null,null,null,null,null,null,null,null,null,null,null,null,null,null,null,null,null,null,null,null,null,null,null,null,null,null,null,null,null,null,null,null,null,null,null,null,null,null,null,null,null,null,null,null,null,null,null,null,null,null,null,null,null,null,null,null,null,null,null,null,null,null,null,null,null,null,null,null,null,null,null,null,null,null,null,null,null,null,null,null,null,null,null,null,null,null,null,null,null,null,null,null,null,null,null,null,null,null,null,0,"P","","ZZ","R5290","PRODUCT","INDPROD","_Z","_Z","_Z","_Z","_Z","WEIGHT","_Z","KT"]
["kt","Other liquid biofuels","Total imports (Balance)",5548,"B_100300","OBIOLIQ","TOTIMPSB",0,0,"P","",null,null,null,null,null,null,null,null,null,null,null,null,null,null,null,null,null,null,null,null,null,null,null,null,null,null,null,null,null,null,null,null,null,null,null,null,null,null,null,null,null,null,null,null,null,null,null,null,null,null,null,null,null,null,null,null,null,null,null,null,null,null,null,null,null,null,null,null,null,null,null,null,null,null,null,null,null,null,null,null,null,null,null,null,null,null,null,null,null,null,null,null,null,null,null,null,null,null,null,null,null,null,null,null,null,null,null,null,0,"P","","ZZ","R5290","IMPORTS","TOTIMPSB","_Z","_Z","_Z","_Z","_Z","WEIGHT","_Z","KT"]
["kt","Other liquid biofuels","Total exports (Balance)",5548,"B_100500","OBIOLIQ","TOTEXPSB",0,0,"P","",null,null,null,null,null,null,null,null,null,null,null,null,null,null,null,null,null,null,null,null,null,null,null,null,null,null,null,null,null,null,null,null,null,null,null,null,null,null,null,null,null,null,null,null,null,null,null,null,null,null,null,null,null,null,null,null,null,null,null,null,null,null,null,null,null,null,null,null,null,null,null,null,null,null,null,null,null,null,null,null,null,null,null,null,null,null,null,null,null,null,null,null,null,null,null,null,null,null,null,null,null,null,null,null,null,null,null,null,0,"P","","ZZ","R5290","EXPORTS","TOTEXPSB","_Z","_Z","_Z","_Z","_Z","WEIGHT","_Z","KT"]
["kt","Other liquid biofuels","Stock changes (National territory)",5548,"B_100400","OBIOLIQ","STCHANAT",0,0,"P",null,null,null,null,null,null,null,null,null,null,null,null,null,null,null,null,null,null,null,null,null,null,null,null,null,null,null,null,null,null,null,null,null,null,null,null,null,null,null,null,null,null,null,null,null,null,null,null,null,null,null,null,null,null,null,null,null,null,null,null,null,null,null,null,null,null,null,null,null,null,null,null,null,null,null,null,null,null,null,null,null,null,null,null,null,null,null,null,null,null,null,null,null,null,null,null,null,null,null,null,null,null,null,null,null,null,null,null,null,0,"P","","ZZ","R5290","STOCKS","STOCKCH","_Z","_Z","NATTER","_Z","_Z","WEIGHT","_Z","KT"]
["kt","Other liquid biofuels","Inland consumption (Calculated)",null,null,null,null,{"$f":"H167+H168-H169+H170","v":0},{"$f":"I167+I168-I169+I170","v":0},"P","",null,null,null,null,null,null,null,null,null,null,null,null,null,null,null,null,null,null,null,null,null,null,null,null,null,null,null,null,null,null,null,null,null,null,null,null,null,null,null,null,null,null,null,null,null,null,null,null,null,null,null,null,null,null,null,null,null,null,null,null,null,null,null,null,null,null,null,null,null,null,null,null,null,null,null,null,null,null,null,null,null,null,null,null,null,null,null,null,null,null,null,null,null,null,null,null,null,null,null,null,null,null,null,null,null,null,null,null,0,"P","","ZZ","R5290","SUPPLY","INLDEMC","_Z","_Z","_Z","_Z","_Z","WEIGHT","_Z","KT"]
["kt","Other liquid biofuels","Statistical Difference",null,null,null,null,{"$f":"H171-H173","v":0},{"$f":"I171-I173","v":0},"P",null,null,null,null,null,null,null,null,null,null,null,null,null,null,null,null,null,null,null,null,null,null,null,null,null,null,null,null,null,null,null,null,null,null,null,null,null,null,null,null,null,null,null,null,null,null,null,null,null,null,null,null,null,null,null,null,null,null,null,null,null,null,null,null,null,null,null,null,null,null,null,null,null,null,null,null,null,null,null,null,null,null,null,null,null,null,null,null,null,null,null,null,null,null,null,null,null,null,null,null,null,null,null,null,null,null,null,null,null,0,"P","","ZZ","R5290","STATDIFF","_Z","_Z","_Z","_Z","_Z","_Z","WEIGHT","_Z","KT"]
["kt","Other liquid biofuels","Inland consumption (Observed)",null,null,null,null,{"$f":"H174+H176+H177+H178","v":0},{"$f":"I174+I176+I177+I178","v":0},"P",{"$f":"IF(ISERROR(I173/H173),\"\",(I173/H173)-1)","v":""},null,null,null,null,null,null,null,null,null,null,null,null,null,null,null,null,null,null,null,null,null,null,null,null,null,null,null,null,null,null,null,null,null,null,null,null,null,null,null,null,null,null,null,null,null,null,null,null,null,null,null,null,null,null,null,null,null,null,null,null,null,null,null,null,null,null,null,null,null,null,null,null,null,null,null,null,null,null,null,null,null,null,null,null,null,null,null,null,null,null,null,null,null,null,null,null,null,null,null,null,null,null,null,null,null,null,null,null,0,"P","","ZZ","R5290","DEMAND","INLDEMO","_Z","_Z","_Z","_Z","_Z","WEIGHT","_Z","KT"]
["kt","Other liquid biofuels","Transformation sector",5548,"DB_101000","OBIOLIQ","TOTTRANF",0,0,"P","",null,null,null,null,null,null,null,null,null,null,null,null,null,null,null,null,null,null,null,null,null,null,null,null,null,null,null,null,null,null,null,null,null,null,null,null,null,null,null,null,null,null,null,null,null,null,null,null,null,null,null,null,null,null,null,null,null,null,null,null,null,null,null,null,null,null,null,null,null,null,null,null,null,null,null,null,null,null,null,null,null,null,null,null,null,null,null,null,null,null,null,null,null,null,null,null,null,null,null,null,null,null,null,null,null,null,null,null,0,"P","","ZZ","R5290","TRANSFOR","TOTRANSF","_Z","_Z","_Z","_Z","_Z","WEIGHT","_Z","KT"]
["kt","Other liquid biofuels","     of which for blending","5548","B_101014","OBIOLIQ",null,0,0,"P","",null,null,null,null,null,null,null,null,null,null,null,null,null,null,null,null,null,null,null,null,null,null,null,null,null,null,null,null,null,null,null,null,null,null,null,null,null,null,null,null,null,null,null,null,null,null,null,null,null,null,null,null,null,null,null,null,null,null,null,null,null,null,null,null,null,null,null,null,null,null,null,null,null,null,null,null,null,null,null,null,null,null,null,null,null,null,null,null,null,null,null,null,null,null,null,null,null,null,null,null,null,null,null,null,null,null,null,null,0,"P","","ZZ","R5290","TRANSFOR","BLENOILP","_Z","_Z","_Z","_Z","_Z","WEIGHT","_Z","KT"]
["kt","Other liquid biofuels","Energy sector",5548,"DB_101300","OBIOLIQ","TOTENGY",0,0,"P","",null,null,null,null,null,null,null,null,null,null,null,null,null,null,null,null,null,null,null,null,null,null,null,null,null,null,null,null,null,null,null,null,null,null,null,null,null,null,null,null,null,null,null,null,null,null,null,null,null,null,null,null,null,null,null,null,null,null,null,null,null,null,null,null,null,null,null,null,null,null,null,null,null,null,null,null,null,null,null,null,null,null,null,null,null,null,null,null,null,null,null,null,null,null,null,null,null,null,null,null,null,null,null,null,null,null,null,null,0,"P","","ZZ","R5290","ENERGUSE","ENERSECT","_Z","_Z","_Z","_Z","_Z","WEIGHT","_Z","KT"]
["kt","Other liquid biofuels","Distribution losses",5548,"B_101400","OBIOLIQ","DISTLOSS",0,0,"P","",null,null,null,null,null,null,null,null,null,null,null,null,null,null,null,null,null,null,null,null,null,null,null,null,null,null,null,null,null,null,null,null,null,null,null,null,null,null,null,null,null,null,null,null,null,null,null,null,null,null,null,null,null,null,null,null,null,null,null,null,null,null,null,null,null,null,null,null,null,null,null,null,null,null,null,null,null,null,null,null,null,null,null,null,null,null,null,null,null,null,null,null,null,null,null,null,null,null,null,null,null,null,null,null,null,null,null,null,0,"P","","ZZ","R5290","LOSSES","DISTLOSS","_Z","_Z","_Z","_Z","_Z","WEIGHT","_Z","KT"]
["kt","Other liquid biofuels","Total final energy consumption",null,null,null,null,{"$f":"H179+H180+H181","v":0},{"$f":"I179+I180+I181","v":0},"P","",null,null,null,null,null,null,null,null,null,null,null,null,null,null,null,null,null,null,null,null,null,null,null,null,null,null,null,null,null,null,null,null,null,null,null,null,null,null,null,null,null,null,null,null,null,null,null,null,null,null,null,null,null,null,null,null,null,null,null,null,null,null,null,null,null,null,null,null,null,null,null,null,null,null,null,null,null,null,null,null,null,null,null,null,null,null,null,null,null,null,null,null,null,null,null,null,null,null,null,null,null,null,null,null,null,null,null,null,0,"P","","ZZ","R5290","ENERGUSE","FINCONS","_Z","_Z","_Z","_Z","_Z","WEIGHT","_Z","KT"]
["kt","Other liquid biofuels","Industry sector",5548,"DB_101800","OBIOLIQ","TOTIND",0,0,"P","",null,null,null,null,null,null,null,null,null,null,null,null,null,null,null,null,null,null,null,null,null,null,null,null,null,null,null,null,null,null,null,null,null,null,null,null,null,null,null,null,null,null,null,null,null,null,null,null,null,null,null,null,null,null,null,null,null,null,null,null,null,null,null,null,null,null,null,null,null,null,null,null,null,null,null,null,null,null,null,null,null,null,null,null,null,null,null,null,null,null,null,null,null,null,null,null,null,null,null,null,null,null,null,null,null,null,null,null,0,"P","","ZZ","R5290","ENERGUSE","INDUSTRY","_Z","_Z","_Z","_Z","_Z","WEIGHT","_Z","KT"]
["kt","Other liquid biofuels","Transport sector",5548,"B_101900","OBIOLIQ","TOTTRANS",0,0,"P","",null,null,null,null,null,null,null,null,null,null,null,null,null,null,null,null,null,null,null,null,null,null,null,null,null,null,null,null,null,null,null,null,null,null,null,null,null,null,null,null,null,null,null,null,null,null,null,null,null,null,null,null,null,null,null,null,null,null,null,null,null,null,null,null,null,null,null,null,null,null,null,null,null,null,null,null,null,null,null,null,null,null,null,null,null,null,null,null,null,null,null,null,null,null,null,null,null,null,null,null,null,null,null,null,null,null,null,null,0,"P","","ZZ","R5290","ENERGUSE","TRANSPOR","_Z","_Z","_Z","_Z","_Z","WEIGHT","_Z","KT"]
["kt","Other liquid biofuels","Other sectors",5548,"B_102000","OBIOLIQ","TOTOTHER",0,0,"P","",null,null,null,null,null,null,null,null,null,null,null,null,null,null,null,null,null,null,null,null,null,null,null,null,null,null,null,null,null,null,null,null,null,null,null,null,null,null,null,null,null,null,null,null,null,null,null,null,null,null,null,null,null,null,null,null,null,null,null,null,null,null,null,null,null,null,null,null,null,null,null,null,null,null,null,null,null,null,null,null,null,null,null,null,null,null,null,null,null,null,null,null,null,null,null,null,null,null,null,null,null,null,null,null,null,null,null,null,0,"P","","ZZ","R5290","ENERGUSE","OTHSECT","_Z","_Z","_Z","_Z","_Z","WEIGHT","_Z","KT"]
["TJ NCV","Ambient heat (heat pumps)","Indigenous production",null,null,null,null,0,0,"P","",null,null,null,null,null,null,null,null,null,null,null,null,null,null,null,null,null,null,null,null,null,null,null,null,null,null,null,null,null,null,null,null,null,null,null,null,null,null,null,null,null,null,null,null,null,null,null,null,null,null,null,null,null,null,null,null,null,null,null,null,null,null,null,null,null,null,null,null,null,null,null,null,null,null,null,null,null,null,null,null,null,null,null,null,null,null,null,null,null,null,null,null,null,null,null,null,null,null,null,null,null,null,null,null,null,null,null,null,0,"P","","ZZ","RA600","PRODUCT","INDPROD","_Z","_Z","_Z","_Z","_Z","ENERGY","_Z","TJ_NCV"]
["TJ NCV","Ambient heat (heat pumps)","Total imports (Balance)",null,null,null,null,null,null,"P",null,null,null,null,null,null,null,null,null,null,null,null,null,null,null,null,null,null,null,null,null,null,null,null,null,null,null,null,null,null,null,null,null,null,null,null,null,null,null,null,null,null,null,null,null,null,null,null,null,null,null,null,null,null,null,null,null,null,null,null,null,null,null,null,null,null,null,null,null,null,null,null,null,null,null,null,null,null,null,null,null,null,null,null,null,null,null,null,null,null,null,null,null,null,null,null,null,null,null,null,null,null,null,null,null,null,null,null,null,0,"P","","ZZ","RA600",null,null,null,null,null,null,null,"ENERGY","_Z","TJ_NCV"]
["TJ NCV","Ambient heat (heat pumps)","Total exports (Balance)",null,null,null,null,null,null,"P",null,null,null,null,null,null,null,null,null,null,null,null,null,null,null,null,null,null,null,null,null,null,null,null,null,null,null,null,null,null,null,null,null,null,null,null,null,null,null,null,null,null,null,null,null,null,null,null,null,null,null,null,null,null,null,null,null,null,null,null,null,null,null,null,null,null,null,null,null,null,null,null,null,null,null,null,null,null,null,null,null,null,null,null,null,null,null,null,null,null,null,null,null,null,null,null,null,null,null,null,null,null,null,null,null,null,null,null,null,0,"P","","ZZ","RA600",null,null,null,null,null,null,null,"ENERGY","_Z","TJ_NCV"]
["TJ NCV","Ambient heat (heat pumps)","Stock changes (National territory)",null,null,null,null,null,null,"P",null,null,null,null,null,null,null,null,null,null,null,null,null,null,null,null,null,null,null,null,null,null,null,null,null,null,null,null,null,null,null,null,null,null,null,null,null,null,null,null,null,null,null,null,null,null,null,null,null,null,null,null,null,null,null,null,null,null,null,null,null,null,null,null,null,null,null,null,null,null,null,null,null,null,null,null,null,null,null,null,null,null,null,null,null,null,null,null,null,null,null,null,null,null,null,null,null,null,null,null,null,null,null,null,null,null,null,null,null,0,"P","","ZZ","RA600",null,null,null,null,null,null,null,"ENERGY","_Z","TJ_NCV"]
["TJ NCV","Ambient heat (heat pumps)","Inland consumption (Calculated)",null,null,null,null,{"$f":"H182+H183-H184+H185","v":0},{"$f":"I182+I183-I184+I185","v":0},"P","",null,null,null,null,null,null,null,null,null,null,null,null,null,null,null,null,null,null,null,null,null,null,null,null,null,null,null,null,null,null,null,null,null,null,null,null,null,null,null,null,null,null,null,null,null,null,null,null,null,null,null,null,null,null,null,null,null,null,null,null,null,null,null,null,null,null,null,null,null,null,null,null,null,null,null,null,null,null,null,null,null,null,null,null,null,null,null,null,null,null,null,null,null,null,null,null,null,null,null,null,null,null,null,null,null,null,null,null,0,"P","","ZZ","RA600","SUPPLY","INLDEMC","_Z","_Z","_Z","_Z","_Z","ENERGY","_Z","TJ_NCV"]
["TJ NCV","Ambient heat (heat pumps)","Statistical Difference",null,null,null,null,{"$f":"H186-H188","v":0},{"$f":"I186-I188","v":0},"P",null,null,null,null,null,null,null,null,null,null,null,null,null,null,null,null,null,null,null,null,null,null,null,null,null,null,null,null,null,null,null,null,null,null,null,null,null,null,null,null,null,null,null,null,null,null,null,null,null,null,null,null,null,null,null,null,null,null,null,null,null,null,null,null,null,null,null,null,null,null,null,null,null,null,null,null,null,null,null,null,null,null,null,null,null,null,null,null,null,null,null,null,null,null,null,null,null,null,null,null,null,null,null,null,null,null,null,null,null,0,"P","","ZZ","RA600","STATDIFF","_Z","_Z","_Z","_Z","_Z","_Z","ENERGY","_Z","TJ_NCV"]
["TJ NCV","Ambient heat (heat pumps)","Inland consumption (Observed)",null,null,null,null,{"$f":"H189+H191+H192+H193","v":0},{"$f":"I189+I191+I192+I193","v":0},"P",{"$f":"IF(ISERROR(I188/H188),\"\",(I188/H188)-1)","v":""},null,null,null,null,null,null,null,null,null,null,null,null,null,null,null,null,null,null,null,null,null,null,null,null,null,null,null,null,null,null,null,null,null,null,null,null,null,null,null,null,null,null,null,null,null,null,null,null,null,null,null,null,null,null,null,null,null,null,null,null,null,null,null,null,null,null,null,null,null,null,null,null,null,null,null,null,null,null,null,null,null,null,null,null,null,null,null,null,null,null,null,null,null,null,null,null,null,null,null,null,null,null,null,null,null,null,null,null,0,"P","","ZZ","RA600","DEMAND","INLDEMO","_Z","_Z","_Z","_Z","_Z","ENERGY","_Z","TJ_NCV"]
["TJ NCV","Ambient heat (heat pumps)","Transformation sector",null,null,null,null,0,0,"P","",null,null,null,null,null,null,null,null,null,null,null,null,null,null,null,null,null,null,null,null,null,null,null,null,null,null,null,null,null,null,null,null,null,null,null,null,null,null,null,null,null,null,null,null,null,null,null,null,null,null,null,null,null,null,null,null,null,null,null,null,null,null,null,null,null,null,null,null,null,null,null,null,null,null,null,null,null,null,null,null,null,null,null,null,null,null,null,null,null,null,null,null,null,null,null,null,null,null,null,null,null,null,null,null,null,null,null,null,0,"P","","ZZ","RA600","TRANSFOR","TOTRANSF","_Z","_Z","_Z","_Z","_Z","ENERGY","_Z","TJ_NCV"]
["TJ NCV","Ambient heat (heat pumps)","     of which for blending",null,null,null,null,null,null,"P",null,null,null,null,null,null,null,null,null,null,null,null,null,null,null,null,null,null,null,null,null,null,null,null,null,null,null,null,null,null,null,null,null,null,null,null,null,null,null,null,null,null,null,null,null,null,null,null,null,null,null,null,null,null,null,null,null,null,null,null,null,null,null,null,null,null,null,null,null,null,null,null,null,null,null,null,null,null,null,null,null,null,null,null,null,null,null,null,null,null,null,null,null,null,null,null,null,null,null,null,null,null,null,null,null,null,null,null,null,0,"P","","ZZ","RA600",null,null,null,null,null,null,null,"ENERGY","_Z","TJ_NCV"]
["TJ NCV","Ambient heat (heat pumps)","Energy sector",null,null,null,null,0,0,"P","",null,null,null,null,null,null,null,null,null,null,null,null,null,null,null,null,null,null,null,null,null,null,null,null,null,null,null,null,null,null,null,null,null,null,null,null,null,null,null,null,null,null,null,null,null,null,null,null,null,null,null,null,null,null,null,null,null,null,null,null,null,null,null,null,null,null,null,null,null,null,null,null,null,null,null,null,null,null,null,null,null,null,null,null,null,null,null,null,null,null,null,null,null,null,null,null,null,null,null,null,null,null,null,null,null,null,null,null,0,"P","","ZZ","RA600","ENERGUSE","ENERSECT","_Z","_Z","_Z","_Z","_Z","ENERGY","_Z","TJ_NCV"]
["TJ NCV","Ambient heat (heat pumps)","Distribution losses",null,null,null,null,null,null,"P","",null,null,null,null,null,null,null,null,null,null,null,null,null,null,null,null,null,null,null,null,null,null,null,null,null,null,null,null,null,null,null,null,null,null,null,null,null,null,null,null,null,null,null,null,null,null,null,null,null,null,null,null,null,null,null,null,null,null,null,null,null,null,null,null,null,null,null,null,null,null,null,null,null,null,null,null,null,null,null,null,null,null,null,null,null,null,null,null,null,null,null,null,null,null,null,null,null,null,null,null,null,null,null,null,null,null,null,null,0,"P","","ZZ","RA600",null,null,null,null,null,null,null,"ENERGY","_Z","TJ_NCV"]
["TJ NCV","Ambient heat (heat pumps)","Total final energy consumption",null,null,null,null,{"$f":"H194+H195+H196","v":0},{"$f":"I194+I195+I196","v":0},"P","",null,null,null,null,null,null,null,null,null,null,null,null,null,null,null,null,null,null,null,null,null,null,null,null,null,null,null,null,null,null,null,null,null,null,null,null,null,null,null,null,null,null,null,null,null,null,null,null,null,null,null,null,null,null,null,null,null,null,null,null,null,null,null,null,null,null,null,null,null,null,null,null,null,null,null,null,null,null,null,null,null,null,null,null,null,null,null,null,null,null,null,null,null,null,null,null,null,null,null,null,null,null,null,null,null,null,null,null,0,"P","","ZZ","RA600","ENERGUSE","FINCONS","_Z","_Z","_Z","_Z","_Z","ENERGY","_Z","TJ_NCV"]
["TJ NCV","Ambient heat (heat pumps)","Industry sector",null,null,null,null,0,0,"P","",null,null,null,null,null,null,null,null,null,null,null,null,null,null,null,null,null,null,null,null,null,null,null,null,null,null,null,null,null,null,null,null,null,null,null,null,null,null,null,null,null,null,null,null,null,null,null,null,null,null,null,null,null,null,null,null,null,null,null,null,null,null,null,null,null,null,null,null,null,null,null,null,null,null,null,null,null,null,null,null,null,null,null,null,null,null,null,null,null,null,null,null,null,null,null,null,null,null,null,null,null,null,null,null,null,null,null,null,0,"P","",{"$f":"$S$1","v":"ZZ"},"RA600","ENERGUSE","INDUSTRY","_Z","_Z","_Z","_Z","_Z","ENERGY","_Z","TJ_NCV"]
["TJ NCV","Ambient heat (heat pumps)","Transport sector",null,null,null,null,0,0,"P","",null,null,null,null,null,null,null,null,null,null,null,null,null,null,null,null,null,null,null,null,null,null,null,null,null,null,null,null,null,null,null,null,null,null,null,null,null,null,null,null,null,null,null,null,null,null,null,null,null,null,null,null,null,null,null,null,null,null,null,null,null,null,null,null,null,null,null,null,null,null,null,null,null,null,null,null,null,null,null,null,null,null,null,null,null,null,null,null,null,null,null,null,null,null,null,null,null,null,null,null,null,null,null,null,null,null,null,null,{"$f":"IF(J195=\"O\",\"NaN\",ROUND(I195,3))","v":0},{"$f":"IF(J195=\"\",\"A\",J195)","v":"P"},{"$f":"LEFT(TRIM(L195),255)","v":""},"ZZ","RA600","ENERGUSE","TRANSPOR","_Z","_Z","_Z","_Z","_Z","ENERGY","_Z","TJ_NCV"]
["TJ NCV","Ambient heat (heat pumps)","Other sectors",null,null,null,null,0,0,"P","",null,null,null,null,null,null,null,null,null,null,null,null,null,null,null,null,null,null,null,null,null,null,null,null,null,null,null,null,null,null,null,null,null,null,null,null,null,null,null,null,null,null,null,null,null,null,null,null,null,null,null,null,null,null,null,null,null,null,null,null,null,null,null,null,null,null,null,null,null,null,null,null,null,null,null,null,null,null,null,null,null,null,null,null,null,null,null,null,null,null,null,null,null,null,null,null,null,null,null,null,null,null,null,null,null,null,null,null,0,"P","","ZZ","RA600","ENERGUSE","OTHSECT","_Z","_Z","_Z","_Z","_Z","ENERGY","_Z","TJ_NCV"]
["MWe","Net maximum capacity","Hydro",null,null,null,null,0,{"$f":"I198+I199+I200","v":0},"P",{"$f":"IF(ISERROR(I197/H197),\"\",(I197/H197)-1)","v":""},null,null,null,null,null,null,null,null,null,null,null,null,null,null,null,null,null,null,null,null,null,null,null,null,null,null,null,null,null,null,null,null,null,null,null,null,null,null,null,null,null,null,null,null,null,null,null,null,null,null,null,null,null,null,null,null,null,null,null,null,null,null,null,null,null,null,null,null,null,null,null,null,null,null,null,null,null,null,null,null,null,null,null,null,null,null,null,null,null,null,null,null,null,null,null,null,null,null,null,null,null,null,null,null,null,null,null,null,0,"P","","ZZ","E7000","_Z","_Z","HYDRO","_Z","_Z","NETCAP","_Z","POWER","_Z","MW"]
["MWe","Net maximum capacity","     Pure hydro (with no pumping)",null,null,null,null,0,0,"P","",null,null,null,null,null,null,null,null,null,null,null,null,null,null,null,null,null,null,null,null,null,null,null,null,null,null,null,null,null,null,null,null,null,null,null,null,null,null,null,null,null,null,null,null,null,null,null,null,null,null,null,null,null,null,null,null,null,null,null,null,null,null,null,null,null,null,null,null,null,null,null,null,null,null,null,null,null,null,null,null,null,null,null,null,null,null,null,null,null,null,null,null,null,null,null,null,null,null,null,null,null,null,null,null,null,null,null,null,0,"P","","ZZ","E7000","_Z","_Z","HYDPUR","_Z","_Z","NETCAP","_Z","POWER","_Z","MW"]
["MWe","Net maximum capacity","     Mixed hydro",null,null,null,null,0,0,"P","",null,null,null,null,null,null,null,null,null,null,null,null,null,null,null,null,null,null,null,null,null,null,null,null,null,null,null,null,null,null,null,null,null,null,null,null,null,null,null,null,null,null,null,null,null,null,null,null,null,null,null,null,null,null,null,null,null,null,null,null,null,null,null,null,null,null,null,null,null,null,null,null,null,null,null,null,null,null,null,null,null,null,null,null,null,null,null,null,null,null,null,null,null,null,null,null,null,null,null,null,null,null,null,null,null,null,null,null,0,"P","","ZZ","E7000","_Z","_Z","HYDMIX","_Z","_Z","NETCAP","_Z","POWER","_Z","MW"]
["MWe","Net maximum capacity","     Pure pumped storage",null,null,null,null,0,0,"P","",null,null,null,null,null,null,null,null,null,null,null,null,null,null,null,null,null,null,null,null,null,null,null,null,null,null,null,null,null,null,null,null,null,null,null,null,null,null,null,null,null,null,null,null,null,null,null,null,null,null,null,null,null,null,null,null,null,null,null,null,null,null,null,null,null,null,null,null,null,null,null,null,null,null,null,null,null,null,null,null,null,null,null,null,null,null,null,null,null,null,null,null,null,null,null,null,null,null,null,null,null,null,null,null,null,null,null,null,0,"P","","ZZ","E7000","_Z","_Z","HYDPPS","_Z","_Z","NETCAP","_Z","POWER","_Z","MW"]
["MWe","Net maximum capacity","Wind",null,null,null,null,0,{"$f":"I202+I203","v":0},"P","",null,null,null,null,null,null,null,null,null,null,null,null,null,null,null,null,null,null,null,null,null,null,null,null,null,null,null,null,null,null,null,null,null,null,null,null,null,null,null,null,null,null,null,null,null,null,null,null,null,null,null,null,null,null,null,null,null,null,null,null,null,null,null,null,null,null,null,null,null,null,null,null,null,null,null,null,null,null,null,null,null,null,null,null,null,null,null,null,null,null,null,null,null,null,null,null,null,null,null,null,null,null,null,null,null,null,null,null,0,"P","","ZZ","E7000","_Z","_Z","WIND","_Z","_Z","NETCAP","_Z","POWER","_Z","MW"]
["MWe","Net maximum capacity","     Onshore wind",null,null,null,null,0,0,"P","",null,null,null,null,null,null,null,null,null,null,null,null,null,null,null,null,null,null,null,null,null,null,null,null,null,null,null,null,null,null,null,null,null,null,null,null,null,null,null,null,null,null,null,null,null,null,null,null,null,null,null,null,null,null,null,null,null,null,null,null,null,null,null,null,null,null,null,null,null,null,null,null,null,null,null,null,null,null,null,null,null,null,null,null,null,null,null,null,null,null,null,null,null,null,null,null,null,null,null,null,null,null,null,null,null,null,null,null,0,"P","","ZZ","E7000","_Z","_Z","WINDON","_Z","_Z","NETCAP","_Z","POWER","_Z","MW"]
["MWe","Net maximum capacity","     Offshore wind",null,null,null,null,0,0,"P","",null,null,null,null,null,null,null,null,null,null,null,null,null,null,null,null,null,null,null,null,null,null,null,null,null,null,null,null,null,null,null,null,null,null,null,null,null,null,null,null,null,null,null,null,null,null,null,null,null,null,null,null,null,null,null,null,null,null,null,null,null,null,null,null,null,null,null,null,null,null,null,null,null,null,null,null,null,null,null,null,null,null,null,null,null,null,null,null,null,null,null,null,null,null,null,null,null,null,null,null,null,null,null,null,null,null,null,null,0,"P","","ZZ","E7000","_Z","_Z","WINDOFF","_Z","_Z","NETCAP","_Z","POWER","_Z","MW"]
["ktoe","Biofuels","Total final energy consumption of biofuels (liquid and gaseous) in transport",null,null,null,null,0,0,"P","",null,null,null,null,null,null,null,null,null,null,null,null,null,null,null,null,null,null,null,null,null,null,null,null,null,null,null,null,null,null,null,null,null,null,null,null,null,null,null,null,null,null,null,null,null,null,null,null,null,null,null,null,null,null,null,null,null,null,null,null,null,null,null,null,null,null,null,null,null,null,null,null,null,null,null,null,null,null,null,null,null,null,null,null,null,null,null,null,null,null,null,null,null,null,null,null,null,null,null,null,null,null,null,null,null,null,null,null,0,"P","","ZZ","R5250","ENERGUSE","FC_TRA_E_RED","_Z","_Z","_Z","_Z","_Z","ENERGY","_Z","KTOE"]
["ktoe","Biofuels","    of which sustainable biofuels",null,null,null,null,0,0,"P","",null,null,null,null,null,null,null,null,null,null,null,null,null,null,null,null,null,null,null,null,null,null,null,null,null,null,null,null,null,null,null,null,null,null,null,null,null,null,null,null,null,null,null,null,null,null,null,null,null,null,null,null,null,null,null,null,null,null,null,null,null,null,null,null,null,null,null,null,null,null,null,null,null,null,null,null,null,null,null,null,null,null,null,null,null,null,null,null,null,null,null,null,null,null,null,null,null,null,null,null,null,null,null,null,null,null,null,null,0,"P","","ZZ","R5250S","ENERGUSE","FC_TRA_E_RED","_Z","_Z","_Z","_Z","_Z","ENERGY","_Z","KTOE"]
["ktoe","Biofuels","              of which Annex IX\n               (double counted)",null,null,null,null,0,0,"P","",null,null,null,null,null,null,null,null,null,null,null,null,null,null,null,null,null,null,null,null,null,null,null,null,null,null,null,null,null,null,null,null,null,null,null,null,null,null,null,null,null,null,null,null,null,null,null,null,null,null,null,null,null,null,null,null,null,null,null,null,null,null,null,null,null,null,null,null,null,null,null,null,null,null,null,null,null,null,null,null,null,null,null,null,null,null,null,null,null,null,null,null,null,null,null,null,null,null,null,null,null,null,null,null,null,null,null,null,0,"P","","ZZ","R5251S","ENERGUSE","FC_TRA_E_RED","_Z","_Z","_Z","_Z","_Z","ENERGY","_Z","KTOE"]
["ktoe","Biomethane","Biomethane injected in the grid to be counted towards the transport target",null,null,null,null,0,0,"P","",null,null,null,null,null,null,null,null,null,null,null,null,null,null,null,null,null,null,null,null,null,null,null,null,null,null,null,null,null,null,null,null,null,null,null,null,null,null,null,null,null,null,null,null,null,null,null,null,null,null,null,null,null,null,null,null,null,null,null,null,null,null,null,null,null,null,null,null,null,null,null,null,null,null,null,null,null,null,null,null,null,null,null,null,null,null,null,null,null,null,null,null,null,null,null,null,null,null,null,null,null,null,null,null,null,null,null,null,0,"P","","ZZ","R5300B","ENERGUSE","BIOG_G_TRA","_Z","_Z","_Z","_Z","_Z","ENERGY","_Z","KTOE"]
["ktoe","Bioliquids","Sustainable bioliquids: final consumption  in sectors other than transport",null,null,null,null,0,0,"P","",null,null,null,null,null,null,null,null,null,null,null,null,null,null,null,null,null,null,null,null,null,null,null,null,null,null,null,null,null,null,null,null,null,null,null,null,null,null,null,null,null,null,null,null,null,null,null,null,null,null,null,null,null,null,null,null,null,null,null,null,null,null,null,null,null,null,null,null,null,null,null,null,null,null,null,null,null,null,null,null,null,null,null,null,null,null,null,null,null,null,null,null,null,null,null,null,null,null,null,null,null,null,null,null,null,null,null,null,0,"P","","ZZ","R5292S","ENERGUSE","FC_IND_OTH_E","_Z","_Z","_Z","_Z","_Z","ENERGY","_Z","KTOE"]
["ktoe","Article 6 : Statistical transfers between Member States","Total renewable energy to be added ",null,null,null,null,null,0,"P",null,null,null,null,null,null,null,null,null,null,null,null,null,null,null,null,null,null,null,null,null,null,null,null,null,null,null,null,null,null,null,null,null,null,null,null,null,null,null,null,null,null,null,null,null,null,null,null,null,null,null,null,null,null,null,null,null,null,null,null,null,null,null,null,null,null,null,null,null,null,null,null,null,null,null,null,null,null,null,null,null,null,null,null,null,null,null,null,null,null,null,null,null,null,null,null,null,null,null,null,null,null,null,null,null,null,null,null,null,{"$f":"IF(J209=\"O\",\"NaN\",ROUND(I209,3))","v":0},{"$f":"IF(J209=\"\",\"A\",J209)","v":"P"},{"$f":"LEFT(TRIM(L209),255)","v":""},"ZZ","RA000","ST_JP_JSS","ST_MS_TAA","_Z","_Z","_Z","_Z","_Z","ENERGY","_Z","KTOE"]
["ktoe","Article 6 : Statistical transfers between Member States","     of which transport",null,null,null,null,null,0,"P",null,null,null,null,null,null,null,null,null,null,null,null,null,null,null,null,null,null,null,null,null,null,null,null,null,null,null,null,null,null,null,null,null,null,null,null,null,null,null,null,null,null,null,null,null,null,null,null,null,null,null,null,null,null,null,null,null,null,null,null,null,null,null,null,null,null,null,null,null,null,null,null,null,null,null,null,null,null,null,null,null,null,null,null,null,null,null,null,null,null,null,null,null,null,null,null,null,null,null,null,null,null,null,null,null,null,null,null,null,{"$f":"IF(J210=\"O\",\"NaN\",ROUND(I210,3))","v":0},{"$f":"IF(J210=\"\",\"A\",J210)","v":"P"},{"$f":"LEFT(TRIM(L210),255)","v":""},"ZZ","RA000","ST_JP_JSS","ST_MS_TRA_TAA","_Z","_Z","_Z","_Z","_Z","ENERGY","_Z","KTOE"]
["ktoe","Article 6 : Statistical transfers between Member States","Total renewable energy to be deducted",null,null,null,null,null,0,"P",null,null,null,null,null,null,null,null,null,null,null,null,null,null,null,null,null,null,null,null,null,null,null,null,null,null,null,null,null,null,null,null,null,null,null,null,null,null,null,null,null,null,null,null,null,null,null,null,null,null,null,null,null,null,null,null,null,null,null,null,null,null,null,null,null,null,null,null,null,null,null,null,null,null,null,null,null,null,null,null,null,null,null,null,null,null,null,null,null,null,null,null,null,null,null,null,null,null,null,null,null,null,null,null,null,null,null,null,null,{"$f":"IF(J211=\"O\",\"NaN\",ROUND(I211,3))","v":0},{"$f":"IF(J211=\"\",\"A\",J211)","v":"P"},{"$f":"LEFT(TRIM(L211),255)","v":""},"ZZ","RA000","ST_JP_JSS","ST_MS_TAD","_Z","_Z","_Z","_Z","_Z","ENERGY","_Z","KTOE"]
["ktoe","Article 6 : Statistical transfers between Member States","     of which transport",null,null,null,null,null,0,"P",null,null,null,null,null,null,null,null,null,null,null,null,null,null,null,null,null,null,null,null,null,null,null,null,null,null,null,null,null,null,null,null,null,null,null,null,null,null,null,null,null,null,null,null,null,null,null,null,null,null,null,null,null,null,null,null,null,null,null,null,null,null,null,null,null,null,null,null,null,null,null,null,null,null,null,null,null,null,null,null,null,null,null,null,null,null,null,null,null,null,null,null,null,null,null,null,null,null,null,null,null,null,null,null,null,null,null,null,null,{"$f":"IF(J212=\"O\",\"NaN\",ROUND(I212,3))","v":0},{"$f":"IF(J212=\"\",\"A\",J212)","v":"P"},{"$f":"LEFT(TRIM(L212),255)","v":""},"ZZ","RA000","ST_JP_JSS","ST_MS_TRA_TAD","_Z","_Z","_Z","_Z","_Z","ENERGY","_Z","KTOE"]

{"sheet":"PREFILLED-ANNUAL","index":5,"n_rows":54,"n_cols":15,"rows_kept":54,"cut":false,"hidden":true,"merged":[]}
[]
[null,null,"TJ NCV","TJ NCV","TJ NCV","TJ NCV","TJ NCV","TJ NCV","kt","TJ NCV","kt","kt","kt","kt","TJ NCV"]
[null,{"$f":"COLUMN!Q1-1","v":2019},"Geothermal energy","Solar thermal","Industrial waste (non-renewable)","Municipal waste (renewable)","Municipal waste (non-renewable)","Solid biofuels excluding charcoal","Charcoal","Biogases","Biogasoline","Bio jet kerosenes","Biodiesels","Other liquid biofuels","Ambient heat (heat pumps)"]
[null,"Indigenous production",{"$f":"COLUMN!H2","v":0},{"$f":"COLUMN!H17","v":0},{"$f":"COLUMN!H32","v":0},{"$f":"COLUMN!H47","v":0},{"$f":"COLUMN!H62","v":0},{"$f":"COLUMN!H77","v":0},{"$f":"COLUMN!H92","v":0},{"$f":"COLUMN!H107","v":0},{"$f":"COLUMN!H122","v":0},{"$f":"COLUMN!H137","v":0},{"$f":"COLUMN!H152","v":0},{"$f":"COLUMN!H167","v":0},{"$f":"COLUMN!H182","v":0}]
[null,"Total imports (Balance)",{"$f":"COLUMN!H3","v":0},{"$f":"COLUMN!H18","v":0},{"$f":"COLUMN!H33","v":0},{"$f":"COLUMN!H48","v":0},{"$f":"COLUMN!H63","v":0},{"$f":"COLUMN!H78","v":0},{"$f":"COLUMN!H93","v":0},{"$f":"COLUMN!H108","v":0},{"$f":"COLUMN!H123","v":0},{"$f":"COLUMN!H138","v":0},{"$f":"COLUMN!H153","v":0},{"$f":"COLUMN!H168","v":0},{"$f":"COLUMN!H183","v":0}]
[null,"Total exports (Balance)",{"$f":"COLUMN!H4","v":0},{"$f":"COLUMN!H19","v":0},{"$f":"COLUMN!H34","v":0},{"$f":"COLUMN!H49","v":0},{"$f":"COLUMN!H64","v":0},{"$f":"COLUMN!H79","v":0},{"$f":"COLUMN!H94","v":0},{"$f":"COLUMN!H109","v":0},{"$f":"COLUMN!H124","v":0},{"$f":"COLUMN!H139","v":0},{"$f":"COLUMN!H154","v":0},{"$f":"COLUMN!H169","v":0},{"$f":"COLUMN!H184","v":0}]
[null,"Stock changes (National territory)",{"$f":"COLUMN!H5","v":0},{"$f":"COLUMN!H20","v":0},{"$f":"COLUMN!H35","v":0},{"$f":"COLUMN!H50","v":0},{"$f":"COLUMN!H65","v":0},{"$f":"COLUMN!H80","v":0},{"$f":"COLUMN!H95","v":0},{"$f":"COLUMN!H110","v":0},{"$f":"COLUMN!H125","v":0},{"$f":"COLUMN!H140","v":0},{"$f":"COLUMN!H155","v":0},{"$f":"COLUMN!H170","v":0},{"$f":"COLUMN!H185","v":0}]
[null,"Inland consumption (Calculated)",{"$f":"COLUMN!H6","v":0},{"$f":"COLUMN!H21","v":0},{"$f":"COLUMN!H36","v":0},{"$f":"COLUMN!H51","v":0},{"$f":"COLUMN!H66","v":0},{"$f":"COLUMN!H81","v":0},{"$f":"COLUMN!H96","v":0},{"$f":"COLUMN!H111","v":0},{"$f":"COLUMN!H126","v":0},{"$f":"COLUMN!H141","v":0},{"$f":"COLUMN!H156","v":0},{"$f":"COLUMN!H171","v":0},{"$f":"COLUMN!H186","v":0}]
[null,"Statistical Difference",{"$f":"COLUMN!H7","v":0},{"$f":"COLUMN!H22","v":0},{"$f":"COLUMN!H37","v":0},{"$f":"COLUMN!H52","v":0},{"$f":"COLUMN!H67","v":0},{"$f":"COLUMN!H82","v":0},{"$f":"COLUMN!H97","v":0},{"$f":"COLUMN!H112","v":0},{"$f":"COLUMN!H127","v":0},{"$f":"COLUMN!H142","v":0},{"$f":"COLUMN!H157","v":0},{"$f":"COLUMN!H172","v":0},{"$f":"COLUMN!H187","v":0}]
[null,"Inland consumption (Observed)",{"$f":"COLUMN!H8","v":0},{"$f":"COLUMN!H23","v":0},{"$f":"COLUMN!H38","v":0},{"$f":"COLUMN!H53","v":0},{"$f":"COLUMN!H68","v":0},{"$f":"COLUMN!H83","v":0},{"$f":"COLUMN!H98","v":0},{"$f":"COLUMN!H113","v":0},{"$f":"COLUMN!H128","v":0},{"$f":"COLUMN!H143","v":0},{"$f":"COLUMN!H158","v":0},{"$f":"COLUMN!H173","v":0},{"$f":"COLUMN!H188","v":0}]
[null,"Transformation sector",{"$f":"COLUMN!H9","v":0},{"$f":"COLUMN!H24","v":0},{"$f":"COLUMN!H39","v":0},{"$f":"COLUMN!H54","v":0},{"$f":"COLUMN!H69","v":0},{"$f":"COLUMN!H84","v":0},{"$f":"COLUMN!H99","v":0},{"$f":"COLUMN!H114","v":0},{"$f":"COLUMN!H129","v":0},{"$f":"COLUMN!H144","v":0},{"$f":"COLUMN!H159","v":0},{"$f":"COLUMN!H174","v":0},{"$f":"COLUMN!H189","v":0}]
[null,"     of which for blending",{"$f":"COLUMN!H10","v":0},{"$f":"COLUMN!H25","v":0},{"$f":"COLUMN!H40","v":0},{"$f":"COLUMN!H55","v":0},{"$f":"COLUMN!H70","v":0},{"$f":"COLUMN!H85","v":0},{"$f":"COLUMN!H100","v":0},{"$f":"COLUMN!H115","v":0},{"$f":"COLUMN!H130","v":0},{"$f":"COLUMN!H145","v":0},{"$f":"COLUMN!H160","v":0},{"$f":"COLUMN!H175","v":0},{"$f":"COLUMN!H190","v":0}]
[null,"Energy sector",{"$f":"COLUMN!H11","v":0},{"$f":"COLUMN!H26","v":0},{"$f":"COLUMN!H41","v":0},{"$f":"COLUMN!H56","v":0},{"$f":"COLUMN!H71","v":0},{"$f":"COLUMN!H86","v":0},{"$f":"COLUMN!H101","v":0},{"$f":"COLUMN!H116","v":0},{"$f":"COLUMN!H131","v":0},{"$f":"COLUMN!H146","v":0},{"$f":"COLUMN!H161","v":0},{"$f":"COLUMN!H176","v":0},{"$f":"COLUMN!H191","v":0}]
[null,"Distribution losses",{"$f":"COLUMN!H12","v":0},{"$f":"COLUMN!H27","v":0},{"$f":"COLUMN!H42","v":0},{"$f":"COLUMN!H57","v":0},{"$f":"COLUMN!H72","v":0},{"$f":"COLUMN!H87","v":0},{"$f":"COLUMN!H102","v":0},{"$f":"COLUMN!H117","v":0},{"$f":"COLUMN!H132","v":0},{"$f":"COLUMN!H147","v":0},{"$f":"COLUMN!H162","v":0},{"$f":"COLUMN!H177","v":0},{"$f":"COLUMN!H192","v":0}]
[null,"Total final energy consumption",{"$f":"COLUMN!H13","v":0},{"$f":"COLUMN!H28","v":0},{"$f":"COLUMN!H43","v":0},{"$f":"COLUMN!H58","v":0},{"$f":"COLUMN!H73","v":0},{"$f":"COLUMN!H88","v":0},{"$f":"COLUMN!H103","v":0},{"$f":"COLUMN!H118","v":0},{"$f":"COLUMN!H133","v":0},{"$f":"COLUMN!H148","v":0},{"$f":"COLUMN!H163","v":0},{"$f":"COLUMN!H178","v":0},{"$f":"COLUMN!H193","v":0}]
[null,"Industry sector",{"$f":"COLUMN!H14","v":0},{"$f":"COLUMN!H29","v":0},{"$f":"COLUMN!H44","v":0},{"$f":"COLUMN!H59","v":0},{"$f":"COLUMN!H74","v":0},{"$f":"COLUMN!H89","v":0},{"$f":"COLUMN!H104","v":0},{"$f":"COLUMN!H119","v":0},{"$f":"COLUMN!H134","v":0},{"$f":"COLUMN!H149","v":0},{"$f":"COLUMN!H164","v":0},{"$f":"COLUMN!H179","v":0},{"$f":"COLUMN!H194","v":0}]
[null,"Transport sector",{"$f":"COLUMN!H15","v":0},{"$f":"COLUMN!H30","v":0},{"$f":"COLUMN!H45","v":0},{"$f":"COLUMN!H60","v":0},{"$f":"COLUMN!H75","v":0},{"$f":"COLUMN!H90","v":0},{"$f":"COLUMN!H105","v":0},{"$f":"COLUMN!H120","v":0},{"$f":"COLUMN!H135","v":0},{"$f":"COLUMN!H150","v":0},{"$f":"COLUMN!H165","v":0},{"$f":"COLUMN!H180","v":0},{"$f":"COLUMN!H195","v":0}]
[null,"Other sectors",{"$f":"COLUMN!H16","v":0},{"$f":"COLUMN!H31","v":0},{"$f":"COLUMN!H46","v":0},{"$f":"COLUMN!H61","v":0},{"$f":"COLUMN!H76","v":0},{"$f":"COLUMN!H91","v":0},{"$f":"COLUMN!H106","v":0},{"$f":"COLUMN!H121","v":0},{"$f":"COLUMN!H136","v":0},{"$f":"COLUMN!H151","v":0},{"$f":"COLUMN!H166","v":0},{"$f":"COLUMN!H181","v":0},{"$f":"COLUMN!H196","v":0}]
[]
[]
[null,"Growth rates","Geothermal energy","Solar thermal","Industrial waste (non-renewable)","Municipal waste (renewable)","Municipal waste (non-renewable)","Solid biofuels excluding charcoal","Charcoal","Biogases","Biogasoline","Bio jet kerosenes","Biodiesels","Other liquid biofuels","Ambient heat (heat pumps)"]
[null,"Indigenous production",{"$f":"IF(ISERROR(('TABLES-FORMS'!C4-'PREFILLED-ANNUAL'!C4)/('PREFILLED-ANNUAL'!C4)),\"\",('TABLES-FORMS'!C4-'PREFILLED-ANNUAL'!C4)/('PREFILLED-ANNUAL'!C4))","v":""},{"$f":"IF(ISERROR(('TABLES-FORMS'!D4-'PREFILLED-ANNUAL'!D4)/('PREFILLED-ANNUAL'!D4)),\"\",('TABLES-FORMS'!D4-'PREFILLED-ANNUAL'!D4)/('PREFILLED-ANNUAL'!D4))","v":""},{"$f":"IF(ISERROR(('TABLES-FORMS'!E4-'PREFILLED-ANNUAL'!E4)/('PREFILLED-ANNUAL'!E4)),\"\",('TABLES-FORMS'!E4-'PREFILLED-ANNUAL'!E4)/('PREFILLED-ANNUAL'!E4))","v":""},{"$f":"IF(ISERROR(('TABLES-FORMS'!F4-'PREFILLED-ANNUAL'!F4)/('PREFILLED-ANNUAL'!F4)),\"\",('TABLES-FORMS'!F4-'PREFILLED-ANNUAL'!F4)/('PREFILLED-ANNUAL'!F4))","v":""},{"$f":"IF(ISERROR(('TABLES-FORMS'!G4-'PREFILLED-ANNUAL'!G4)/('PREFILLED-ANNUAL'!G4)),\"\",('TABLES-FORMS'!G4-'PREFILLED-ANNUAL'!G4)/('PREFILLED-ANNUAL'!G4))","v":""},{"$f":"IF(ISERROR(('TABLES-FORMS'!H4-'PREFILLED-ANNUAL'!H4)/('PREFILLED-ANNUAL'!H4)),\"\",('TABLES-FORMS'!H4-'PREFILLED-ANNUAL'!H4)/('PREFILLED-ANNUAL'!H4))","v":""},{"$f":"IF(ISERROR(('TABLES-FORMS'!I4-'PREFILLED-ANNUAL'!I4)/('PREFILLED-ANNUAL'!I4)),\"\",('TABLES-FORMS'!I4-'PREFILLED-ANNUAL'!I4)/('PREFILLED-ANNUAL'!I4))","v":""},{"$f":"IF(ISERROR(('TABLES-FORMS'!J4-'PREFILLED-ANNUAL'!J4)/('PREFILLED-ANNUAL'!J4)),\"\",('TABLES-FORMS'!J4-'PREFILLED-ANNUAL'!J4)/('PREFILLED-ANNUAL'!J4))","v":""},{"$f":"IF(ISERROR(('TABLES-FORMS'!K4-'PREFILLED-ANNUAL'!K4)/('PREFILLED-ANNUAL'!K4)),\"\",('TABLES-FORMS'!K4-'PREFILLED-ANNUAL'!K4)/('PREFILLED-ANNUAL'!K4))","v":""},{"$f":"IF(ISERROR(('TABLES-FORMS'!L4-'PREFILLED-ANNUAL'!L4)/('PREFILLED-ANNUAL'!L4)),\"\",('TABLES-FORMS'!L4-'PREFILLED-ANNUAL'!L4)/('PREFILLED-ANNUAL'!L4))","v":""},{"$f":"IF(ISERROR(('TABLES-FORMS'!M4-'PREFILLED-ANNUAL'!M4)/('PREFILLED-ANNUAL'!M4)),\"\",('TABLES-FORMS'!M4-'PREFILLED-ANNUAL'!M4)/('PREFILLED-ANNUAL'!M4))","v":""},{"$f":"IF(ISERROR(('TABLES-FORMS'!N4-'PREFILLED-ANNUAL'!N4)/('PREFILLED-ANNUAL'!N4)),\"\",('TABLES-FORMS'!N4-'PREFILLED-ANNUAL'!N4)/('PREFILLED-ANNUAL'!N4))","v":""},{"$f":"IF(ISERROR(('TABLES-FORMS'!O4-'PREFILLED-ANNUAL'!O4)/('PREFILLED-ANNUAL'!O4)),\"\",('TABLES-FORMS'!O4-'PREFILLED-ANNUAL'!O4)/('PREFILLED-ANNUAL'!O4))","v":""}]
[null,"Total imports (Balance)",{"$f":"IF(ISERROR(('TABLES-FORMS'!C5-'PREFILLED-ANNUAL'!C5)/('PREFILLED-ANNUAL'!C5)),\"\",('TABLES-FORMS'!C5-'PREFILLED-ANNUAL'!C5)/('PREFILLED-ANNUAL'!C5))","v":""},{"$f":"IF(ISERROR(('TABLES-FORMS'!D5-'PREFILLED-ANNUAL'!D5)/('PREFILLED-ANNUAL'!D5)),\"\",('TABLES-FORMS'!D5-'PREFILLED-ANNUAL'!D5)/('PREFILLED-ANNUAL'!D5))","v":""},{"$f":"IF(ISERROR(('TABLES-FORMS'!E5-'PREFILLED-ANNUAL'!E5)/('PREFILLED-ANNUAL'!E5)),\"\",('TABLES-FORMS'!E5-'PREFILLED-ANNUAL'!E5)/('PREFILLED-ANNUAL'!E5))","v":""},{"$f":"IF(ISERROR(('TABLES-FORMS'!F5-'PREFILLED-ANNUAL'!F5)/('PREFILLED-ANNUAL'!F5)),\"\",('TABLES-FORMS'!F5-'PREFILLED-ANNUAL'!F5)/('PREFILLED-ANNUAL'!F5))","v":""},{"$f":"IF(ISERROR(('TABLES-FORMS'!G5-'PREFILLED-ANNUAL'!G5)/('PREFILLED-ANNUAL'!G5)),\"\",('TABLES-FORMS'!G5-'PREFILLED-ANNUAL'!G5)/('PREFILLED-ANNUAL'!G5))","v":""},{"$f":"IF(ISERROR(('TABLES-FORMS'!H5-'PREFILLED-ANNUAL'!H5)/('PREFILLED-ANNUAL'!H5)),\"\",('TABLES-FORMS'!H5-'PREFILLED-ANNUAL'!H5)/('PREFILLED-ANNUAL'!H5))","v":""},{"$f":"IF(ISERROR(('TABLES-FORMS'!I5-'PREFILLED-ANNUAL'!I5)/('PREFILLED-ANNUAL'!I5)),\"\",('TABLES-FORMS'!I5-'PREFILLED-ANNUAL'!I5)/('PREFILLED-ANNUAL'!I5))","v":""},{"$f":"IF(ISERROR(('TABLES-FORMS'!J5-'PREFILLED-ANNUAL'!J5)/('PREFILLED-ANNUAL'!J5)),\"\",('TABLES-FORMS'!J5-'PREFILLED-ANNUAL'!J5)/('PREFILLED-ANNUAL'!J5))","v":""},{"$f":"IF(ISERROR(('TABLES-FORMS'!K5-'PREFILLED-ANNUAL'!K5)/('PREFILLED-ANNUAL'!K5)),\"\",('TABLES-FORMS'!K5-'PREFILLED-ANNUAL'!K5)/('PREFILLED-ANNUAL'!K5))","v":""},{"$f":"IF(ISERROR(('TABLES-FORMS'!L5-'PREFILLED-ANNUAL'!L5)/('PREFILLED-ANNUAL'!L5)),\"\",('TABLES-FORMS'!L5-'PREFILLED-ANNUAL'!L5)/('PREFILLED-ANNUAL'!L5))","v":""},{"$f":"IF(ISERROR(('TABLES-FORMS'!M5-'PREFILLED-ANNUAL'!M5)/('PREFILLED-ANNUAL'!M5)),\"\",('TABLES-FORMS'!M5-'PREFILLED-ANNUAL'!M5)/('PREFILLED-ANNUAL'!M5))","v":""},{"$f":"IF(ISERROR(('TABLES-FORMS'!N5-'PREFILLED-ANNUAL'!N5)/('PREFILLED-ANNUAL'!N5)),\"\",('TABLES-FORMS'!N5-'PREFILLED-ANNUAL'!N5)/('PREFILLED-ANNUAL'!N5))","v":""},{"$f":"IF(ISERROR(('TABLES-FORMS'!O5-'PREFILLED-ANNUAL'!O5)/('PREFILLED-ANNUAL'!O5)),\"\",('TABLES-FORMS'!O5-'PREFILLED-ANNUAL'!O5)/('PREFILLED-ANNUAL'!O5))","v":""}]
[null,"Total exports (Balance)",{"$f":"IF(ISERROR(('TABLES-FORMS'!C6-'PREFILLED-ANNUAL'!C6)/('PREFILLED-ANNUAL'!C6)),\"\",('TABLES-FORMS'!C6-'PREFILLED-ANNUAL'!C6)/('PREFILLED-ANNUAL'!C6))","v":""},{"$f":"IF(ISERROR(('TABLES-FORMS'!D6-'PREFILLED-ANNUAL'!D6)/('PREFILLED-ANNUAL'!D6)),\"\",('TABLES-FORMS'!D6-'PREFILLED-ANNUAL'!D6)/('PREFILLED-ANNUAL'!D6))","v":""},{"$f":"IF(ISERROR(('TABLES-FORMS'!E6-'PREFILLED-ANNUAL'!E6)/('PREFILLED-ANNUAL'!E6)),\"\",('TABLES-FORMS'!E6-'PREFILLED-ANNUAL'!E6)/('PREFILLED-ANNUAL'!E6))","v":""},{"$f":"IF(ISERROR(('TABLES-FORMS'!F6-'PREFILLED-ANNUAL'!F6)/('PREFILLED-ANNUAL'!F6)),\"\",('TABLES-FORMS'!F6-'PREFILLED-ANNUAL'!F6)/('PREFILLED-ANNUAL'!F6))","v":""},{"$f":"IF(ISERROR(('TABLES-FORMS'!G6-'PREFILLED-ANNUAL'!G6)/('PREFILLED-ANNUAL'!G6)),\"\",('TABLES-FORMS'!G6-'PREFILLED-ANNUAL'!G6)/('PREFILLED-ANNUAL'!G6))","v":""},{"$f":"IF(ISERROR(('TABLES-FORMS'!H6-'PREFILLED-ANNUAL'!H6)/('PREFILLED-ANNUAL'!H6)),\"\",('TABLES-FORMS'!H6-'PREFILLED-ANNUAL'!H6)/('PREFILLED-ANNUAL'!H6))","v":""},{"$f":"IF(ISERROR(('TABLES-FORMS'!I6-'PREFILLED-ANNUAL'!I6)/('PREFILLED-ANNUAL'!I6)),\"\",('TABLES-FORMS'!I6-'PREFILLED-ANNUAL'!I6)/('PREFILLED-ANNUAL'!I6))","v":""},{"$f":"IF(ISERROR(('TABLES-FORMS'!J6-'PREFILLED-ANNUAL'!J6)/('PREFILLED-ANNUAL'!J6)),\"\",('TABLES-FORMS'!J6-'PREFILLED-ANNUAL'!J6)/('PREFILLED-ANNUAL'!J6))","v":""},{"$f":"IF(ISERROR(('TABLES-FORMS'!K6-'PREFILLED-ANNUAL'!K6)/('PREFILLED-ANNUAL'!K6)),\"\",('TABLES-FORMS'!K6-'PREFILLED-ANNUAL'!K6)/('PREFILLED-ANNUAL'!K6))","v":""},{"$f":"IF(ISERROR(('TABLES-FORMS'!L6-'PREFILLED-ANNUAL'!L6)/('PREFILLED-ANNUAL'!L6)),\"\",('TABLES-FORMS'!L6-'PREFILLED-ANNUAL'!L6)/('PREFILLED-ANNUAL'!L6))","v":""},{"$f":"IF(ISERROR(('TABLES-FORMS'!M6-'PREFILLED-ANNUAL'!M6)/('PREFILLED-ANNUAL'!M6)),\"\",('TABLES-FORMS'!M6-'PREFILLED-ANNUAL'!M6)/('PREFILLED-ANNUAL'!M6))","v":""},{"$f":"IF(ISERROR(('TABLES-FORMS'!N6-'PREFILLED-ANNUAL'!N6)/('PREFILLED-ANNUAL'!N6)),\"\",('TABLES-FORMS'!N6-'PREFILLED-ANNUAL'!N6)/('PREFILLED-ANNUAL'!N6))","v":""},{"$f":"IF(ISERROR(('TABLES-FORMS'!O6-'PREFILLED-ANNUAL'!O6)/('PREFILLED-ANNUAL'!O6)),\"\",('TABLES-FORMS'!O6-'PREFILLED-ANNUAL'!O6)/('PREFILLED-ANNUAL'!O6))","v":""}]
[null,"Stock changes (National territory)",{"$f":"IF(ISERROR(('TABLES-FORMS'!C7-'PREFILLED-ANNUAL'!C7)/('PREFILLED-ANNUAL'!C7)),\"\",('TABLES-FORMS'!C7-'PREFILLED-ANNUAL'!C7)/('PREFILLED-ANNUAL'!C7))","v":""},{"$f":"IF(ISERROR(('TABLES-FORMS'!D7-'PREFILLED-ANNUAL'!D7)/('PREFILLED-ANNUAL'!D7)),\"\",('TABLES-FORMS'!D7-'PREFILLED-ANNUAL'!D7)/('PREFILLED-ANNUAL'!D7))","v":""},{"$f":"IF(ISERROR(('TABLES-FORMS'!E7-'PREFILLED-ANNUAL'!E7)/('PREFILLED-ANNUAL'!E7)),\"\",('TABLES-FORMS'!E7-'PREFILLED-ANNUAL'!E7)/('PREFILLED-ANNUAL'!E7))","v":""},{"$f":"IF(ISERROR(('TABLES-FORMS'!F7-'PREFILLED-ANNUAL'!F7)/('PREFILLED-ANNUAL'!F7)),\"\",('TABLES-FORMS'!F7-'PREFILLED-ANNUAL'!F7)/('PREFILLED-ANNUAL'!F7))","v":""},{"$f":"IF(ISERROR(('TABLES-FORMS'!G7-'PREFILLED-ANNUAL'!G7)/('PREFILLED-ANNUAL'!G7)),\"\",('TABLES-FORMS'!G7-'PREFILLED-ANNUAL'!G7)/('PREFILLED-ANNUAL'!G7))","v":""},{"$f":"IF(ISERROR(('TABLES-FORMS'!H7-'PREFILLED-ANNUAL'!H7)/('PREFILLED-ANNUAL'!H7)),\"\",('TABLES-FORMS'!H7-'PREFILLED-ANNUAL'!H7)/('PREFILLED-ANNUAL'!H7))","v":""},{"$f":"IF(ISERROR(('TABLES-FORMS'!I7-'PREFILLED-ANNUAL'!I7)/('PREFILLED-ANNUAL'!I7)),\"\",('TABLES-FORMS'!I7-'PREFILLED-ANNUAL'!I7)/('PREFILLED-ANNUAL'!I7))","v":""},{"$f":"IF(ISERROR(('TABLES-FORMS'!J7-'PREFILLED-ANNUAL'!J7)/('PREFILLED-ANNUAL'!J7)),\"\",('TABLES-FORMS'!J7-'PREFILLED-ANNUAL'!J7)/('PREFILLED-ANNUAL'!J7))","v":""},{"$f":"IF(ISERROR(('TABLES-FORMS'!K7-'PREFILLED-ANNUAL'!K7)/('PREFILLED-ANNUAL'!K7)),\"\",('TABLES-FORMS'!K7-'PREFILLED-ANNUAL'!K7)/('PREFILLED-ANNUAL'!K7))","v":""},{"$f":"IF(ISERROR(('TABLES-FORMS'!L7-'PREFILLED-ANNUAL'!L7)/('PREFILLED-ANNUAL'!L7)),\"\",('TABLES-FORMS'!L7-'PREFILLED-ANNUAL'!L7)/('PREFILLED-ANNUAL'!L7))","v":""},{"$f":"IF(ISERROR(('TABLES-FORMS'!M7-'PREFILLED-ANNUAL'!M7)/('PREFILLED-ANNUAL'!M7)),\"\",('TABLES-FORMS'!M7-'PREFILLED-ANNUAL'!M7)/('PREFILLED-ANNUAL'!M7))","v":""},{"$f":"IF(ISERROR(('TABLES-FORMS'!N7-'PREFILLED-ANNUAL'!N7)/('PREFILLED-ANNUAL'!N7)),\"\",('TABLES-FORMS'!N7-'PREFILLED-ANNUAL'!N7)/('PREFILLED-ANNUAL'!N7))","v":""},{"$f":"IF(ISERROR(('TABLES-FORMS'!O7-'PREFILLED-ANNUAL'!O7)/('PREFILLED-ANNUAL'!O7)),\"\",('TABLES-FORMS'!O7-'PREFILLED-ANNUAL'!O7)/('PREFILLED-ANNUAL'!O7))","v":""}]
[null,"Inland consumption (Calculated)",{"$f":"IF(ISERROR(('TABLES-FORMS'!C8-'PREFILLED-ANNUAL'!C8)/('PREFILLED-ANNUAL'!C8)),\"\",('TABLES-FORMS'!C8-'PREFILLED-ANNUAL'!C8)/('PREFILLED-ANNUAL'!C8))","v":""},{"$f":"IF(ISERROR(('TABLES-FORMS'!D8-'PREFILLED-ANNUAL'!D8)/('PREFILLED-ANNUAL'!D8)),\"\",('TABLES-FORMS'!D8-'PREFILLED-ANNUAL'!D8)/('PREFILLED-ANNUAL'!D8))","v":""},{"$f":"IF(ISERROR(('TABLES-FORMS'!E8-'PREFILLED-ANNUAL'!E8)/('PREFILLED-ANNUAL'!E8)),\"\",('TABLES-FORMS'!E8-'PREFILLED-ANNUAL'!E8)/('PREFILLED-ANNUAL'!E8))","v":""},{"$f":"IF(ISERROR(('TABLES-FORMS'!F8-'PREFILLED-ANNUAL'!F8)/('PREFILLED-ANNUAL'!F8)),\"\",('TABLES-FORMS'!F8-'PREFILLED-ANNUAL'!F8)/('PREFILLED-ANNUAL'!F8))","v":""},{"$f":"IF(ISERROR(('TABLES-FORMS'!G8-'PREFILLED-ANNUAL'!G8)/('PREFILLED-ANNUAL'!G8)),\"\",('TABLES-FORMS'!G8-'PREFILLED-ANNUAL'!G8)/('PREFILLED-ANNUAL'!G8))","v":""},{"$f":"IF(ISERROR(('TABLES-FORMS'!H8-'PREFILLED-ANNUAL'!H8)/('PREFILLED-ANNUAL'!H8)),\"\",('TABLES-FORMS'!H8-'PREFILLED-ANNUAL'!H8)/('PREFILLED-ANNUAL'!H8))","v":""},{"$f":"IF(ISERROR(('TABLES-FORMS'!I8-'PREFILLED-ANNUAL'!I8)/('PREFILLED-ANNUAL'!I8)),\"\",('TABLES-FORMS'!I8-'PREFILLED-ANNUAL'!I8)/('PREFILLED-ANNUAL'!I8))","v":""},{"$f":"IF(ISERROR(('TABLES-FORMS'!J8-'PREFILLED-ANNUAL'!J8)/('PREFILLED-ANNUAL'!J8)),\"\",('TABLES-FORMS'!J8-'PREFILLED-ANNUAL'!J8)/('PREFILLED-ANNUAL'!J8))","v":""},{"$f":"IF(ISERROR(('TABLES-FORMS'!K8-'PREFILLED-ANNUAL'!K8)/('PREFILLED-ANNUAL'!K8)),\"\",('TABLES-FORMS'!K8-'PREFILLED-ANNUAL'!K8)/('PREFILLED-ANNUAL'!K8))","v":""},{"$f":"IF(ISERROR(('TABLES-FORMS'!L8-'PREFILLED-ANNUAL'!L8)/('PREFILLED-ANNUAL'!L8)),\"\",('TABLES-FORMS'!L8-'PREFILLED-ANNUAL'!L8)/('PREFILLED-ANNUAL'!L8))","v":""},{"$f":"IF(ISERROR(('TABLES-FORMS'!M8-'PREFILLED-ANNUAL'!M8)/('PREFILLED-ANNUAL'!M8)),\"\",('TABLES-FORMS'!M8-'PREFILLED-ANNUAL'!M8)/('PREFILLED-ANNUAL'!M8))","v":""},{"$f":"IF(ISERROR(('TABLES-FORMS'!N8-'PREFILLED-ANNUAL'!N8)/('PREFILLED-ANNUAL'!N8)),\"\",('TABLES-FORMS'!N8-'PREFILLED-ANNUAL'!N8)/('PREFILLED-ANNUAL'!N8))","v":""},{"$f":"IF(ISERROR(('TABLES-FORMS'!O8-'PREFILLED-ANNUAL'!O8)/('PREFILLED-ANNUAL'!O8)),\"\",('TABLES-FORMS'!O8-'PREFILLED-ANNUAL'!O8)/('PREFILLED-ANNUAL'!O8))","v":""}]
[null,"Statistical Difference",{"$f":"IF(ISERROR(('TABLES-FORMS'!C9-'PREFILLED-ANNUAL'!C9)/('PREFILLED-ANNUAL'!C9)),\"\",('TABLES-FORMS'!C9-'PREFILLED-ANNUAL'!C9)/('PREFILLED-ANNUAL'!C9))","v":""},{"$f":"IF(ISERROR(('TABLES-FORMS'!D9-'PREFILLED-ANNUAL'!D9)/('PREFILLED-ANNUAL'!D9)),\"\",('TABLES-FORMS'!D9-'PREFILLED-ANNUAL'!D9)/('PREFILLED-ANNUAL'!D9))","v":""},{"$f":"IF(ISERROR(('TABLES-FORMS'!E9-'PREFILLED-ANNUAL'!E9)/('PREFILLED-ANNUAL'!E9)),\"\",('TABLES-FORMS'!E9-'PREFILLED-ANNUAL'!E9)/('PREFILLED-ANNUAL'!E9))","v":""},{"$f":"IF(ISERROR(('TABLES-FORMS'!F9-'PREFILLED-ANNUAL'!F9)/('PREFILLED-ANNUAL'!F9)),\"\",('TABLES-FORMS'!F9-'PREFILLED-ANNUAL'!F9)/('PREFILLED-ANNUAL'!F9))","v":""},{"$f":"IF(ISERROR(('TABLES-FORMS'!G9-'PREFILLED-ANNUAL'!G9)/('PREFILLED-ANNUAL'!G9)),\"\",('TABLES-FORMS'!G9-'PREFILLED-ANNUAL'!G9)/('PREFILLED-ANNUAL'!G9))","v":""},{"$f":"IF(ISERROR(('TABLES-FORMS'!H9-'PREFILLED-ANNUAL'!H9)/('PREFILLED-ANNUAL'!H9)),\"\",('TABLES-FORMS'!H9-'PREFILLED-ANNUAL'!H9)/('PREFILLED-ANNUAL'!H9))","v":""},{"$f":"IF(ISERROR(('TABLES-FORMS'!I9-'PREFILLED-ANNUAL'!I9)/('PREFILLED-ANNUAL'!I9)),\"\",('TABLES-FORMS'!I9-'PREFILLED-ANNUAL'!I9)/('PREFILLED-ANNUAL'!I9))","v":""},{"$f":"IF(ISERROR(('TABLES-FORMS'!J9-'PREFILLED-ANNUAL'!J9)/('PREFILLED-ANNUAL'!J9)),\"\",('TABLES-FORMS'!J9-'PREFILLED-ANNUAL'!J9)/('PREFILLED-ANNUAL'!J9))","v":""},{"$f":"IF(ISERROR(('TABLES-FORMS'!K9-'PREFILLED-ANNUAL'!K9)/('PREFILLED-ANNUAL'!K9)),\"\",('TABLES-FORMS'!K9-'PREFILLED-ANNUAL'!K9)/('PREFILLED-ANNUAL'!K9))","v":""},{"$f":"IF(ISERROR(('TABLES-FORMS'!L9-'PREFILLED-ANNUAL'!L9)/('PREFILLED-ANNUAL'!L9)),\"\",('TABLES-FORMS'!L9-'PREFILLED-ANNUAL'!L9)/('PREFILLED-ANNUAL'!L9))","v":""},{"$f":"IF(ISERROR(('TABLES-FORMS'!M9-'PREFILLED-ANNUAL'!M9)/('PREFILLED-ANNUAL'!M9)),\"\",('TABLES-FORMS'!M9-'PREFILLED-ANNUAL'!M9)/('PREFILLED-ANNUAL'!M9))","v":""},{"$f":"IF(ISERROR(('TABLES-FORMS'!N9-'PREFILLED-ANNUAL'!N9)/('PREFILLED-ANNUAL'!N9)),\"\",('TABLES-FORMS'!N9-'PREFILLED-ANNUAL'!N9)/('PREFILLED-ANNUAL'!N9))","v":""},{"$f":"IF(ISERROR(('TABLES-FORMS'!O9-'PREFILLED-ANNUAL'!O9)/('PREFILLED-ANNUAL'!O9)),\"\",('TABLES-FORMS'!O9-'PREFILLED-ANNUAL'!O9)/('PREFILLED-ANNUAL'!O9))","v":""}]
[null,"Inland consumption (Observed)",{"$f":"IF(ISERROR(('TABLES-FORMS'!C10-'PREFILLED-ANNUAL'!C10)/('PREFILLED-ANNUAL'!C10)),\"\",('TABLES-FORMS'!C10-'PREFILLED-ANNUAL'!C10)/('PREFILLED-ANNUAL'!C10))","v":""},{"$f":"IF(ISERROR(('TABLES-FORMS'!D10-'PREFILLED-ANNUAL'!D10)/('PREFILLED-ANNUAL'!D10)),\"\",('TABLES-FORMS'!D10-'PREFILLED-ANNUAL'!D10)/('PREFILLED-ANNUAL'!D10))","v":""},{"$f":"IF(ISERROR(('TABLES-FORMS'!E10-'PREFILLED-ANNUAL'!E10)/('PREFILLED-ANNUAL'!E10)),\"\",('TABLES-FORMS'!E10-'PREFILLED-ANNUAL'!E10)/('PREFILLED-ANNUAL'!E10))","v":""},{"$f":"IF(ISERROR(('TABLES-FORMS'!F10-'PREFILLED-ANNUAL'!F10)/('PREFILLED-ANNUAL'!F10)),\"\",('TABLES-FORMS'!F10-'PREFILLED-ANNUAL'!F10)/('PREFILLED-ANNUAL'!F10))","v":""},{"$f":"IF(ISERROR(('TABLES-FORMS'!G10-'PREFILLED-ANNUAL'!G10)/('PREFILLED-ANNUAL'!G10)),\"\",('TABLES-FORMS'!G10-'PREFILLED-ANNUAL'!G10)/('PREFILLED-ANNUAL'!G10))","v":""},{"$f":"IF(ISERROR(('TABLES-FORMS'!H10-'PREFILLED-ANNUAL'!H10)/('PREFILLED-ANNUAL'!H10)),\"\",('TABLES-FORMS'!H10-'PREFILLED-ANNUAL'!H10)/('PREFILLED-ANNUAL'!H10))","v":""},{"$f":"IF(ISERROR(('TABLES-FORMS'!I10-'PREFILLED-ANNUAL'!I10)/('PREFILLED-ANNUAL'!I10)),\"\",('TABLES-FORMS'!I10-'PREFILLED-ANNUAL'!I10)/('PREFILLED-ANNUAL'!I10))","v":""},{"$f":"IF(ISERROR(('TABLES-FORMS'!J10-'PREFILLED-ANNUAL'!J10)/('PREFILLED-ANNUAL'!J10)),\"\",('TABLES-FORMS'!J10-'PREFILLED-ANNUAL'!J10)/('PREFILLED-ANNUAL'!J10))","v":""},{"$f":"IF(ISERROR(('TABLES-FORMS'!K10-'PREFILLED-ANNUAL'!K10)/('PREFILLED-ANNUAL'!K10)),\"\",('TABLES-FORMS'!K10-'PREFILLED-ANNUAL'!K10)/('PREFILLED-ANNUAL'!K10))","v":""},{"$f":"IF(ISERROR(('TABLES-FORMS'!L10-'PREFILLED-ANNUAL'!L10)/('PREFILLED-ANNUAL'!L10)),\"\",('TABLES-FORMS'!L10-'PREFILLED-ANNUAL'!L10)/('PREFILLED-ANNUAL'!L10))","v":""},{"$f":"IF(ISERROR(('TABLES-FORMS'!M10-'PREFILLED-ANNUAL'!M10)/('PREFILLED-ANNUAL'!M10)),\"\",('TABLES-FORMS'!M10-'PREFILLED-ANNUAL'!M10)/('PREFILLED-ANNUAL'!M10))","v":""},{"$f":"IF(ISERROR(('TABLES-FORMS'!N10-'PREFILLED-ANNUAL'!N10)/('PREFILLED-ANNUAL'!N10)),\"\",('TABLES-FORMS'!N10-'PREFILLED-ANNUAL'!N10)/('PREFILLED-ANNUAL'!N10))","v":""},{"$f":"IF(ISERROR(('TABLES-FORMS'!O10-'PREFILLED-ANNUAL'!O10)/('PREFILLED-ANNUAL'!O10)),\"\",('TABLES-FORMS'!O10-'PREFILLED-ANNUAL'!O10)/('PREFILLED-ANNUAL'!O10))","v":""}]
[null,"Transformation sector",{"$f":"IF(ISERROR(('TABLES-FORMS'!C11-'PREFILLED-ANNUAL'!C11)/('PREFILLED-ANNUAL'!C11)),\"\",('TABLES-FORMS'!C11-'PREFILLED-ANNUAL'!C11)/('PREFILLED-ANNUAL'!C11))","v":""},{"$f":"IF(ISERROR(('TABLES-FORMS'!D11-'PREFILLED-ANNUAL'!D11)/('PREFILLED-ANNUAL'!D11)),\"\",('TABLES-FORMS'!D11-'PREFILLED-ANNUAL'!D11)/('PREFILLED-ANNUAL'!D11))","v":""},{"$f":"IF(ISERROR(('TABLES-FORMS'!E11-'PREFILLED-ANNUAL'!E11)/('PREFILLED-ANNUAL'!E11)),\"\",('TABLES-FORMS'!E11-'PREFILLED-ANNUAL'!E11)/('PREFILLED-ANNUAL'!E11))","v":""},{"$f":"IF(ISERROR(('TABLES-FORMS'!F11-'PREFILLED-ANNUAL'!F11)/('PREFILLED-ANNUAL'!F11)),\"\",('TABLES-FORMS'!F11-'PREFILLED-ANNUAL'!F11)/('PREFILLED-ANNUAL'!F11))","v":""},{"$f":"IF(ISERROR(('TABLES-FORMS'!G11-'PREFILLED-ANNUAL'!G11)/('PREFILLED-ANNUAL'!G11)),\"\",('TABLES-FORMS'!G11-'PREFILLED-ANNUAL'!G11)/('PREFILLED-ANNUAL'!G11))","v":""},{"$f":"IF(ISERROR(('TABLES-FORMS'!H11-'PREFILLED-ANNUAL'!H11)/('PREFILLED-ANNUAL'!H11)),\"\",('TABLES-FORMS'!H11-'PREFILLED-ANNUAL'!H11)/('PREFILLED-ANNUAL'!H11))","v":""},{"$f":"IF(ISERROR(('TABLES-FORMS'!I11-'PREFILLED-ANNUAL'!I11)/('PREFILLED-ANNUAL'!I11)),\"\",('TABLES-FORMS'!I11-'PREFILLED-ANNUAL'!I11)/('PREFILLED-ANNUAL'!I11))","v":""},{"$f":"IF(ISERROR(('TABLES-FORMS'!J11-'PREFILLED-ANNUAL'!J11)/('PREFILLED-ANNUAL'!J11)),\"\",('TABLES-FORMS'!J11-'PREFILLED-ANNUAL'!J11)/('PREFILLED-ANNUAL'!J11))","v":""},{"$f":"IF(ISERROR(('TABLES-FORMS'!K11-'PREFILLED-ANNUAL'!K11)/('PREFILLED-ANNUAL'!K11)),\"\",('TABLES-FORMS'!K11-'PREFILLED-ANNUAL'!K11)/('PREFILLED-ANNUAL'!K11))","v":""},{"$f":"IF(ISERROR(('TABLES-FORMS'!L11-'PREFILLED-ANNUAL'!L11)/('PREFILLED-ANNUAL'!L11)),\"\",('TABLES-FORMS'!L11-'PREFILLED-ANNUAL'!L11)/('PREFILLED-ANNUAL'!L11))","v":""},{"$f":"IF(ISERROR(('TABLES-FORMS'!M11-'PREFILLED-ANNUAL'!M11)/('PREFILLED-ANNUAL'!M11)),\"\",('TABLES-FORMS'!M11-'PREFILLED-ANNUAL'!M11)/('PREFILLED-ANNUAL'!M11))","v":""},{"$f":"IF(ISERROR(('TABLES-FORMS'!N11-'PREFILLED-ANNUAL'!N11)/('PREFILLED-ANNUAL'!N11)),\"\",('TABLES-FORMS'!N11-'PREFILLED-ANNUAL'!N11)/('PREFILLED-ANNUAL'!N11))","v":""},{"$f":"IF(ISERROR(('TABLES-FORMS'!O11-'PREFILLED-ANNUAL'!O11)/('PREFILLED-ANNUAL'!O11)),\"\",('TABLES-FORMS'!O11-'PREFILLED-ANNUAL'!O11)/('PREFILLED-ANNUAL'!O11))","v":""}]
[null,"     of which for blending",{"$f":"IF(ISERROR(('TABLES-FORMS'!C12-'PREFILLED-ANNUAL'!C12)/('PREFILLED-ANNUAL'!C12)),\"\",('TABLES-FORMS'!C12-'PREFILLED-ANNUAL'!C12)/('PREFILLED-ANNUAL'!C12))","v":""},{"$f":"IF(ISERROR(('TABLES-FORMS'!D12-'PREFILLED-ANNUAL'!D12)/('PREFILLED-ANNUAL'!D12)),\"\",('TABLES-FORMS'!D12-'PREFILLED-ANNUAL'!D12)/('PREFILLED-ANNUAL'!D12))","v":""},{"$f":"IF(ISERROR(('TABLES-FORMS'!E12-'PREFILLED-ANNUAL'!E12)/('PREFILLED-ANNUAL'!E12)),\"\",('TABLES-FORMS'!E12-'PREFILLED-ANNUAL'!E12)/('PREFILLED-ANNUAL'!E12))","v":""},{"$f":"IF(ISERROR(('TABLES-FORMS'!F12-'PREFILLED-ANNUAL'!F12)/('PREFILLED-ANNUAL'!F12)),\"\",('TABLES-FORMS'!F12-'PREFILLED-ANNUAL'!F12)/('PREFILLED-ANNUAL'!F12))","v":""},{"$f":"IF(ISERROR(('TABLES-FORMS'!G12-'PREFILLED-ANNUAL'!G12)/('PREFILLED-ANNUAL'!G12)),\"\",('TABLES-FORMS'!G12-'PREFILLED-ANNUAL'!G12)/('PREFILLED-ANNUAL'!G12))","v":""},{"$f":"IF(ISERROR(('TABLES-FORMS'!H12-'PREFILLED-ANNUAL'!H12)/('PREFILLED-ANNUAL'!H12)),\"\",('TABLES-FORMS'!H12-'PREFILLED-ANNUAL'!H12)/('PREFILLED-ANNUAL'!H12))","v":""},{"$f":"IF(ISERROR(('TABLES-FORMS'!I12-'PREFILLED-ANNUAL'!I12)/('PREFILLED-ANNUAL'!I12)),\"\",('TABLES-FORMS'!I12-'PREFILLED-ANNUAL'!I12)/('PREFILLED-ANNUAL'!I12))","v":""},{"$f":"IF(ISERROR(('TABLES-FORMS'!J12-'PREFILLED-ANNUAL'!J12)/('PREFILLED-ANNUAL'!J12)),\"\",('TABLES-FORMS'!J12-'PREFILLED-ANNUAL'!J12)/('PREFILLED-ANNUAL'!J12))","v":""},{"$f":"IF(ISERROR(('TABLES-FORMS'!K12-'PREFILLED-ANNUAL'!K12)/('PREFILLED-ANNUAL'!K12)),\"\",('TABLES-FORMS'!K12-'PREFILLED-ANNUAL'!K12)/('PREFILLED-ANNUAL'!K12))","v":""},{"$f":"IF(ISERROR(('TABLES-FORMS'!L12-'PREFILLED-ANNUAL'!L12)/('PREFILLED-ANNUAL'!L12)),\"\",('TABLES-FORMS'!L12-'PREFILLED-ANNUAL'!L12)/('PREFILLED-ANNUAL'!L12))","v":""},{"$f":"IF(ISERROR(('TABLES-FORMS'!M12-'PREFILLED-ANNUAL'!M12)/('PREFILLED-ANNUAL'!M12)),\"\",('TABLES-FORMS'!M12-'PREFILLED-ANNUAL'!M12)/('PREFILLED-ANNUAL'!M12))","v":""},{"$f":"IF(ISERROR(('TABLES-FORMS'!N12-'PREFILLED-ANNUAL'!N12)/('PREFILLED-ANNUAL'!N12)),\"\",('TABLES-FORMS'!N12-'PREFILLED-ANNUAL'!N12)/('PREFILLED-ANNUAL'!N12))","v":""},{"$f":"IF(ISERROR(('TABLES-FORMS'!O12-'PREFILLED-ANNUAL'!O12)/('PREFILLED-ANNUAL'!O12)),\"\",('TABLES-FORMS'!O12-'PREFILLED-ANNUAL'!O12)/('PREFILLED-ANNUAL'!O12))","v":""}]
[null,"Energy sector",{"$f":"IF(ISERROR(('TABLES-FORMS'!C13-'PREFILLED-ANNUAL'!C13)/('PREFILLED-ANNUAL'!C13)),\"\",('TABLES-FORMS'!C13-'PREFILLED-ANNUAL'!C13)/('PREFILLED-ANNUAL'!C13))","v":""},{"$f":"IF(ISERROR(('TABLES-FORMS'!D13-'PREFILLED-ANNUAL'!D13)/('PREFILLED-ANNUAL'!D13)),\"\",('TABLES-FORMS'!D13-'PREFILLED-ANNUAL'!D13)/('PREFILLED-ANNUAL'!D13))","v":""},{"$f":"IF(ISERROR(('TABLES-FORMS'!E13-'PREFILLED-ANNUAL'!E13)/('PREFILLED-ANNUAL'!E13)),\"\",('TABLES-FORMS'!E13-'PREFILLED-ANNUAL'!E13)/('PREFILLED-ANNUAL'!E13))","v":""},{"$f":"IF(ISERROR(('TABLES-FORMS'!F13-'PREFILLED-ANNUAL'!F13)/('PREFILLED-ANNUAL'!F13)),\"\",('TABLES-FORMS'!F13-'PREFILLED-ANNUAL'!F13)/('PREFILLED-ANNUAL'!F13))","v":""},{"$f":"IF(ISERROR(('TABLES-FORMS'!G13-'PREFILLED-ANNUAL'!G13)/('PREFILLED-ANNUAL'!G13)),\"\",('TABLES-FORMS'!G13-'PREFILLED-ANNUAL'!G13)/('PREFILLED-ANNUAL'!G13))","v":""},{"$f":"IF(ISERROR(('TABLES-FORMS'!H13-'PREFILLED-ANNUAL'!H13)/('PREFILLED-ANNUAL'!H13)),\"\",('TABLES-FORMS'!H13-'PREFILLED-ANNUAL'!H13)/('PREFILLED-ANNUAL'!H13))","v":""},{"$f":"IF(ISERROR(('TABLES-FORMS'!I13-'PREFILLED-ANNUAL'!I13)/('PREFILLED-ANNUAL'!I13)),\"\",('TABLES-FORMS'!I13-'PREFILLED-ANNUAL'!I13)/('PREFILLED-ANNUAL'!I13))","v":""},{"$f":"IF(ISERROR(('TABLES-FORMS'!J13-'PREFILLED-ANNUAL'!J13)/('PREFILLED-ANNUAL'!J13)),\"\",('TABLES-FORMS'!J13-'PREFILLED-ANNUAL'!J13)/('PREFILLED-ANNUAL'!J13))","v":""},{"$f":"IF(ISERROR(('TABLES-FORMS'!K13-'PREFILLED-ANNUAL'!K13)/('PREFILLED-ANNUAL'!K13)),\"\",('TABLES-FORMS'!K13-'PREFILLED-ANNUAL'!K13)/('PREFILLED-ANNUAL'!K13))","v":""},{"$f":"IF(ISERROR(('TABLES-FORMS'!L13-'PREFILLED-ANNUAL'!L13)/('PREFILLED-ANNUAL'!L13)),\"\",('TABLES-FORMS'!L13-'PREFILLED-ANNUAL'!L13)/('PREFILLED-ANNUAL'!L13))","v":""},{"$f":"IF(ISERROR(('TABLES-FORMS'!M13-'PREFILLED-ANNUAL'!M13)/('PREFILLED-ANNUAL'!M13)),\"\",('TABLES-FORMS'!M13-'PREFILLED-ANNUAL'!M13)/('PREFILLED-ANNUAL'!M13))","v":""},{"$f":"IF(ISERROR(('TABLES-FORMS'!N13-'PREFILLED-ANNUAL'!N13)/('PREFILLED-ANNUAL'!N13)),\"\",('TABLES-FORMS'!N13-'PREFILLED-ANNUAL'!N13)/('PREFILLED-ANNUAL'!N13))","v":""},{"$f":"IF(ISERROR(('TABLES-FORMS'!O13-'PREFILLED-ANNUAL'!O13)/('PREFILLED-ANNUAL'!O13)),\"\",('TABLES-FORMS'!O13-'PREFILLED-ANNUAL'!O13)/('PREFILLED-ANNUAL'!O13))","v":""}]
[null,"Distribution losses",{"$f":"IF(ISERROR(('TABLES-FORMS'!C14-'PREFILLED-ANNUAL'!C14)/('PREFILLED-ANNUAL'!C14)),\"\",('TABLES-FORMS'!C14-'PREFILLED-ANNUAL'!C14)/('PREFILLED-ANNUAL'!C14))","v":""},{"$f":"IF(ISERROR(('TABLES-FORMS'!D14-'PREFILLED-ANNUAL'!D14)/('PREFILLED-ANNUAL'!D14)),\"\",('TABLES-FORMS'!D14-'PREFILLED-ANNUAL'!D14)/('PREFILLED-ANNUAL'!D14))","v":""},{"$f":"IF(ISERROR(('TABLES-FORMS'!E14-'PREFILLED-ANNUAL'!E14)/('PREFILLED-ANNUAL'!E14)),\"\",('TABLES-FORMS'!E14-'PREFILLED-ANNUAL'!E14)/('PREFILLED-ANNUAL'!E14))","v":""},{"$f":"IF(ISERROR(('TABLES-FORMS'!F14-'PREFILLED-ANNUAL'!F14)/('PREFILLED-ANNUAL'!F14)),\"\",('TABLES-FORMS'!F14-'PREFILLED-ANNUAL'!F14)/('PREFILLED-ANNUAL'!F14))","v":""},{"$f":"IF(ISERROR(('TABLES-FORMS'!G14-'PREFILLED-ANNUAL'!G14)/('PREFILLED-ANNUAL'!G14)),\"\",('TABLES-FORMS'!G14-'PREFILLED-ANNUAL'!G14)/('PREFILLED-ANNUAL'!G14))","v":""},{"$f":"IF(ISERROR(('TABLES-FORMS'!H14-'PREFILLED-ANNUAL'!H14)/('PREFILLED-ANNUAL'!H14)),\"\",('TABLES-FORMS'!H14-'PREFILLED-ANNUAL'!H14)/('PREFILLED-ANNUAL'!H14))","v":""},{"$f":"IF(ISERROR(('TABLES-FORMS'!I14-'PREFILLED-ANNUAL'!I14)/('PREFILLED-ANNUAL'!I14)),\"\",('TABLES-FORMS'!I14-'PREFILLED-ANNUAL'!I14)/('PREFILLED-ANNUAL'!I14))","v":""},{"$f":"IF(ISERROR(('TABLES-FORMS'!J14-'PREFILLED-ANNUAL'!J14)/('PREFILLED-ANNUAL'!J14)),\"\",('TABLES-FORMS'!J14-'PREFILLED-ANNUAL'!J14)/('PREFILLED-ANNUAL'!J14))","v":""},{"$f":"IF(ISERROR(('TABLES-FORMS'!K14-'PREFILLED-ANNUAL'!K14)/('PREFILLED-ANNUAL'!K14)),\"\",('TABLES-FORMS'!K14-'PREFILLED-ANNUAL'!K14)/('PREFILLED-ANNUAL'!K14))","v":""},{"$f":"IF(ISERROR(('TABLES-FORMS'!L14-'PREFILLED-ANNUAL'!L14)/('PREFILLED-ANNUAL'!L14)),\"\",('TABLES-FORMS'!L14-'PREFILLED-ANNUAL'!L14)/('PREFILLED-ANNUAL'!L14))","v":""},{"$f":"IF(ISERROR(('TABLES-FORMS'!M14-'PREFILLED-ANNUAL'!M14)/('PREFILLED-ANNUAL'!M14)),\"\",('TABLES-FORMS'!M14-'PREFILLED-ANNUAL'!M14)/('PREFILLED-ANNUAL'!M14))","v":""},{"$f":"IF(ISERROR(('TABLES-FORMS'!N14-'PREFILLED-ANNUAL'!N14)/('PREFILLED-ANNUAL'!N14)),\"\",('TABLES-FORMS'!N14-'PREFILLED-ANNUAL'!N14)/('PREFILLED-ANNUAL'!N14))","v":""},{"$f":"IF(ISERROR(('TABLES-FORMS'!O14-'PREFILLED-ANNUAL'!O14)/('PREFILLED-ANNUAL'!O14)),\"\",('TABLES-FORMS'!O14-'PREFILLED-ANNUAL'!O14)/('PREFILLED-ANNUAL'!O14))","v":""}]
[null,"Total final energy consumption",{"$f":"IF(ISERROR(('TABLES-FORMS'!C15-'PREFILLED-ANNUAL'!C15)/('PREFILLED-ANNUAL'!C15)),\"\",('TABLES-FORMS'!C15-'PREFILLED-ANNUAL'!C15)/('PREFILLED-ANNUAL'!C15))","v":""},{"$f":"IF(ISERROR(('TABLES-FORMS'!D15-'PREFILLED-ANNUAL'!D15)/('PREFILLED-ANNUAL'!D15)),\"\",('TABLES-FORMS'!D15-'PREFILLED-ANNUAL'!D15)/('PREFILLED-ANNUAL'!D15))","v":""},{"$f":"IF(ISERROR(('TABLES-FORMS'!E15-'PREFILLED-ANNUAL'!E15)/('PREFILLED-ANNUAL'!E15)),\"\",('TABLES-FORMS'!E15-'PREFILLED-ANNUAL'!E15)/('PREFILLED-ANNUAL'!E15))","v":""},{"$f":"IF(ISERROR(('TABLES-FORMS'!F15-'PREFILLED-ANNUAL'!F15)/('PREFILLED-ANNUAL'!F15)),\"\",('TABLES-FORMS'!F15-'PREFILLED-ANNUAL'!F15)/('PREFILLED-ANNUAL'!F15))","v":""},{"$f":"IF(ISERROR(('TABLES-FORMS'!G15-'PREFILLED-ANNUAL'!G15)/('PREFILLED-ANNUAL'!G15)),\"\",('TABLES-FORMS'!G15-'PREFILLED-ANNUAL'!G15)/('PREFILLED-ANNUAL'!G15))","v":""},{"$f":"IF(ISERROR(('TABLES-FORMS'!H15-'PREFILLED-ANNUAL'!H15)/('PREFILLED-ANNUAL'!H15)),\"\",('TABLES-FORMS'!H15-'PREFILLED-ANNUAL'!H15)/('PREFILLED-ANNUAL'!H15))","v":""},{"$f":"IF(ISERROR(('TABLES-FORMS'!I15-'PREFILLED-ANNUAL'!I15)/('PREFILLED-ANNUAL'!I15)),\"\",('TABLES-FORMS'!I15-'PREFILLED-ANNUAL'!I15)/('PREFILLED-ANNUAL'!I15))","v":""},{"$f":"IF(ISERROR(('TABLES-FORMS'!J15-'PREFILLED-ANNUAL'!J15)/('PREFILLED-ANNUAL'!J15)),\"\",('TABLES-FORMS'!J15-'PREFILLED-ANNUAL'!J15)/('PREFILLED-ANNUAL'!J15))","v":""},{"$f":"IF(ISERROR(('TABLES-FORMS'!K15-'PREFILLED-ANNUAL'!K15)/('PREFILLED-ANNUAL'!K15)),\"\",('TABLES-FORMS'!K15-'PREFILLED-ANNUAL'!K15)/('PREFILLED-ANNUAL'!K15))","v":""},{"$f":"IF(ISERROR(('TABLES-FORMS'!L15-'PREFILLED-ANNUAL'!L15)/('PREFILLED-ANNUAL'!L15)),\"\",('TABLES-FORMS'!L15-'PREFILLED-ANNUAL'!L15)/('PREFILLED-ANNUAL'!L15))","v":""},{"$f":"IF(ISERROR(('TABLES-FORMS'!M15-'PREFILLED-ANNUAL'!M15)/('PREFILLED-ANNUAL'!M15)),\"\",('TABLES-FORMS'!M15-'PREFILLED-ANNUAL'!M15)/('PREFILLED-ANNUAL'!M15))","v":""},{"$f":"IF(ISERROR(('TABLES-FORMS'!N15-'PREFILLED-ANNUAL'!N15)/('PREFILLED-ANNUAL'!N15)),\"\",('TABLES-FORMS'!N15-'PREFILLED-ANNUAL'!N15)/('PREFILLED-ANNUAL'!N15))","v":""},{"$f":"IF(ISERROR(('TABLES-FORMS'!O15-'PREFILLED-ANNUAL'!O15)/('PREFILLED-ANNUAL'!O15)),\"\",('TABLES-FORMS'!O15-'PREFILLED-ANNUAL'!O15)/('PREFILLED-ANNUAL'!O15))","v":""}]
[null,"Industry sector",{"$f":"IF(ISERROR(('TABLES-FORMS'!C16-'PREFILLED-ANNUAL'!C16)/('PREFILLED-ANNUAL'!C16)),\"\",('TABLES-FORMS'!C16-'PREFILLED-ANNUAL'!C16)/('PREFILLED-ANNUAL'!C16))","v":""},{"$f":"IF(ISERROR(('TABLES-FORMS'!D16-'PREFILLED-ANNUAL'!D16)/('PREFILLED-ANNUAL'!D16)),\"\",('TABLES-FORMS'!D16-'PREFILLED-ANNUAL'!D16)/('PREFILLED-ANNUAL'!D16))","v":""},{"$f":"IF(ISERROR(('TABLES-FORMS'!E16-'PREFILLED-ANNUAL'!E16)/('PREFILLED-ANNUAL'!E16)),\"\",('TABLES-FORMS'!E16-'PREFILLED-ANNUAL'!E16)/('PREFILLED-ANNUAL'!E16))","v":""},{"$f":"IF(ISERROR(('TABLES-FORMS'!F16-'PREFILLED-ANNUAL'!F16)/('PREFILLED-ANNUAL'!F16)),\"\",('TABLES-FORMS'!F16-'PREFILLED-ANNUAL'!F16)/('PREFILLED-ANNUAL'!F16))","v":""},{"$f":"IF(ISERROR(('TABLES-FORMS'!G16-'PREFILLED-ANNUAL'!G16)/('PREFILLED-ANNUAL'!G16)),\"\",('TABLES-FORMS'!G16-'PREFILLED-ANNUAL'!G16)/('PREFILLED-ANNUAL'!G16))","v":""},{"$f":"IF(ISERROR(('TABLES-FORMS'!H16-'PREFILLED-ANNUAL'!H16)/('PREFILLED-ANNUAL'!H16)),\"\",('TABLES-FORMS'!H16-'PREFILLED-ANNUAL'!H16)/('PREFILLED-ANNUAL'!H16))","v":""},{"$f":"IF(ISERROR(('TABLES-FORMS'!I16-'PREFILLED-ANNUAL'!I16)/('PREFILLED-ANNUAL'!I16)),\"\",('TABLES-FORMS'!I16-'PREFILLED-ANNUAL'!I16)/('PREFILLED-ANNUAL'!I16))","v":""},{"$f":"IF(ISERROR(('TABLES-FORMS'!J16-'PREFILLED-ANNUAL'!J16)/('PREFILLED-ANNUAL'!J16)),\"\",('TABLES-FORMS'!J16-'PREFILLED-ANNUAL'!J16)/('PREFILLED-ANNUAL'!J16))","v":""},{"$f":"IF(ISERROR(('TABLES-FORMS'!K16-'PREFILLED-ANNUAL'!K16)/('PREFILLED-ANNUAL'!K16)),\"\",('TABLES-FORMS'!K16-'PREFILLED-ANNUAL'!K16)/('PREFILLED-ANNUAL'!K16))","v":""},{"$f":"IF(ISERROR(('TABLES-FORMS'!L16-'PREFILLED-ANNUAL'!L16)/('PREFILLED-ANNUAL'!L16)),\"\",('TABLES-FORMS'!L16-'PREFILLED-ANNUAL'!L16)/('PREFILLED-ANNUAL'!L16))","v":""},{"$f":"IF(ISERROR(('TABLES-FORMS'!M16-'PREFILLED-ANNUAL'!M16)/('PREFILLED-ANNUAL'!M16)),\"\",('TABLES-FORMS'!M16-'PREFILLED-ANNUAL'!M16)/('PREFILLED-ANNUAL'!M16))","v":""},{"$f":"IF(ISERROR(('TABLES-FORMS'!N16-'PREFILLED-ANNUAL'!N16)/('PREFILLED-ANNUAL'!N16)),\"\",('TABLES-FORMS'!N16-'PREFILLED-ANNUAL'!N16)/('PREFILLED-ANNUAL'!N16))","v":""},{"$f":"IF(ISERROR(('TABLES-FORMS'!O16-'PREFILLED-ANNUAL'!O16)/('PREFILLED-ANNUAL'!O16)),\"\",('TABLES-FORMS'!O16-'PREFILLED-ANNUAL'!O16)/('PREFILLED-ANNUAL'!O16))","v":""}]
[null,"Transport sector",{"$f":"IF(ISERROR(('TABLES-FORMS'!C17-'PREFILLED-ANNUAL'!C17)/('PREFILLED-ANNUAL'!C17)),\"\",('TABLES-FORMS'!C17-'PREFILLED-ANNUAL'!C17)/('PREFILLED-ANNUAL'!C17))","v":""},{"$f":"IF(ISERROR(('TABLES-FORMS'!D17-'PREFILLED-ANNUAL'!D17)/('PREFILLED-ANNUAL'!D17)),\"\",('TABLES-FORMS'!D17-'PREFILLED-ANNUAL'!D17)/('PREFILLED-ANNUAL'!D17))","v":""},{"$f":"IF(ISERROR(('TABLES-FORMS'!E17-'PREFILLED-ANNUAL'!E17)/('PREFILLED-ANNUAL'!E17)),\"\",('TABLES-FORMS'!E17-'PREFILLED-ANNUAL'!E17)/('PREFILLED-ANNUAL'!E17))","v":""},{"$f":"IF(ISERROR(('TABLES-FORMS'!F17-'PREFILLED-ANNUAL'!F17)/('PREFILLED-ANNUAL'!F17)),\"\",('TABLES-FORMS'!F17-'PREFILLED-ANNUAL'!F17)/('PREFILLED-ANNUAL'!F17))","v":""},{"$f":"IF(ISERROR(('TABLES-FORMS'!G17-'PREFILLED-ANNUAL'!G17)/('PREFILLED-ANNUAL'!G17)),\"\",('TABLES-FORMS'!G17-'PREFILLED-ANNUAL'!G17)/('PREFILLED-ANNUAL'!G17))","v":""},{"$f":"IF(ISERROR(('TABLES-FORMS'!H17-'PREFILLED-ANNUAL'!H17)/('PREFILLED-ANNUAL'!H17)),\"\",('TABLES-FORMS'!H17-'PREFILLED-ANNUAL'!H17)/('PREFILLED-ANNUAL'!H17))","v":""},{"$f":"IF(ISERROR(('TABLES-FORMS'!I17-'PREFILLED-ANNUAL'!I17)/('PREFILLED-ANNUAL'!I17)),\"\",('TABLES-FORMS'!I17-'PREFILLED-ANNUAL'!I17)/('PREFILLED-ANNUAL'!I17))","v":""},{"$f":"IF(ISERROR(('TABLES-FORMS'!J17-'PREFILLED-ANNUAL'!J17)/('PREFILLED-ANNUAL'!J17)),\"\",('TABLES-FORMS'!J17-'PREFILLED-ANNUAL'!J17)/('PREFILLED-ANNUAL'!J17))","v":""},{"$f":"IF(ISERROR(('TABLES-FORMS'!K17-'PREFILLED-ANNUAL'!K17)/('PREFILLED-ANNUAL'!K17)),\"\",('TABLES-FORMS'!K17-'PREFILLED-ANNUAL'!K17)/('PREFILLED-ANNUAL'!K17))","v":""},{"$f":"IF(ISERROR(('TABLES-FORMS'!L17-'PREFILLED-ANNUAL'!L17)/('PREFILLED-ANNUAL'!L17)),\"\",('TABLES-FORMS'!L17-'PREFILLED-ANNUAL'!L17)/('PREFILLED-ANNUAL'!L17))","v":""},{"$f":"IF(ISERROR(('TABLES-FORMS'!M17-'PREFILLED-ANNUAL'!M17)/('PREFILLED-ANNUAL'!M17)),\"\",('TABLES-FORMS'!M17-'PREFILLED-ANNUAL'!M17)/('PREFILLED-ANNUAL'!M17))","v":""},{"$f":"IF(ISERROR(('TABLES-FORMS'!N17-'PREFILLED-ANNUAL'!N17)/('PREFILLED-ANNUAL'!N17)),\"\",('TABLES-FORMS'!N17-'PREFILLED-ANNUAL'!N17)/('PREFILLED-ANNUAL'!N17))","v":""},{"$f":"IF(ISERROR(('TABLES-FORMS'!O17-'PREFILLED-ANNUAL'!O17)/('PREFILLED-ANNUAL'!O17)),\"\",('TABLES-FORMS'!O17-'PREFILLED-ANNUAL'!O17)/('PREFILLED-ANNUAL'!O17))","v":""}]
[null,"Other sectors",{"$f":"IF(ISERROR(('TABLES-FORMS'!C18-'PREFILLED-ANNUAL'!C18)/('PREFILLED-ANNUAL'!C18)),\"\",('TABLES-FORMS'!C18-'PREFILLED-ANNUAL'!C18)/('PREFILLED-ANNUAL'!C18))","v":""},{"$f":"IF(ISERROR(('TABLES-FORMS'!D18-'PREFILLED-ANNUAL'!D18)/('PREFILLED-ANNUAL'!D18)),\"\",('TABLES-FORMS'!D18-'PREFILLED-ANNUAL'!D18)/('PREFILLED-ANNUAL'!D18))","v":""},{"$f":"IF(ISERROR(('TABLES-FORMS'!E18-'PREFILLED-ANNUAL'!E18)/('PREFILLED-ANNUAL'!E18)),\"\",('TABLES-FORMS'!E18-'PREFILLED-ANNUAL'!E18)/('PREFILLED-ANNUAL'!E18))","v":""},{"$f":"IF(ISERROR(('TABLES-FORMS'!F18-'PREFILLED-ANNUAL'!F18)/('PREFILLED-ANNUAL'!F18)),\"\",('TABLES-FORMS'!F18-'PREFILLED-ANNUAL'!F18)/('PREFILLED-ANNUAL'!F18))","v":""},{"$f":"IF(ISERROR(('TABLES-FORMS'!G18-'PREFILLED-ANNUAL'!G18)/('PREFILLED-ANNUAL'!G18)),\"\",('TABLES-FORMS'!G18-'PREFILLED-ANNUAL'!G18)/('PREFILLED-ANNUAL'!G18))","v":""},{"$f":"IF(ISERROR(('TABLES-FORMS'!H18-'PREFILLED-ANNUAL'!H18)/('PREFILLED-ANNUAL'!H18)),\"\",('TABLES-FORMS'!H18-'PREFILLED-ANNUAL'!H18)/('PREFILLED-ANNUAL'!H18))","v":""},{"$f":"IF(ISERROR(('TABLES-FORMS'!I18-'PREFILLED-ANNUAL'!I18)/('PREFILLED-ANNUAL'!I18)),\"\",('TABLES-FORMS'!I18-'PREFILLED-ANNUAL'!I18)/('PREFILLED-ANNUAL'!I18))","v":""},{"$f":"IF(ISERROR(('TABLES-FORMS'!J18-'PREFILLED-ANNUAL'!J18)/('PREFILLED-ANNUAL'!J18)),\"\",('TABLES-FORMS'!J18-'PREFILLED-ANNUAL'!J18)/('PREFILLED-ANNUAL'!J18))","v":""},{"$f":"IF(ISERROR(('TABLES-FORMS'!K18-'PREFILLED-ANNUAL'!K18)/('PREFILLED-ANNUAL'!K18)),\"\",('TABLES-FORMS'!K18-'PREFILLED-ANNUAL'!K18)/('PREFILLED-ANNUAL'!K18))","v":""},{"$f":"IF(ISERROR(('TABLES-FORMS'!L18-'PREFILLED-ANNUAL'!L18)/('PREFILLED-ANNUAL'!L18)),\"\",('TABLES-FORMS'!L18-'PREFILLED-ANNUAL'!L18)/('PREFILLED-ANNUAL'!L18))","v":""},{"$f":"IF(ISERROR(('TABLES-FORMS'!M18-'PREFILLED-ANNUAL'!M18)/('PREFILLED-ANNUAL'!M18)),\"\",('TABLES-FORMS'!M18-'PREFILLED-ANNUAL'!M18)/('PREFILLED-ANNUAL'!M18))","v":""},{"$f":"IF(ISERROR(('TABLES-FORMS'!N18-'PREFILLED-ANNUAL'!N18)/('PREFILLED-ANNUAL'!N18)),\"\",('TABLES-FORMS'!N18-'PREFILLED-ANNUAL'!N18)/('PREFILLED-ANNUAL'!N18))","v":""},{"$f":"IF(ISERROR(('TABLES-FORMS'!O18-'PREFILLED-ANNUAL'!O18)/('PREFILLED-ANNUAL'!O18)),\"\",('TABLES-FORMS'!O18-'PREFILLED-ANNUAL'!O18)/('PREFILLED-ANNUAL'!O18))","v":""}]
[]
[null,"Net maximum capacity at the end of the year"]
[null,"MWe",{"$f":"B3","v":2019},"Growth rates"]
[null,"Hydro",{"$f":"COLUMN!H197","v":0},{"$f":"IF(ISERROR(('TABLES-FORMS'!C22-'PREFILLED-ANNUAL'!C40)/('PREFILLED-ANNUAL'!C40)),\"\",('TABLES-FORMS'!C22-'PREFILLED-ANNUAL'!C40)/('PREFILLED-ANNUAL'!C40))","v":""}]
[null,"     Pure hydro (with no pumping)",{"$f":"COLUMN!H198","v":0},{"$f":"IF(ISERROR(('TABLES-FORMS'!C23-'PREFILLED-ANNUAL'!C41)/('PREFILLED-ANNUAL'!C41)),\"\",('TABLES-FORMS'!C23-'PREFILLED-ANNUAL'!C41)/('PREFILLED-ANNUAL'!C41))","v":""}]
[null,"     Mixed hydro",{"$f":"COLUMN!H199","v":0},{"$f":"IF(ISERROR(('TABLES-FORMS'!C24-'PREFILLED-ANNUAL'!C42)/('PREFILLED-ANNUAL'!C42)),\"\",('TABLES-FORMS'!C24-'PREFILLED-ANNUAL'!C42)/('PREFILLED-ANNUAL'!C42))","v":""}]
[null,"     Pure pumped storage",{"$f":"COLUMN!H200","v":0},{"$f":"IF(ISERROR(('TABLES-FORMS'!C25-'PREFILLED-ANNUAL'!C43)/('PREFILLED-ANNUAL'!C43)),\"\",('TABLES-FORMS'!C25-'PREFILLED-ANNUAL'!C43)/('PREFILLED-ANNUAL'!C43))","v":""}]
[null,"Wind",{"$f":"COLUMN!H201","v":0},{"$f":"IF(ISERROR(('TABLES-FORMS'!C26-'PREFILLED-ANNUAL'!C44)/('PREFILLED-ANNUAL'!C44)),\"\",('TABLES-FORMS'!C26-'PREFILLED-ANNUAL'!C44)/('PREFILLED-ANNUAL'!C44))","v":""}]
[null,"     Onshore wind",{"$f":"COLUMN!H202","v":0},{"$f":"IF(ISERROR(('TABLES-FORMS'!C27-'PREFILLED-ANNUAL'!C45)/('PREFILLED-ANNUAL'!C45)),\"\",('TABLES-FORMS'!C27-'PREFILLED-ANNUAL'!C45)/('PREFILLED-ANNUAL'!C45))","v":""}]
[null,"     Offshore wind",{"$f":"COLUMN!H203","v":0},{"$f":"IF(ISERROR(('TABLES-FORMS'!C28-'PREFILLED-ANNUAL'!C46)/('PREFILLED-ANNUAL'!C46)),\"\",('TABLES-FORMS'!C28-'PREFILLED-ANNUAL'!C46)/('PREFILLED-ANNUAL'!C46))","v":""}]
[]
[null,"Sustainable biofuels according to Directive 2009/28/EC"]
[null,"ktoe",{"$f":"B3","v":2019},"Growth rates"]
[null,"Total final energy consumption of biofuels (liquid and gaseous) in transport",{"$f":"COLUMN!H204","v":0},{"$f":"IF(ISERROR(('TABLES-FORMS'!C32-'PREFILLED-ANNUAL'!C50)/('PREFILLED-ANNUAL'!C50)),\"\",('TABLES-FORMS'!C32-'PREFILLED-ANNUAL'!C50)/('PREFILLED-ANNUAL'!C50))","v":""}]
[null,"    of which sustainable biofuels",{"$f":"COLUMN!H205","v":0},{"$f":"IF(ISERROR(('TABLES-FORMS'!C33-'PREFILLED-ANNUAL'!C51)/('PREFILLED-ANNUAL'!C51)),\"\",('TABLES-FORMS'!C33-'PREFILLED-ANNUAL'!C51)/('PREFILLED-ANNUAL'!C51))","v":""}]
[null,"              of which Annex IX\n               (double counted)",{"$f":"COLUMN!H206","v":0},{"$f":"IF(ISERROR(('TABLES-FORMS'!C34-'PREFILLED-ANNUAL'!C52)/('PREFILLED-ANNUAL'!C52)),\"\",('TABLES-FORMS'!C34-'PREFILLED-ANNUAL'!C52)/('PREFILLED-ANNUAL'!C52))","v":""}]
[null,"Biomethane injected in the grid to be counted towards the transport target",{"$f":"COLUMN!H207","v":0},{"$f":"IF(ISERROR(('TABLES-FORMS'!C35-'PREFILLED-ANNUAL'!C53)/('PREFILLED-ANNUAL'!C53)),\"\",('TABLES-FORMS'!C35-'PREFILLED-ANNUAL'!C53)/('PREFILLED-ANNUAL'!C53))","v":""}]
[null,"Sustainable bioliquids: final consumption  in sectors other than transport",{"$f":"COLUMN!H208","v":0},{"$f":"IF(ISERROR(('TABLES-FORMS'!C36-'PREFILLED-ANNUAL'!C54)/('PREFILLED-ANNUAL'!C54)),\"\",('TABLES-FORMS'!C36-'PREFILLED-ANNUAL'!C54)/('PREFILLED-ANNUAL'!C54))","v":""}]

{"sheet":"LoadedData","index":6,"n_rows":199,"n_cols":44,"rows_kept":199,"cut":false,"hidden":true,"merged":[]}
[]
[null,null,null,null,null,null,null,null,null,null,null,null,null,null,null,null,null,null,null,"Geothermal energy","Indigenous production",{"$f":"H211","v":0}]
[null,null,null,null,null,null,null,null,null,{"$f":"SUM(G195:AR199)","v":82},"number of errors",null,null,null,null,null,null,null,null,"Geothermal energy","Total imports (Balance)",{"$f":"H212","v":0}]
[null,null,null,null,null,null,null,null,null,null,null,null,null,null,null,null,null,null,null,"Geothermal energy","Total exports (Balance)",{"$f":"H213","v":0}]
[null,null,null,null,null,null,null,null,null,null,null,null,null,null,null,null,null,null,null,"Geothermal energy","Stock changes (National territory)",{"$f":"H214","v":0}]
[null,null,null,null,null,null,null,null,null,null,null,null,null,null,null,null,null,null,null,"Geothermal energy","Inland consumption (Calculated)"]
[null,null,null,null,null,null,null,null,null,null,null,null,null,null,null,null,null,null,null,"Geothermal energy","Statistical Difference"]
[null,null,null,null,null,null,null,null,null,null,null,null,null,null,null,null,null,null,null,"Geothermal energy","Inland consumption (Observed)"]
[null,null,null,null,null,null,null,null,null,null,null,null,null,null,null,null,null,null,null,"Geothermal energy","Transformation sector",{"$f":"H217","v":0}]
[null,null,null,null,null,null,null,null,null,null,null,null,null,null,null,null,null,null,null,"Geothermal energy","     of which for blending"]
[null,null,null,null,null,null,null,null,null,null,null,null,null,null,null,null,null,null,null,"Geothermal energy","Energy sector",{"$f":"H221","v":0}]
[null,null,null,null,null,null,null,null,null,null,null,null,null,null,null,null,null,null,null,"Geothermal energy","Distribution losses",{"$f":"H222","v":0}]
[null,null,null,null,null,null,null,null,null,null,null,null,null,null,null,null,null,null,null,"Geothermal energy","Total final energy consumption",{"$f":"H224","v":0}]
[null,null,null,null,null,null,null,null,null,null,null,null,null,null,null,null,null,null,null,"Geothermal energy","Industry sector",{"$f":"H225","v":0}]
[null,null,null,null,null,null,null,null,null,null,null,null,null,null,null,null,null,null,null,"Geothermal energy","Transport sector",{"$f":"H226","v":0}]
[null,null,null,null,null,null,null,null,null,null,null,null,null,null,null,null,null,null,null,"Geothermal energy","Other sectors",{"$f":"H227","v":0}]
[null,null,null,null,null,null,null,null,null,null,null,null,null,null,null,null,null,null,null,"Solar thermal","Indigenous production",{"$f":"K211","v":0}]
[null,null,null,null,null,null,null,null,null,null,null,null,null,null,null,null,null,null,null,"Solar thermal","Total imports (Balance)",{"$f":"K212","v":0}]
[null,null,null,null,null,null,null,null,null,null,null,null,null,null,null,null,null,null,null,"Solar thermal","Total exports (Balance)",0]
[null,null,null,null,null,null,null,null,null,null,null,null,null,null,null,null,null,null,null,"Solar thermal","Stock changes (National territory)",0]
[null,null,null,null,null,null,null,null,null,null,null,null,null,null,null,null,null,null,null,"Solar thermal","Inland consumption (Calculated)"]
[null,null,null,null,null,null,null,null,null,null,null,null,null,null,null,null,null,null,null,"Solar thermal","Statistical Difference"]
[null,null,null,null,null,null,null,null,null,null,null,null,null,null,null,null,null,null,null,"Solar thermal","Inland consumption (Observed)"]
[null,null,null,null,null,null,null,null,null,null,null,null,null,null,null,null,null,null,null,"Solar thermal","Transformation sector",{"$f":"K217","v":0}]
[null,null,null,null,null,null,null,null,null,null,null,null,null,null,null,null,null,null,null,"Solar thermal","     of which for blending"]
[null,null,null,null,null,null,null,null,null,null,null,null,null,null,null,null,null,null,null,"Solar thermal","Energy sector",{"$f":"K221","v":0}]
[null,null,null,null,null,null,null,null,null,null,null,null,null,null,null,null,null,null,null,"Solar thermal","Distribution losses",{"$f":"K222","v":0}]
[null,null,null,null,null,null,null,null,null,null,null,null,null,null,null,null,null,null,null,"Solar thermal","Total final energy consumption",{"$f":"K224","v":0}]
[null,null,null,null,null,null,null,null,null,null,null,null,null,null,null,null,null,null,null,"Solar thermal","Industry sector",{"$f":"K225","v":0}]
[null,null,null,null,null,null,null,null,null,null,null,null,null,null,null,null,null,null,null,"Solar thermal","Transport sector",{"$f":"K226","v":0}]
[null,null,null,null,null,null,null,null,null,null,null,null,null,null,null,null,null,null,null,"Solar thermal","Other sectors",{"$f":"K227","v":0}]
[null,null,null,null,null,null,null,null,null,null,null,null,null,null,null,null,null,null,null,"Industrial waste (non-renewable)","Indigenous production",{"$f":"N211","v":0}]
[null,null,null,null,null,null,null,null,null,null,null,null,null,null,null,null,null,null,null,"Industrial waste (non-renewable)","Total imports (Balance)",{"$f":"N212","v":0}]
[null,null,null,null,null,null,null,null,null,null,null,null,null,null,null,null,null,null,null,"Industrial waste (non-renewable)","Total exports (Balance)",{"$f":"N213","v":0}]
[null,null,null,null,null,null,null,null,null,null,null,null,null,null,null,null,null,null,null,"Industrial waste (non-renewable)","Stock changes (National territory)",{"$f":"N214","v":0}]
[null,null,null,null,null,null,null,null,null,null,null,null,null,null,null,null,null,null,null,"Industrial waste (non-renewable)","Inland consumption (Calculated)"]
[null,null,null,null,null,null,null,null,null,null,null,null,null,null,null,null,null,null,null,"Industrial waste (non-renewable)","Statistical Difference"]
[null,null,null,null,null,null,null,null,null,null,null,null,null,null,null,null,null,null,null,"Industrial waste (non-renewable)","Inland consumption (Observed)"]
[null,null,null,null,null,null,null,null,null,null,null,null,null,null,null,null,null,null,null,"Industrial waste (non-renewable)","Transformation sector",{"$f":"N217","v":0}]
[null,null,null,null,null,null,null,null,null,null,null,null,null,null,null,null,null,null,null,"Industrial waste (non-renewable)","     of which for blending"]
[null,null,null,null,null,null,null,null,null,null,null,null,null,null,null,null,null,null,null,"Industrial waste (non-renewable)","Energy sector",{"$f":"N221","v":0}]
[null,null,null,null,null,null,null,null,null,null,null,null,null,null,null,null,null,null,null,"Industrial waste (non-renewable)","Distribution losses",{"$f":"N222","v":0}]
[null,null,null,null,null,null,null,null,null,null,null,null,null,null,null,null,null,null,null,"Industrial waste (non-renewable)","Total final energy consumption",{"$f":"N224","v":0}]
[null,null,null,null,null,null,null,null,null,null,null,null,null,null,null,null,null,null,null,"Industrial waste (non-renewable)","Industry sector",{"$f":"N225","v":0}]
[null,null,null,null,null,null,null,null,null,null,null,null,null,null,null,null,null,null,null,"Industrial waste (non-renewable)","Transport sector",{"$f":"N226","v":0}]
[null,null,null,null,null,null,null,null,null,null,null,null,null,null,null,null,null,null,null,"Industrial waste (non-renewable)","Other sectors",{"$f":"N227","v":0}]
[null,null,null,null,null,null,null,null,null,null,null,null,null,null,null,null,null,null,null,"Municipal waste (renewable)","Indigenous production",{"$f":"Q211","v":0}]
[null,null,null,null,null,null,null,null,null,null,null,null,null,null,null,null,null,null,null,"Municipal waste (renewable)","Total imports (Balance)",{"$f":"Q212","v":0}]
[null,null,null,null,null,null,null,null,null,null,null,null,null,null,null,null,null,null,null,"Municipal waste (renewable)","Total exports (Balance)",{"$f":"Q213","v":0}]
[null,null,null,null,null,null,null,null,null,null,null,null,null,null,null,null,null,null,null,"Municipal waste (renewable)","Stock changes (National territory)",{"$f":"Q214","v":0}]
[null,null,null,null,null,null,null,null,null,null,null,null,null,null,null,null,null,null,null,"Municipal waste (renewable)","Inland consumption (Calculated)"]
[null,null,null,null,null,null,null,null,null,null,null,null,null,null,null,null,null,null,null,"Municipal waste (renewable)","Statistical Difference"]
[null,null,null,null,null,null,null,null,null,null,null,null,null,null,null,null,null,null,null,"Municipal waste (renewable)","Inland consumption (Observed)"]
[null,null,null,null,null,null,null,null,null,null,null,null,null,null,null,null,null,null,null,"Municipal waste (renewable)","Transformation sector",{"$f":"Q217","v":0}]
[null,null,null,null,null,null,null,null,null,null,null,null,null,null,null,null,null,null,null,"Municipal waste (renewable)","     of which for blending"]
[null,null,null,null,null,null,null,null,null,null,null,null,null,null,null,null,null,null,null,"Municipal waste (renewable)","Energy sector",{"$f":"Q221","v":0}]
[null,null,null,null,null,null,null,null,null,null,null,null,null,null,null,null,null,null,null,"Municipal waste (renewable)","Distribution losses",{"$f":"Q222","v":0}]
[null,null,null,null,null,null,null,null,null,null,null,null,null,null,null,null,null,null,null,"Municipal waste (renewable)","Total final energy consumption",{"$f":"Q224","v":0}]
[null,null,null,null,null,null,null,null,null,null,null,null,null,null,null,null,null,null,null,"Municipal waste (renewable)","Industry sector",{"$f":"Q225","v":0}]
[null,null,null,null,null,null,null,null,null,null,null,null,null,null,null,null,null,null,null,"Municipal waste (renewable)","Transport sector",{"$f":"Q226","v":0}]
[null,null,null,null,null,null,null,null,null,null,null,null,null,null,null,null,null,null,null,"Municipal waste (renewable)","Other sectors",{"$f":"Q227","v":0}]
[null,null,null,null,null,null,null,null,null,null,null,null,null,null,null,null,null,null,null,"Municipal waste (non-renewable)","Indigenous production",{"$f":"T211","v":0}]
[null,null,null,null,null,null,null,null,null,null,null,null,null,null,null,null,null,null,null,"Municipal waste (non-renewable)","Total imports (Balance)",{"$f":"T212","v":0}]
[null,null,null,null,null,null,null,null,null,null,null,null,null,null,null,null,null,null,null,"Municipal waste (non-renewable)","Total exports (Balance)",{"$f":"T213","v":0}]
[null,null,null,null,null,null,null,null,null,null,null,null,null,null,null,null,null,null,null,"Municipal waste (non-renewable)","Stock changes (National territory)",{"$f":"T214","v":0}]
[null,null,null,null,null,null,null,null,null,null,null,null,null,null,null,null,null,null,null,"Municipal waste (non-renewable)","Inland consumption (Calculated)"]
[null,null,null,null,null,null,null,null,null,null,null,null,null,null,null,null,null,null,null,"Municipal waste (non-renewable)","Statistical Difference"]
[null,null,null,null,null,null,null,null,null,null,null,null,null,null,null,null,null,null,null,"Municipal waste (non-renewable)","Inland consumption (Observed)"]
[null,null,null,null,null,null,null,null,null,null,null,null,null,null,null,null,null,null,null,"Municipal waste (non-renewable)","Transformation sector",{"$f":"T217","v":0}]
[null,null,null,null,null,null,null,null,null,null,null,null,null,null,null,null,null,null,null,"Municipal waste (non-renewable)","     of which for blending"]
[null,null,null,null,null,null,null,null,null,null,null,null,null,null,null,null,null,null,null,"Municipal waste (non-renewable)","Energy sector",{"$f":"T221","v":0}]
[null,null,null,null,null,null,null,null,null,null,null,null,null,null,null,null,null,null,null,"Municipal waste (non-renewable)","Distribution losses",{"$f":"T222","v":0}]
[null,null,null,null,null,null,null,null,null,null,null,null,null,null,null,null,null,null,null,"Municipal waste (non-renewable)","Total final energy consumption",{"$f":"T224","v":0}]
[null,null,null,null,null,null,null,null,null,null,null,null,null,null,null,null,null,null,null,"Municipal waste (non-renewable)","Industry sector",{"$f":"T225","v":0}]
[null,null,null,null,null,null,null,null,null,null,null,null,null,null,null,null,null,null,null,"Municipal waste (non-renewable)","Transport sector",{"$f":"T226","v":0}]
[null,null,null,null,null,null,null,null,null,null,null,null,null,null,null,null,null,null,null,"Municipal waste (non-renewable)","Other sectors",{"$f":"T227","v":0}]
[null,null,null,null,null,null,null,null,null,null,null,null,null,null,null,null,null,null,null,"Solid biofuels excluding charcoal","Indigenous production",{"$f":"W211","v":0}]
[null,null,null,null,null,null,null,null,null,null,null,null,null,null,null,null,null,null,null,"Solid biofuels excluding charcoal","Total imports (Balance)",{"$f":"W212","v":0}]
[null,null,null,null,null,null,null,null,null,null,null,null,null,null,null,null,null,null,null,"Solid biofuels excluding charcoal","Total exports (Balance)",{"$f":"W213","v":0}]
[null,null,null,null,null,null,null,null,null,null,null,null,null,null,null,null,null,null,null,"Solid biofuels excluding charcoal","Stock changes (National territory)",{"$f":"W214","v":0}]
[null,null,null,null,null,null,null,null,null,null,null,null,null,null,null,null,null,null,null,"Solid biofuels excluding charcoal","Inland consumption (Calculated)"]
[null,null,null,null,null,null,null,null,null,null,null,null,null,null,null,null,null,null,null,"Solid biofuels excluding charcoal","Statistical Difference"]
[null,null,null,null,null,null,null,null,null,null,null,null,null,null,null,null,null,null,null,"Solid biofuels excluding charcoal","Inland consumption (Observed)"]
[null,null,null,null,null,null,null,null,null,null,null,null,null,null,null,null,null,null,null,"Solid biofuels excluding charcoal","Transformation sector",{"$f":"W217","v":0}]
[null,null,null,null,null,null,null,null,null,null,null,null,null,null,null,null,null,null,null,"Solid biofuels excluding charcoal","     of which for blending"]
[null,null,null,null,null,null,null,null,null,null,null,null,null,null,null,null,null,null,null,"Solid biofuels excluding charcoal","Energy sector",{"$f":"W221","v":0}]
[null,null,null,null,null,null,null,null,null,null,null,null,null,null,null,null,null,null,null,"Solid biofuels excluding charcoal","Distribution losses",{"$f":"W222","v":0}]
[null,null,null,null,null,null,null,null,null,null,null,null,null,null,null,null,null,null,null,"Solid biofuels excluding charcoal","Total final energy consumption",{"$f":"W224","v":0}]
[null,null,null,null,null,null,null,null,null,null,null,null,null,null,null,null,null,null,null,"Solid biofuels excluding charcoal","Industry sector",{"$f":"W225","v":0}]
[null,null,null,null,null,null,null,null,null,null,null,null,null,null,null,null,null,null,null,"Solid biofuels excluding charcoal","Transport sector",{"$f":"W226","v":0}]
[null,null,null,null,null,null,null,null,null,null,null,null,null,null,null,null,null,null,null,"Solid biofuels excluding charcoal","Other sectors",{"$f":"W227","v":0}]
[null,null,null,null,null,null,null,null,null,null,null,null,null,null,null,null,null,null,null,"Charcoal","Indigenous production",{"$f":"Z211","v":0}]
[null,null,null,null,null,null,null,null,null,null,null,null,null,null,null,null,null,null,null,"Charcoal","Total imports (Balance)",{"$f":"Z212","v":0}]
[null,null,null,null,null,null,null,null,null,null,null,null,null,null,null,null,null,null,null,"Charcoal","Total exports (Balance)",{"$f":"Z213","v":0}]
[null,null,null,null,null,null,null,null,null,null,null,null,null,null,null,null,null,null,null,"Charcoal","Stock changes (National territory)",{"$f":"Z214","v":0}]
[null,null,null,null,null,null,null,null,null,null,null,null,null,null,null,null,null,null,null,"Charcoal","Inland consumption (Calculated)"]
[null,null,null,null,null,null,null,null,null,null,null,null,null,null,null,null,null,null,null,"Charcoal","Statistical Difference"]
[null,null,null,null,null,null,null,null,null,null,null,null,null,null,null,null,null,null,null,"Charcoal","Inland consumption (Observed)"]
[null,null,null,null,null,null,null,null,null,null,null,null,null,null,null,null,null,null,null,"Charcoal","Transformation sector",{"$f":"Z217","v":0}]
[null,null,null,null,null,null,null,null,null,null,null,null,null,null,null,null,null,null,null,"Charcoal","     of which for blending"]
[null,null,null,null,null,null,null,null,null,null,null,null,null,null,null,null,null,null,null,"Charcoal","Energy sector",{"$f":"Z221","v":0}]
[null,null,null,null,null,null,null,null,null,null,null,null,null,null,null,null,null,null,null,"Charcoal","Distribution losses",{"$f":"Z222","v":0}]
[null,null,null,null,null,null,null,null,null,null,null,null,null,null,null,null,null,null,null,"Charcoal","Total final energy consumption",{"$f":"Z224","v":0}]
[null,null,null,null,null,null,null,null,null,null,null,null,null,null,null,null,null,null,null,"Charcoal","Industry sector",{"$f":"Z225","v":0}]
[null,null,null,null,null,null,null,null,null,null,null,null,null,null,null,null,null,null,null,"Charcoal","Transport sector",{"$f":"Z226","v":0}]
[null,null,null,null,null,null,null,null,null,null,null,null,null,null,null,null,null,null,null,"Charcoal","Other sectors",{"$f":"Z227","v":0}]
[null,null,null,null,null,null,null,null,null,null,null,null,null,null,null,null,null,null,null,"Biogases","Indigenous production",{"$f":"AC211","v":0}]
[null,null,null,null,null,null,null,null,null,null,null,null,null,null,null,null,null,null,null,"Biogases","Total imports (Balance)",{"$f":"AC212","v":0}]
[null,null,null,null,null,null,null,null,null,null,null,null,null,null,null,null,null,null,null,"Biogases","Total exports (Balance)",{"$f":"AC213","v":0}]
[null,null,null,null,null,null,null,null,null,null,null,null,null,null,null,null,null,null,null,"Biogases","Stock changes (National territory)",{"$f":"AC214","v":0}]
[null,null,null,null,null,null,null,null,null,null,null,null,null,null,null,null,null,null,null,"Biogases","Inland consumption (Calculated)"]
[null,null,null,null,null,null,null,null,null,null,null,null,null,null,null,null,null,null,null,"Biogases","Statistical Difference"]
[null,null,null,null,null,null,null,null,null,null,null,null,null,null,null,null,null,null,null,"Biogases","Inland consumption (Observed)"]
[null,null,null,null,null,null,null,null,null,null,null,null,null,null,null,null,null,null,null,"Biogases","Transformation sector",{"$f":"AC217","v":0}]
[null,null,null,null,null,null,null,null,null,null,null,null,null,null,null,null,null,null,null,"Biogases","     of which for blending",{"$f":"AC219","v":0}]
[null,null,null,null,null,null,null,null,null,null,null,null,null,null,null,null,null,null,null,"Biogases","Energy sector",{"$f":"AC221","v":0}]
[null,null,null,null,null,null,null,null,null,null,null,null,null,null,null,null,null,null,null,"Biogases","Distribution losses",{"$f":"AC222","v":0}]
[null,null,null,null,null,null,null,null,null,null,null,null,null,null,null,null,null,null,null,"Biogases","Total final energy consumption",{"$f":"AC224","v":0}]
[null,null,null,null,null,null,null,null,null,null,null,null,null,null,null,null,null,null,null,"Biogases","Industry sector",{"$f":"AC225","v":0}]
[null,null,null,null,null,null,null,null,null,null,null,null,null,null,null,null,null,null,null,"Biogases","Transport sector",{"$f":"AC226","v":0}]
[null,null,null,null,null,null,null,null,null,null,null,null,null,null,null,null,null,null,null,"Biogases","Other sectors",{"$f":"AC227","v":0}]
[null,null,null,null,null,null,null,null,null,null,null,null,null,null,null,null,null,null,null,"Biogasoline","Indigenous production",{"$f":"AF211","v":0}]
[null,null,null,null,null,null,null,null,null,null,null,null,null,null,null,null,null,null,null,"Biogasoline","Total imports (Balance)",{"$f":"AF212","v":0}]
[null,null,null,null,null,null,null,null,null,null,null,null,null,null,null,null,null,null,null,"Biogasoline","Total exports (Balance)",{"$f":"AF213","v":0}]
[null,null,null,null,null,null,null,null,null,null,null,null,null,null,null,null,null,null,null,"Biogasoline","Stock changes (National territory)",{"$f":"AF214","v":0}]
[null,null,null,null,null,null,null,null,null,null,null,null,null,null,null,null,null,null,null,"Biogasoline","Inland consumption (Calculated)"]
[null,null,null,null,null,null,null,null,null,null,null,null,null,null,null,null,null,null,null,"Biogasoline","Statistical Difference"]
[null,null,null,null,null,null,null,null,null,null,null,null,null,null,null,null,null,null,null,"Biogasoline","Inland consumption (Observed)"]
[null,null,null,null,null,null,null,null,null,null,null,null,null,null,null,null,null,null,null,"Biogasoline","Transformation sector",{"$f":"AF217","v":0}]
[null,null,null,null,null,null,null,null,null,null,null,null,null,null,null,null,null,null,null,"Biogasoline","     of which for blending",{"$f":"AF220","v":0}]
[null,null,null,null,null,null,null,null,null,null,null,null,null,null,null,null,null,null,null,"Biogasoline","Energy sector",{"$f":"AF221","v":0}]
[null,null,null,null,null,null,null,null,null,null,null,null,null,null,null,null,null,null,null,"Biogasoline","Distribution losses",{"$f":"AF222","v":0}]
[null,null,null,null,null,null,null,null,null,null,null,null,null,null,null,null,null,null,null,"Biogasoline","Total final energy consumption",{"$f":"AF224","v":0}]
[null,null,null,null,null,null,null,null,null,null,null,null,null,null,null,null,null,null,null,"Biogasoline","Industry sector",{"$f":"AF225","v":0}]
[null,null,null,null,null,null,null,null,null,null,null,null,null,null,null,null,null,null,null,"Biogasoline","Transport sector",{"$f":"AF226","v":0}]
[null,null,null,null,null,null,null,null,null,null,null,null,null,null,null,null,null,null,null,"Biogasoline","Other sectors",{"$f":"AF227","v":0}]
[null,null,null,null,null,null,null,null,null,null,null,null,null,null,null,null,null,null,null,"Bio jet kerosenes","Indigenous production",{"$f":"AL211","v":0}]
[null,null,null,null,null,null,null,null,null,null,null,null,null,null,null,null,null,null,null,"Bio jet kerosenes","Total imports (Balance)",{"$f":"AL212","v":0}]
[null,null,null,null,null,null,null,null,null,null,null,null,null,null,null,null,null,null,null,"Bio jet kerosenes","Total exports (Balance)",{"$f":"AL213","v":0}]
[null,null,null,null,null,null,null,null,null,null,null,null,null,null,null,null,null,null,null,"Bio jet kerosenes","Stock changes (National territory)",{"$f":"AL214","v":0}]
[null,null,null,null,null,null,null,null,null,null,null,null,null,null,null,null,null,null,null,"Bio jet kerosenes","Inland consumption (Calculated)"]
[null,null,null,null,null,null,null,null,null,null,null,null,null,null,null,null,null,null,null,"Bio jet kerosenes","Statistical Difference"]
[null,null,null,null,null,null,null,null,null,null,null,null,null,null,null,null,null,null,null,"Bio jet kerosenes","Inland consumption (Observed)"]
[null,null,null,null,null,null,null,null,null,null,null,null,null,null,null,null,null,null,null,"Bio jet kerosenes","Transformation sector",{"$f":"AL217","v":0}]
[null,null,null,null,null,null,null,null,null,null,null,null,null,null,null,null,null,null,null,"Bio jet kerosenes","     of which for blending",{"$f":"AL220","v":0}]
[null,null,null,null,null,null,null,null,null,null,null,null,null,null,null,null,null,null,null,"Bio jet kerosenes","Energy sector",{"$f":"AL221","v":0}]
[null,null,null,null,null,null,null,null,null,null,null,null,null,null,null,null,null,null,null,"Bio jet kerosenes","Distribution losses",{"$f":"AL222","v":0}]
[null,null,null,null,null,null,null,null,null,null,null,null,null,null,null,null,null,null,null,"Bio jet kerosenes","Total final energy consumption",{"$f":"AL224","v":0}]
[null,null,null,null,null,null,null,null,null,null,null,null,null,null,null,null,null,null,null,"Bio jet kerosenes","Industry sector",{"$f":"AL225","v":0}]
[null,null,null,null,null,null,null,null,null,null,null,null,null,null,null,null,null,null,null,"Bio jet kerosenes","Transport sector",{"$f":"AL226","v":0}]
[null,null,null,null,null,null,null,null,null,null,null,null,null,null,null,null,null,null,null,"Bio jet kerosenes","Other sectors",{"$f":"AL227","v":0}]
[null,null,null,null,null,null,null,null,null,null,null,null,null,null,null,null,null,null,null,"Biodiesels","Indigenous production",{"$f":"AO211","v":0}]
[null,null,null,null,null,null,null,null,null,null,null,null,null,null,null,null,null,null,null,"Biodiesels","Total imports (Balance)",{"$f":"AO212","v":0}]
[null,null,null,null,null,null,null,null,null,null,null,null,null,null,null,null,null,null,null,"Biodiesels","Total exports (Balance)",{"$f":"AO213","v":0}]
[null,null,null,null,null,null,null,null,null,null,null,null,null,null,null,null,null,null,null,"Biodiesels","Stock changes (National territory)",{"$f":"AO214","v":0}]
[null,null,null,null,null,null,null,null,null,null,null,null,null,null,null,null,null,null,null,"Biodiesels","Inland consumption (Calculated)"]
[null,null,null,null,null,null,null,null,null,null,null,null,null,null,null,null,null,null,null,"Biodiesels","Statistical Difference"]
[null,null,null,null,null,null,null,null,null,null,null,null,null,null,null,null,null,null,null,"Biodiesels","Inland consumption (Observed)"]
[null,null,null,null,null,null,null,null,null,null,null,null,null,null,null,null,null,null,null,"Biodiesels","Transformation sector",{"$f":"AO217","v":0}]
[null,null,null,null,null,null,null,null,null,null,null,null,null,null,null,null,null,null,null,"Biodiesels","     of which for blending",{"$f":"AO220","v":0}]
[null,null,null,null,null,null,null,null,null,null,null,null,null,null,null,null,null,null,null,"Biodiesels","Energy sector",{"$f":"AO221","v":0}]
[null,null,null,null,null,null,null,null,null,null,null,null,null,null,null,null,null,null,null,"Biodiesels","Distribution losses",{"$f":"AO222","v":0}]
[null,null,null,null,null,null,null,null,null,null,null,null,null,null,null,null,null,null,null,"Biodiesels","Total final energy consumption",{"$f":"AO224","v":0}]
[null,null,null,null,null,null,null,null,null,null,null,null,null,null,null,null,null,null,null,"Biodiesels","Industry sector",{"$f":"AO225","v":0}]
[null,null,null,null,null,null,null,null,null,null,null,null,null,null,null,null,null,null,null,"Biodiesels","Transport sector",{"$f":"AO226","v":0}]
[null,null,null,null,null,null,null,null,null,null,null,null,null,null,null,null,null,null,null,"Biodiesels","Other sectors",{"$f":"AO227","v":0}]
[null,null,null,null,null,null,null,null,null,null,null,null,null,null,null,null,null,null,null,"Other liquid biofuels","Indigenous production",{"$f":"AR211","v":0}]
[null,null,null,null,null,null,null,null,null,null,null,null,null,null,null,null,null,null,null,"Other liquid biofuels","Total imports (Balance)",{"$f":"AR212","v":0}]
[null,null,null,null,null,null,null,null,null,null,null,null,null,null,null,null,null,null,null,"Other liquid biofuels","Total exports (Balance)",{"$f":"AR213","v":0}]
[null,null,null,null,null,null,null,null,null,null,null,null,null,null,null,null,null,null,null,"Other liquid biofuels","Stock changes (National territory)",{"$f":"AR214","v":0}]
[null,null,null,null,null,null,null,null,null,null,null,null,null,null,null,null,null,null,null,"Other liquid biofuels","Inland consumption (Calculated)"]
[null,null,null,null,null,null,null,null,null,null,null,null,null,null,null,null,null,null,null,"Other liquid biofuels","Statistical Difference"]
[null,null,null,null,null,null,null,null,null,null,null,null,null,null,null,null,null,null,null,"Other liquid biofuels","Inland consumption (Observed)"]
[null,null,null,null,null,null,null,null,null,null,null,null,null,null,null,null,null,null,null,"Other liquid biofuels","Transformation sector",{"$f":"AR217","v":0}]
[null,null,null,null,null,null,null,null,null,null,null,null,null,null,null,null,null,null,null,"Other liquid biofuels","     of which for blending",{"$f":"AR220","v":0}]
[null,null,null,null,null,null,null,null,null,null,null,null,null,null,null,null,null,null,null,"Other liquid biofuels","Energy sector",{"$f":"AR221","v":0}]
[null,null,null,null,null,null,null,null,null,null,null,null,null,null,null,null,null,null,null,"Other liquid biofuels","Distribution losses",{"$f":"AR222","v":0}]
[null,null,null,null,null,null,null,null,null,null,null,null,null,null,null,null,null,null,null,"Other liquid biofuels","Total final energy consumption",{"$f":"AR224","v":0}]
[null,null,null,null,null,null,null,null,null,null,null,null,null,null,null,null,null,null,null,"Other liquid biofuels","Industry sector",{"$f":"AR225","v":0}]
[null,null,null,null,null,null,null,null,null,null,null,null,null,null,null,null,null,null,null,"Other liquid biofuels","Transport sector",{"$f":"AR226","v":0}]
[null,null,null,null,null,null,null,null,null,null,null,null,null,null,null,null,null,null,null,"Other liquid biofuels","Other sectors",{"$f":"AR227","v":0}]
[]
[]
[]
[]
[]
[]
[]
[]
[null,null,null,null,null,null,"GEOTHERM","GEOTHERM",null,"SOLARTH","SOLARTH",null,"INDWASTE","INDWASTE",null,"MUNWASTER","MUNWASTER",null,"MUNWASTEN","MUNWASTEN",null,"PRIMSBIO","PRIMSBIO",null,"CHARCOAL","CHARCOAL",null,"BIOGASES","BIOGASES",null,"BIOGASOL","BIOGASOL",null,"BIOETHANOL","BIOETHANOL",null,"BIOJETKERO","BIOJETKERO",null,"BIODIESEL","BIODIESEL",null,"OBIOLIQ","OBIOLIQ"]
[null,null,null,null,null,null,2,2,null,3,3,null,4,4,null,5,5,null,6,6,null,7,7,null,8,8,null,9,9,null,10,10,null,11,11,null,12,12,null,13,13,null,14,14]
[null,null,null,null,null,null,null,null,null,null,null,null,null,null,null,"Municipal Wastes",null,null,null,null,null,"Solid Biofuels",null,null,null,null,null,"Biogases",null,null,"Liquid Biofuels"]
[null,null,null,null,null,null,"Geothermal energy",null,null,"Solar Thermal",null,null,"Industrial waste\n(non-renewable)",null,null,"Renewable",null,null,"Non-renewable",null,null,"Solid biofuels\nexcluding charcoal",null,null,"Charcoal",null,null,"Biogases\n(In Table 2, a + b + c + d)",null,null,"Biogasoline",null,null,"Of which bioethanol",null,null,"Bio jet kerosenes",null,null,"Biodiesels",null,null,"Other liquid biofuels"]
[null,null,null,null,null,null,"TJ (NCV)",null,null,"TJ (NCV)",null,null,"TJ (NCV)",null,null,"TJ (NCV)",null,null,"TJ (NCV)",null,null,"TJ (NCV)",null,null,"kt",null,null,"TJ (NCV)",null,null,"kt",null,null,"kt",null,null,"kt",null,null,"kt",null,null,"kt"]
[null,null,null,null,null,null,{"$f":"IF(G190=G205,0,1)","v":1},{"$f":"IF(H190=H205,0,1)","v":1},0,1,1,0,1,1,0,1,1,0,1,1,0,1,1,0,1,1,0,1,1,0,1,1,0,1,1,0,1,1,0,1,1,0,1,1]
[null,null,null,null,null,null,{"$f":"IF(G191=G206,0,1)","v":1},1,0,1,1,0,1,1,0,1,1,0,1,1,0,1,1,0,1,1,0,1,1,0,1,1,0,1,1,0,1,1,0,1,1,0,1,1]
[null,null,null,null,null,null,0,0,0,0,0,0,0,0,0,1,0,0,0,0,0,1,0,0,0,0,0,1,0,0,1,0,0,0,0,0,0,0,0,0,0,0,0,0]
[null,null,null,null,null,null,1,0,0,1,0,0,1,0,0,1,0,0,1,0,0,1,0,0,1,0,0,1,0,0,1,0,0,1,0,0,1,0,0,1,0,0,1,0]
[null,null,null,null,null,null,1,0,0,1,0,0,1,0,0,1,0,0,1,0,0,1,0,0,1,0,0,1,0,0,1,0,0,1,0,0,1,0,0,1,0,0,1,0]

{"sheet":"PrefilledData","index":7,"n_rows":210,"n_cols":20,"rows_kept":210,"cut":false,"hidden":true,"merged":[]}
[]
[]
[]
[null,null,null,null,null,null,null,null,null,null,null,null,null,null,null,null,null,null,null,"Prefilled from annual data (previous year)"]
[null,null,null,null,null,null,null,null,null,null,null,null,null,null,null,null,"TJ NCV","Geothermal energy","Indigenous production",{"$f":"C17","v":0}]
[null,null,null,null,null,null,null,null,null,null,null,null,null,null,null,null,"TJ NCV","Geothermal energy","Total imports (Balance)",{"$f":"C18","v":0}]
[null,null,null,null,null,null,null,null,null,null,null,null,null,null,null,null,"TJ NCV","Geothermal energy","Total exports (Balance)",{"$f":"C19","v":0}]
[null,null,null,null,null,null,null,null,null,null,null,null,null,null,null,null,"TJ NCV","Geothermal energy","Stock changes (National territory)",{"$f":"C20","v":0}]
[null,null,null,null,null,null,null,null,null,null,null,null,null,null,null,null,"TJ NCV","Geothermal energy","Inland consumption (Calculated)"]
[null,null,null,null,null,null,null,null,null,null,null,null,null,null,null,null,"TJ NCV","Geothermal energy","Statistical Difference"]
[null,null,null,null,null,null,null,null,null,null,null,null,null,null,null,null,"TJ NCV","Geothermal energy","Inland consumption (Observed)"]
[null,null,null,null,null,null,null,null,null,null,null,null,null,null,null,null,"TJ NCV","Geothermal energy","Transformation sector",{"$f":"C21","v":0}]
[null,null,null,null,null,null,null,null,null,null,null,null,null,null,null,null,"TJ NCV","Geothermal energy","     of which for blending"]
[null,null,null,null,null,null,null,null,null,null,null,null,null,null,null,null,"TJ NCV","Geothermal energy","Energy sector",{"$f":"C24","v":0}]
[null,null,null,null,null,null,null,null,null,null,null,null,null,null,null,null,"TJ NCV","Geothermal energy","Distribution losses",{"$f":"C25","v":0}]
[null,null,null,null,null,null,null,null,null,null,null,null,null,null,null,null,"TJ NCV","Geothermal energy","Total final energy consumption"]
[null,null,null,null,null,null,null,null,null,null,null,null,null,null,null,null,"TJ NCV","Geothermal energy","Industry sector",{"$f":"C26","v":0}]
[null,null,null,null,null,null,null,null,null,null,null,null,null,null,null,null,"TJ NCV","Geothermal energy","Transport sector",{"$f":"C27","v":0}]
[null,null,null,null,null,null,null,null,null,null,null,null,null,null,null,null,"TJ NCV","Geothermal energy","Other sectors",{"$f":"C28","v":0}]
[null,null,null,null,null,null,null,null,null,null,null,null,null,null,null,null,"TJ NCV","Solar thermal","Indigenous production",{"$f":"D17","v":0}]
[null,null,null,null,null,null,null,null,null,null,null,null,null,null,null,null,"TJ NCV","Solar thermal","Total imports (Balance)",{"$f":"D18","v":0}]
[null,null,null,null,null,null,null,null,null,null,null,null,null,null,null,null,"TJ NCV","Solar thermal","Total exports (Balance)",{"$f":"D19","v":0}]
[null,null,null,null,null,null,null,null,null,null,null,null,null,null,null,null,"TJ NCV","Solar thermal","Stock changes (National territory)",{"$f":"D20","v":0}]
[null,null,null,null,null,null,null,null,null,null,null,null,null,null,null,null,"TJ NCV","Solar thermal","Inland consumption (Calculated)"]
[null,null,null,null,null,null,null,null,null,null,null,null,null,null,null,null,"TJ NCV","Solar thermal","Statistical Difference"]
[null,null,null,null,null,null,null,null,null,null,null,null,null,null,null,null,"TJ NCV","Solar thermal","Inland consumption (Observed)"]
[null,null,null,null,null,null,null,null,null,null,null,null,null,null,null,null,"TJ NCV","Solar thermal","Transformation sector",{"$f":"D21","v":0}]
[null,null,null,null,null,null,null,null,null,null,null,null,null,null,null,null,"TJ NCV","Solar thermal","     of which for blending"]
[null,null,null,null,null,null,null,null,null,null,null,null,null,null,null,null,"TJ NCV","Solar thermal","Energy sector",{"$f":"D24","v":0}]
[null,null,null,null,null,null,null,null,null,null,null,null,null,null,null,null,"TJ NCV","Solar thermal","Distribution losses",{"$f":"D25","v":0}]
[null,null,null,null,null,null,null,null,null,null,null,null,null,null,null,null,"TJ NCV","Solar thermal","Total final energy consumption"]
[null,null,null,null,null,null,null,null,null,null,null,null,null,null,null,null,"TJ NCV","Solar thermal","Industry sector",{"$f":"D26","v":0}]
[null,null,null,null,null,null,null,null,null,null,null,null,null,null,null,null,"TJ NCV","Solar thermal","Transport sector",{"$f":"D27","v":0}]
[null,null,null,null,null,null,null,null,null,null,null,null,null,null,null,null,"TJ NCV","Solar thermal","Other sectors",{"$f":"D28","v":0}]
[null,null,null,null,null,null,null,null,null,null,null,null,null,null,null,null,"TJ NCV","Industrial waste (non-renewable)","Indigenous production",{"$f":"M17","v":0}]
[null,null,null,null,null,null,null,null,null,null,null,null,null,null,null,null,"TJ NCV","Industrial waste (non-renewable)","Total imports (Balance)",{"$f":"M18","v":0}]
[null,null,null,null,null,null,null,null,null,null,null,null,null,null,null,null,"TJ NCV","Industrial waste (non-renewable)","Total exports (Balance)",{"$f":"M19","v":0}]
[null,null,null,null,null,null,null,null,null,null,null,null,null,null,null,null,"TJ NCV","Industrial waste (non-renewable)","Stock changes (National territory)",{"$f":"M20","v":0}]
[null,null,null,null,null,null,null,null,null,null,null,null,null,null,null,null,"TJ NCV","Industrial waste (non-renewable)","Inland consumption (Calculated)"]
[null,null,null,null,null,null,null,null,null,null,null,null,null,null,null,null,"TJ NCV","Industrial waste (non-renewable)","Statistical Difference"]
[null,null,null,null,null,null,null,null,null,null,null,null,null,null,null,null,"TJ NCV","Industrial waste (non-renewable)","Inland consumption (Observed)"]
[null,null,null,null,null,null,null,null,null,null,null,null,null,null,null,null,"TJ NCV","Industrial waste (non-renewable)","Transformation sector",{"$f":"M21","v":0}]
[null,null,null,null,null,null,null,null,null,null,null,null,null,null,null,null,"TJ NCV","Industrial waste (non-renewable)","     of which for blending"]
[null,null,null,null,null,null,null,null,null,null,null,null,null,null,null,null,"TJ NCV","Industrial waste (non-renewable)","Energy sector",{"$f":"M24","v":0}]
[null,null,null,null,null,null,null,null,null,null,null,null,null,null,null,null,"TJ NCV","Industrial waste (non-renewable)","Distribution losses",{"$f":"M25","v":0}]
[null,null,null,null,null,null,null,null,null,null,null,null,null,null,null,null,"TJ NCV","Industrial waste (non-renewable)","Total final energy consumption"]
[null,null,null,null,null,null,null,null,null,null,null,null,null,null,null,null,"TJ NCV","Industrial waste (non-renewable)","Industry sector",{"$f":"M26","v":0}]
[null,null,null,null,null,null,null,null,null,null,null,null,null,null,null,null,"TJ NCV","Industrial waste (non-renewable)","Transport sector",{"$f":"M27","v":0}]
[null,null,null,null,null,null,null,null,null,null,null,null,null,null,null,null,"TJ NCV","Industrial waste (non-renewable)","Other sectors",{"$f":"M28","v":0}]
[null,null,null,null,null,null,null,null,null,null,null,null,null,null,null,null,"TJ NCV","Municipal waste (renewable)","Indigenous production",{"$f":"N17","v":0}]
[null,null,null,null,null,null,null,null,null,null,null,null,null,null,null,null,"TJ NCV","Municipal waste (renewable)","Total imports (Balance)",{"$f":"N18","v":0}]
[null,null,null,null,null,null,null,null,null,null,null,null,null,null,null,null,"TJ NCV","Municipal waste (renewable)","Total exports (Balance)",{"$f":"N19","v":0}]
[null,null,null,null,null,null,null,null,null,null,null,null,null,null,null,null,"TJ NCV","Municipal waste (renewable)","Stock changes (National territory)",{"$f":"N20","v":0}]
[null,null,null,null,null,null,null,null,null,null,null,null,null,null,null,null,"TJ NCV","Municipal waste (renewable)","Inland consumption (Calculated)"]
[null,null,null,null,null,null,null,null,null,null,null,null,null,null,null,null,"TJ NCV","Municipal waste (renewable)","Statistical Difference"]
[null,null,null,null,null,null,null,null,null,null,null,null,null,null,null,null,"TJ NCV","Municipal waste (renewable)","Inland consumption (Observed)"]
[null,null,null,null,null,null,null,null,null,null,null,null,null,null,null,null,"TJ NCV","Municipal waste (renewable)","Transformation sector",{"$f":"N21","v":0}]
[null,null,null,null,null,null,null,null,null,null,null,null,null,null,null,null,"TJ NCV","Municipal waste (renewable)","     of which for blending"]
[null,null,null,null,null,null,null,null,null,null,null,null,null,null,null,null,"TJ NCV","Municipal waste (renewable)","Energy sector",{"$f":"N24","v":0}]
[null,null,null,null,null,null,null,null,null,null,null,null,null,null,null,null,"TJ NCV","Municipal waste (renewable)","Distribution losses",{"$f":"N25","v":0}]
[null,null,null,null,null,null,null,null,null,null,null,null,null,null,null,null,"TJ NCV","Municipal waste (renewable)","Total final energy consumption"]
[null,null,null,null,null,null,null,null,null,null,null,null,null,null,null,null,"TJ NCV","Municipal waste (renewable)","Industry sector",{"$f":"N26","v":0}]
[null,null,null,null,null,null,null,null,null,null,null,null,null,null,null,null,"TJ NCV","Municipal waste (renewable)","Transport sector",{"$f":"N27","v":0}]
[null,null,null,null,null,null,null,null,null,null,null,null,null,null,null,null,"TJ NCV","Municipal waste (renewable)","Other sectors",{"$f":"N28","v":0}]
[null,null,null,null,null,null,null,null,null,null,null,null,null,null,null,null,"TJ NCV","Municipal waste (non-renewable)","Indigenous production",{"$f":"O17","v":0}]
[null,null,null,null,null,null,null,null,null,null,null,null,null,null,null,null,"TJ NCV","Municipal waste (non-renewable)","Total imports (Balance)",{"$f":"O18","v":0}]
[null,null,null,null,null,null,null,null,null,null,null,null,null,null,null,null,"TJ NCV","Municipal waste (non-renewable)","Total exports (Balance)",{"$f":"O19","v":0}]
[null,null,null,null,null,null,null,null,null,null,null,null,null,null,null,null,"TJ NCV","Municipal waste (non-renewable)","Stock changes (National territory)",{"$f":"O20","v":0}]
[null,null,null,null,null,null,null,null,null,null,null,null,null,null,null,null,"TJ NCV","Municipal waste (non-renewable)","Inland consumption (Calculated)"]
[null,null,null,null,null,null,null,null,null,null,null,null,null,null,null,null,"TJ NCV","Municipal waste (non-renewable)","Statistical Difference"]
[null,null,null,null,null,null,null,null,null,null,null,null,null,null,null,null,"TJ NCV","Municipal waste (non-renewable)","Inland consumption (Observed)"]
[null,null,null,null,null,null,null,null,null,null,null,null,null,null,null,null,"TJ NCV","Municipal waste (non-renewable)","Transformation sector",{"$f":"O21","v":0}]
[null,null,null,null,null,null,null,null,null,null,null,null,null,null,null,null,"TJ NCV","Municipal waste (non-renewable)","     of which for blending"]
[null,null,null,null,null,null,null,null,null,null,null,null,null,null,null,null,"TJ NCV","Municipal waste (non-renewable)","Energy sector",{"$f":"O24","v":0}]
[null,null,null,null,null,null,null,null,null,null,null,null,null,null,null,null,"TJ NCV","Municipal waste (non-renewable)","Distribution losses",{"$f":"O25","v":0}]
[null,null,null,null,null,null,null,null,null,null,null,null,null,null,null,null,"TJ NCV","Municipal waste (non-renewable)","Total final energy consumption"]
[null,null,null,null,null,null,null,null,null,null,null,null,null,null,null,null,"TJ NCV","Municipal waste (non-renewable)","Industry sector",{"$f":"O26","v":0}]
[null,null,null,null,null,null,null,null,null,null,null,null,null,null,null,null,"TJ NCV","Municipal waste (non-renewable)","Transport sector",{"$f":"O27","v":0}]
[null,null,null,null,null,null,null,null,null,null,null,null,null,null,null,null,"TJ NCV","Municipal waste (non-renewable)","Other sectors",{"$f":"O28","v":0}]
[null,null,null,null,null,null,null,null,null,null,null,null,null,null,null,null,"TJ NCV","Solid biofuels excluding charcoal","Indigenous production",{"$f":"F17","v":0}]
[null,null,null,null,null,null,null,null,null,null,null,null,null,null,null,null,"TJ NCV","Solid biofuels excluding charcoal","Total imports (Balance)",{"$f":"F18","v":0}]
[null,null,null,null,null,null,null,null,null,null,null,null,null,null,null,null,"TJ NCV","Solid biofuels excluding charcoal","Total exports (Balance)",{"$f":"F19","v":0}]
[null,null,null,null,null,null,null,null,null,null,null,null,null,null,null,null,"TJ NCV","Solid biofuels excluding charcoal","Stock changes (National territory)",{"$f":"F20","v":0}]
[null,null,null,null,null,null,null,null,null,null,null,null,null,null,null,null,"TJ NCV","Solid biofuels excluding charcoal","Inland consumption (Calculated)"]
[null,null,null,null,null,null,null,null,null,null,null,null,null,null,null,null,"TJ NCV","Solid biofuels excluding charcoal","Statistical Difference"]
[null,null,null,null,null,null,null,null,null,null,null,null,null,null,null,null,"TJ NCV","Solid biofuels excluding charcoal","Inland consumption (Observed)"]
[null,null,null,null,null,null,null,null,null,null,null,null,null,null,null,null,"TJ NCV","Solid biofuels excluding charcoal","Transformation sector",{"$f":"F21","v":0}]
[null,null,null,null,null,null,null,null,null,null,null,null,null,null,null,null,"TJ NCV","Solid biofuels excluding charcoal","     of which for blending"]
[null,null,null,null,null,null,null,null,null,null,null,null,null,null,null,null,"TJ NCV","Solid biofuels excluding charcoal","Energy sector",{"$f":"F24","v":0}]
[null,null,null,null,null,null,null,null,null,null,null,null,null,null,null,null,"TJ NCV","Solid biofuels excluding charcoal","Distribution losses",{"$f":"F25","v":0}]
[null,null,null,null,null,null,null,null,null,null,null,null,null,null,null,null,"TJ NCV","Solid biofuels excluding charcoal","Total final energy consumption"]
[null,null,null,null,null,null,null,null,null,null,null,null,null,null,null,null,"TJ NCV","Solid biofuels excluding charcoal","Industry sector",{"$f":"F26","v":0}]
[null,null,null,null,null,null,null,null,null,null,null,null,null,null,null,null,"TJ NCV","Solid biofuels excluding charcoal","Transport sector",{"$f":"F27","v":0}]
[null,null,null,null,null,null,null,null,null,null,null,null,null,null,null,null,"TJ NCV","Solid biofuels excluding charcoal","Other sectors",{"$f":"F28","v":0}]
[null,null,null,null,null,null,null,null,null,null,null,null,null,null,null,null,"kt","Charcoal","Indigenous production",{"$f":"G5","v":0}]
[null,null,null,null,null,null,null,null,null,null,null,null,null,null,null,null,"kt","Charcoal","Total imports (Balance)",{"$f":"G6","v":0}]
[null,null,null,null,null,null,null,null,null,null,null,null,null,null,null,null,"kt","Charcoal","Total exports (Balance)",{"$f":"G7","v":0}]
[null,null,null,null,null,null,null,null,null,null,null,null,null,null,null,null,"kt","Charcoal","Stock changes (National territory)",{"$f":"G8","v":0}]
[null,null,null,null,null,null,null,null,null,null,null,null,null,null,null,null,"kt","Charcoal","Inland consumption (Calculated)"]
[null,null,null,null,null,null,null,null,null,null,null,null,null,null,null,null,"kt","Charcoal","Statistical Difference"]
[null,null,null,null,null,null,null,null,null,null,null,null,null,null,null,null,"kt","Charcoal","Inland consumption (Observed)"]
[null,null,null,null,null,null,null,null,null,null,null,null,null,null,null,null,"kt","Charcoal","Transformation sector",{"$f":"G9","v":0}]
[null,null,null,null,null,null,null,null,null,null,null,null,null,null,null,null,"kt","Charcoal","     of which for blending"]
[null,null,null,null,null,null,null,null,null,null,null,null,null,null,null,null,"kt","Charcoal","Energy sector",{"$f":"G12","v":0}]
[null,null,null,null,null,null,null,null,null,null,null,null,null,null,null,null,"kt","Charcoal","Distribution losses",{"$f":"G13","v":0}]
[null,null,null,null,null,null,null,null,null,null,null,null,null,null,null,null,"kt","Charcoal","Total final energy consumption"]
[null,null,null,null,null,null,null,null,null,null,null,null,null,null,null,null,"kt","Charcoal","Industry sector",{"$f":"G14","v":0}]
[null,null,null,null,null,null,null,null,null,null,null,null,null,null,null,null,"kt","Charcoal","Transport sector",{"$f":"G15","v":0}]
[null,null,null,null,null,null,null,null,null,null,null,null,null,null,null,null,"kt","Charcoal","Other sectors",{"$f":"G16","v":0}]
[null,null,null,null,null,null,null,null,null,null,null,null,null,null,null,null,"TJ NCV","Biogases","Indigenous production",{"$f":"L17","v":0}]
[null,null,null,null,null,null,null,null,null,null,null,null,null,null,null,null,"TJ NCV","Biogases","Total imports (Balance)",{"$f":"L18","v":0}]
[null,null,null,null,null,null,null,null,null,null,null,null,null,null,null,null,"TJ NCV","Biogases","Total exports (Balance)",{"$f":"L19","v":0}]
[null,null,null,null,null,null,null,null,null,null,null,null,null,null,null,null,"TJ NCV","Biogases","Stock changes (National territory)",{"$f":"L20","v":0}]
[null,null,null,null,null,null,null,null,null,null,null,null,null,null,null,null,"TJ NCV","Biogases","Inland consumption (Calculated)"]
[null,null,null,null,null,null,null,null,null,null,null,null,null,null,null,null,"TJ NCV","Biogases","Statistical Difference"]
[null,null,null,null,null,null,null,null,null,null,null,null,null,null,null,null,"TJ NCV","Biogases","Inland consumption (Observed)"]
[null,null,null,null,null,null,null,null,null,null,null,null,null,null,null,null,"TJ NCV","Biogases","Transformation sector",{"$f":"L21","v":0}]
[null,null,null,null,null,null,null,null,null,null,null,null,null,null,null,null,"TJ NCV","Biogases","     of which for blending",{"$f":"L22","v":0}]
[null,null,null,null,null,null,null,null,null,null,null,null,null,null,null,null,"TJ NCV","Biogases","Energy sector",{"$f":"L24","v":0}]
[null,null,null,null,null,null,null,null,null,null,null,null,null,null,null,null,"TJ NCV","Biogases","Distribution losses",{"$f":"L25","v":0}]
[null,null,null,null,null,null,null,null,null,null,null,null,null,null,null,null,"TJ NCV","Biogases","Total final energy consumption"]
[null,null,null,null,null,null,null,null,null,null,null,null,null,null,null,null,"TJ NCV","Biogases","Industry sector",{"$f":"L26","v":0}]
[null,null,null,null,null,null,null,null,null,null,null,null,null,null,null,null,"TJ NCV","Biogases","Transport sector",{"$f":"L27","v":0}]
[null,null,null,null,null,null,null,null,null,null,null,null,null,null,null,null,"TJ NCV","Biogases","Other sectors",{"$f":"L28","v":0}]
[null,null,null,null,null,null,null,null,null,null,null,null,null,null,null,null,"kt","Biogasoline","Indigenous production",{"$f":"H5","v":0}]
[null,null,null,null,null,null,null,null,null,null,null,null,null,null,null,null,"kt","Biogasoline","Total imports (Balance)",{"$f":"H6","v":0}]
[null,null,null,null,null,null,null,null,null,null,null,null,null,null,null,null,"kt","Biogasoline","Total exports (Balance)",{"$f":"H7","v":0}]
[null,null,null,null,null,null,null,null,null,null,null,null,null,null,null,null,"kt","Biogasoline","Stock changes (National territory)",{"$f":"H8","v":0}]
[null,null,null,null,null,null,null,null,null,null,null,null,null,null,null,null,"kt","Biogasoline","Inland consumption (Calculated)"]
[null,null,null,null,null,null,null,null,null,null,null,null,null,null,null,null,"kt","Biogasoline","Statistical Difference"]
[null,null,null,null,null,null,null,null,null,null,null,null,null,null,null,null,"kt","Biogasoline","Inland consumption (Observed)"]
[null,null,null,null,null,null,null,null,null,null,null,null,null,null,null,null,"kt","Biogasoline","Transformation sector",{"$f":"H9","v":0}]
[null,null,null,null,null,null,null,null,null,null,null,null,null,null,null,null,"kt","Biogasoline","     of which for blending",{"$f":"H11","v":0}]
[null,null,null,null,null,null,null,null,null,null,null,null,null,null,null,null,"kt","Biogasoline","Energy sector",{"$f":"H12","v":0}]
[null,null,null,null,null,null,null,null,null,null,null,null,null,null,null,null,"kt","Biogasoline","Distribution losses",{"$f":"H13","v":0}]
[null,null,null,null,null,null,null,null,null,null,null,null,null,null,null,null,"kt","Biogasoline","Total final energy consumption"]
[null,null,null,null,null,null,null,null,null,null,null,null,null,null,null,null,"kt","Biogasoline","Industry sector",{"$f":"H14","v":0}]
[null,null,null,null,null,null,null,null,null,null,null,null,null,null,null,null,"kt","Biogasoline","Transport sector",{"$f":"H15","v":0}]
[null,null,null,null,null,null,null,null,null,null,null,null,null,null,null,null,"kt","Biogasoline","Other sectors",{"$f":"H16","v":0}]
[null,null,null,null,null,null,null,null,null,null,null,null,null,null,null,null,"kt","Bio jet kerosenes","Indigenous production",{"$f":"J5","v":0}]
[null,null,null,null,null,null,null,null,null,null,null,null,null,null,null,null,"kt","Bio jet kerosenes","Total imports (Balance)",{"$f":"J6","v":0}]
[null,null,null,null,null,null,null,null,null,null,null,null,null,null,null,null,"kt","Bio jet kerosenes","Total exports (Balance)",{"$f":"J7","v":0}]
[null,null,null,null,null,null,null,null,null,null,null,null,null,null,null,null,"kt","Bio jet kerosenes","Stock changes (National territory)",{"$f":"J8","v":0}]
[null,null,null,null,null,null,null,null,null,null,null,null,null,null,null,null,"kt","Bio jet kerosenes","Inland consumption (Calculated)"]
[null,null,null,null,null,null,null,null,null,null,null,null,null,null,null,null,"kt","Bio jet kerosenes","Statistical Difference"]
[null,null,null,null,null,null,null,null,null,null,null,null,null,null,null,null,"kt","Bio jet kerosenes","Inland consumption (Observed)"]
[null,null,null,null,null,null,null,null,null,null,null,null,null,null,null,null,"kt","Bio jet kerosenes","Transformation sector",{"$f":"J9","v":0}]
[null,null,null,null,null,null,null,null,null,null,null,null,null,null,null,null,"kt","Bio jet kerosenes","     of which for blending",{"$f":"J11","v":0}]
[null,null,null,null,null,null,null,null,null,null,null,null,null,null,null,null,"kt","Bio jet kerosenes","Energy sector",{"$f":"J12","v":0}]
[null,null,null,null,null,null,null,null,null,null,null,null,null,null,null,null,"kt","Bio jet kerosenes","Distribution losses",{"$f":"J13","v":0}]
[null,null,null,null,null,null,null,null,null,null,null,null,null,null,null,null,"kt","Bio jet kerosenes","Total final energy consumption"]
[null,null,null,null,null,null,null,null,null,null,null,null,null,null,null,null,"kt","Bio jet kerosenes","Industry sector",{"$f":"J14","v":0}]
[null,null,null,null,null,null,null,null,null,null,null,null,null,null,null,null,"kt","Bio jet kerosenes","Transport sector",{"$f":"J15","v":0}]
[null,null,null,null,null,null,null,null,null,null,null,null,null,null,null,null,"kt","Bio jet kerosenes","Other sectors",{"$f":"J16","v":0}]
[null,null,null,null,null,null,null,null,null,null,null,null,null,null,null,null,"kt","Biodiesels","Indigenous production",{"$f":"I5","v":0}]
[null,null,null,null,null,null,null,null,null,null,null,null,null,null,null,null,"kt","Biodiesels","Total imports (Balance)",{"$f":"I6","v":0}]
[null,null,null,null,null,null,null,null,null,null,null,null,null,null,null,null,"kt","Biodiesels","Total exports (Balance)",{"$f":"I7","v":0}]
[null,null,null,null,null,null,null,null,null,null,null,null,null,null,null,null,"kt","Biodiesels","Stock changes (National territory)",{"$f":"I8","v":0}]
[null,null,null,null,null,null,null,null,null,null,null,null,null,null,null,null,"kt","Biodiesels","Inland consumption (Calculated)"]
[null,null,null,null,null,null,null,null,null,null,null,null,null,null,null,null,"kt","Biodiesels","Statistical Difference"]
[null,null,null,null,null,null,null,null,null,null,null,null,null,null,null,null,"kt","Biodiesels","Inland consumption (Observed)"]
[null,null,null,null,null,null,null,null,null,null,null,null,null,null,null,null,"kt","Biodiesels","Transformation sector",{"$f":"I9","v":0}]
[null,null,null,null,null,null,null,null,null,null,null,null,null,null,null,null,"kt","Biodiesels","     of which for blending",{"$f":"I11","v":0}]
[null,null,null,null,null,null,null,null,null,null,null,null,null,null,null,null,"kt","Biodiesels","Energy sector",{"$f":"I12","v":0}]
[null,null,null,null,null,null,null,null,null,null,null,null,null,null,null,null,"kt","Biodiesels","Distribution losses",{"$f":"I13","v":0}]
[null,null,null,null,null,null,null,null,null,null,null,null,null,null,null,null,"kt","Biodiesels","Total final energy consumption"]
[null,null,null,null,null,null,null,null,null,null,null,null,null,null,null,null,"kt","Biodiesels","Industry sector",{"$f":"I14","v":0}]
[null,null,null,null,null,null,null,null,null,null,null,null,null,null,null,null,"kt","Biodiesels","Transport sector",{"$f":"I15","v":0}]
[null,null,null,null,null,null,null,null,null,null,null,null,null,null,null,null,"kt","Biodiesels","Other sectors",{"$f":"I16","v":0}]
[null,null,null,null,null,null,null,null,null,null,null,null,null,null,null,null,"kt","Other liquid biofuels","Indigenous production",{"$f":"K5","v":0}]
[null,null,null,null,null,null,null,null,null,null,null,null,null,null,null,null,"kt","Other liquid biofuels","Total imports (Balance)",{"$f":"K6","v":0}]
[null,null,null,null,null,null,null,null,null,null,null,null,null,null,null,null,"kt","Other liquid biofuels","Total exports (Balance)",{"$f":"K7","v":0}]
[null,null,null,null,null,null,null,null,null,null,null,null,null,null,null,null,"kt","Other liquid biofuels","Stock changes (National territory)",{"$f":"K8","v":0}]
[null,null,null,null,null,null,null,null,null,null,null,null,null,null,null,null,"kt","Other liquid biofuels","Inland consumption (Calculated)"]
[null,null,null,null,null,null,null,null,null,null,null,null,null,null,null,null,"kt","Other liquid biofuels","Statistical Difference"]
[null,null,null,null,null,null,null,null,null,null,null,null,null,null,null,null,"kt","Other liquid biofuels","Inland consumption (Observed)"]
[null,null,null,null,null,null,null,null,null,null,null,null,null,null,null,null,"kt","Other liquid biofuels","Transformation sector",{"$f":"K9","v":0}]
[null,null,null,null,null,null,null,null,null,null,null,null,null,null,null,null,"kt","Other liquid biofuels","     of which for blending",{"$f":"K11","v":0}]
[null,null,null,null,null,null,null,null,null,null,null,null,null,null,null,null,"kt","Other liquid biofuels","Energy sector",{"$f":"K12","v":0}]
[null,null,null,null,null,null,null,null,null,null,null,null,null,null,null,null,"kt","Other liquid biofuels","Distribution losses",{"$f":"K13","v":0}]
[null,null,null,null,null,null,null,null,null,null,null,null,null,null,null,null,"kt","Other liquid biofuels","Total final energy consumption"]
[null,null,null,null,null,null,null,null,null,null,null,null,null,null,null,null,"kt","Other liquid biofuels","Industry sector",{"$f":"K14","v":0}]
[null,null,null,null,null,null,null,null,null,null,null,null,null,null,null,null,"kt","Other liquid biofuels","Transport sector",{"$f":"K15","v":0}]
[null,null,null,null,null,null,null,null,null,null,null,null,null,null,null,null,"kt","Other liquid biofuels","Other sectors",{"$f":"K16","v":0}]
[null,null,null,null,null,null,null,null,null,null,null,null,null,null,null,null,"TJ NCV","Ambient heat (heat pumps)","Indigenous production",{"$f":"E17","v":0}]
[null,null,null,null,null,null,null,null,null,null,null,null,null,null,null,null,"TJ NCV","Ambient heat (heat pumps)","Total imports (Balance)"]
[null,null,null,null,null,null,null,null,null,null,null,null,null,null,null,null,"TJ NCV","Ambient heat (heat pumps)","Total exports (Balance)"]
[null,null,null,null,null,null,null,null,null,null,null,null,null,null,null,null,"TJ NCV","Ambient heat (heat pumps)","Stock changes (National territory)"]
[null,null,null,null,null,null,null,null,null,null,null,null,null,null,null,null,"TJ NCV","Ambient heat (heat pumps)","Inland consumption (Calculated)"]
[null,null,null,null,null,null,null,null,null,null,null,null,null,null,null,null,"TJ NCV","Ambient heat (heat pumps)","Statistical Difference"]
[null,null,null,null,null,null,null,null,null,null,null,null,null,null,null,null,"TJ NCV","Ambient heat (heat pumps)","Inland consumption (Observed)"]
[null,null,null,null,null,null,null,null,null,null,null,null,null,null,null,null,"TJ NCV","Ambient heat (heat pumps)","Transformation sector",{"$f":"E21","v":0}]
[null,null,null,null,null,null,null,null,null,null,null,null,null,null,null,null,"TJ NCV","Ambient heat (heat pumps)","     of which for blending"]
[null,null,null,null,null,null,null,null,null,null,null,null,null,null,null,null,"TJ NCV","Ambient heat (heat pumps)","Energy sector",{"$f":"E24","v":0}]
[null,null,null,null,null,null,null,null,null,null,null,null,null,null,null,null,"TJ NCV","Ambient heat (heat pumps)","Distribution losses"]
[null,null,null,null,null,null,null,null,null,null,null,null,null,null,null,null,"TJ NCV","Ambient heat (heat pumps)","Total final energy consumption"]
[null,null,null,null,null,null,null,null,null,null,null,null,null,null,null,null,"TJ NCV","Ambient heat (heat pumps)","Industry sector",{"$f":"E26","v":0}]
[null,null,null,null,null,null,null,null,null,null,null,null,null,null,null,null,"TJ NCV","Ambient heat (heat pumps)","Transport sector",{"$f":"E27","v":0}]
[null,null,null,null,null,null,null,null,null,null,null,null,null,null,null,null,"TJ NCV","Ambient heat (heat pumps)","Other sectors",{"$f":"E28","v":0}]
[null,null,null,null,null,null,null,null,null,null,null,null,null,null,null,null,"MWe","Net maximum capacity","Hydro",{"$f":"B200","v":0}]
[null,null,null,null,null,null,null,null,null,null,null,null,null,null,null,null,"MWe","Net maximum capacity","     Pure hydro (with no pumping)",{"$f":"B201","v":0}]
[null,null,null,null,null,null,null,null,null,null,null,null,null,null,null,null,"MWe","Net maximum capacity","     Mixed hydro",0]
[null,null,null,null,null,null,null,null,null,null,null,null,null,null,null,null,"MWe","Net maximum capacity","     Pure pumped storage",0]
[null,null,null,null,null,null,null,null,null,null,null,null,null,null,null,null,"MWe","Net maximum capacity","Wind",0]
[null,null,null,null,null,null,null,null,null,null,null,null,null,null,null,null,"MWe","Net maximum capacity","     Onshore wind",0]
[null,null,null,null,null,null,null,null,null,null,null,null,null,null,null,null,"MWe","Net maximum capacity","     Offshore wind",0]
[null,null,null,null,null,null,null,null,null,null,null,null,null,null,null,null,"ktoe","Biofuels","Total final energy consumption of biofuels (liquid and gaseous) in transport"]
[null,null,null,null,null,null,null,null,null,null,null,null,null,null,null,null,"ktoe","Biofuels","    of which sustainable biofuels"]
[null,null,null,null,null,null,null,null,null,null,null,null,null,null,null,null,"ktoe","Biofuels","              of which Annex IX\n               (double counted)"]
[null,null,null,null,null,null,null,null,null,null,null,null,null,null,null,null,"ktoe","Biomethane","Biomethane injected in the grid to be counted towards the transport target"]

{"sheet":"Parameter_mapping","index":8,"n_rows":2,"n_cols":2,"rows_kept":2,"cut":false,"hidden":true,"merged":[]}
["Data sheet","Parameter sheet"]
["COLUMN","Parameters"]

{"sheet":"Parameters","index":9,"n_rows":21,"n_cols":7,"rows_kept":21,"cut":false,"hidden":true,"merged":[]}
["Element","Type","PosType","Position",null,"DataStart","DP2"]
["QUEST_SOURCE","DIM","FIX","A_MINIREN",null,"DataEnd","DP213"]
["FREQ","DIM","FIX","A",null,"SkipIncompleteKeys","true"]
["REF_AREA","DIM","COLUMN","DS"]
["ENERGY_PRODUCT","DIM","COLUMN","DT"]
["MAIN_FLOW","DIM","COLUMN","DU"]
["FLOW_BREAKDOWN","DIM","COLUMN","DV"]
["PLANT_TECH","DIM","COLUMN","DW"]
["PLANT_TYPE","DIM","COLUMN","DX"]
["STOCKS","DIM","COLUMN","DY"]
["INFRASTRUCTURE_IND","DIM","COLUMN","DZ"]
["VIS_A_VIS_AREA","DIM","COLUMN","EA"]
["MEASURE_VALUE_TYPE","DIM","COLUMN","EB"]
["TIME_PERIOD","DIM","CELL","I1"]
["FACILITY_ID","DIM","COLUMN","EC"]
["UNIT_MEASURE","DIM","COLUMN","ED"]
["OBS_STATUS","ATT","COLUMN","DQ"]
["CONF_STATUS","ATT","SKIP"]
["COMMENT_OBS","ATT","COLUMN","DR"]
["FACILITY_TYPE","ATT","SKIP"]
["FACILITY_NAME","ATT","SKIP"]